{"text_format":"1","workbook":"xlsx","n_sheets":13,"sheets":["◆操作シート","アンケート調査結果","要介護認定データ","アンケート＋認定データ","集計結果（実数）","集計結果（％）","グラフ","Word文書(単純)","Word文書(詳細)","データセット","シナリオ","グラフテンプレート","検定"],"not_rendered":{"charts":144,"images":7,"macros":1,"external_links":0,"defined_names":9,"comments":0,"pivot_tables":0},"unopened":[],"bounds":{"document_bytes":16777216,"sheet_cells":100000,"rows_first":2000,"rows_last":500,"rows_between":2000,"halvings":0,"cell_chars":16384,"cell_head_chars":4096},"cells_cut":0,"cells_raw":0,"read":"whole","date_system":"1900"}

{"sheet":"◆操作シート","index":0,"n_rows":40,"n_cols":7,"rows_kept":40,"cut":false,"hidden":false,"merged":[[1,0,2,24],[27,1,28,4],[33,1,34,4],[39,1,40,4],[21,1,22,4],[15,1,16,4],[7,0,8,3],[13,4,13,5],[9,1,10,18],[13,2,13,3]]}
[]
["　在宅介護実態調査_自動集計分析ソフト ［操作シート］"]
[]
[]
[null,"　※ 以下のＳＴＥＰ１～ＳＴＥＰ５のボタンを押し、「在宅介護実態調査」の集計分析レポートをWordファイルに出力します。"]
[null,"　※ 使用前に、Sheet_［アンケート調査結果］に在宅介護実態調査の調査結果を入力してください。また、認定ソフトから出力した要介護認定データ（csvファイル）をご準備ください。"]
[]
["　 　［ＳＴＥＰ０］"]
[]
[null,"　　Sheet_［アンケート調査結果］に在宅介護実態調査の調査結果を入力してください。"]
[]
[]
[null,null,"都道府県名",null,"市区町村名"]
[null,null,"●●県",null,"▲▲市",null," ← 都道府県名と市区町村名を入力してください。"]
[]
[null,"［ＳＴＥＰ１］"]
[]
[]
[]
[]
[]
[null,"［ＳＴＥＰ２］"]
[]
[]
[]
[]
[]
[null,"［ＳＴＥＰ３］"]
[]
[]
[]
[]
[]
[null,"［ＳＴＥＰ４］"]
[]
[]
[]
[]
[]
[null,"［ＳＴＥＰ５］"]

{"sheet":"アンケート調査結果","index":1,"n_rows":4,"n_cols":120,"rows_kept":4,"cut":false,"hidden":false,"merged":[]}
[1,2,3,4,5,6,7,8,9,10,11,12,13,14,15,16,17,18,19,20,21,22,23,24,25,26,27,28,29,30,31,32,33,34,35,36,37,38,39,40,41,42,43,44,45,46,47,48,49,50,51,52,53,54,55,56,57,58,59,60,61,62,63,64,65,66,67,68,69,70,71,72,73,74,75,76,77,78,79,80,81,82,83,84,85,86,87,88,89,90,91,92,93,94,95,96,97,98,99,100,101,102,103,104,105,106,107,108,109,110,111,112,113,114,115,116,117,118,119,120]
[null,"設問No→",1,1,1,1,1,2,3,4,5,6,7,7,7,7,7,7,7,7,7,7,7,7,7,7,7,7,8,8,8,8,8,8,9,9,9,9,9,9,9,9,9,9,9,10,10,10,10,10,10,10,10,10,10,10,11,12,12,12,12,12,12,12,12,12,12,12,12,12,12,12,12,13,14,15,15,15,15,15,15,15,15,15,16,17,17,17,17,17,17,18,18,18,18,18,18,18,18,18,18,18,19,20,20,20,20,20,20,20,20,20,20,20,20,20,20,20,20,20]
[null,null,"A票の聞き取りを行った相手",null,null,null,null,"問1_世帯類型","問2_ご家族等の介護の頻度","問3_主な介護者","問4_介護者の性別","問5_介護者の年齢","問6_介護者が行っている介護",null,null,null,null,null,null,null,null,null,null,null,null,null,null,null,"問7_介護のための離職の有無",null,null,null,null,null,"問8_介護保険以外の支援・サービスの利用状況",null,null,null,null,null,null,null,null,null,null,"問9_必要な支援・サービス",null,null,null,null,null,null,null,null,null,null,"問10_施設等の検討状況","問11_抱えている傷病",null,null,null,null,null,null,null,null,null,null,null,null,null,null,null,"問12_訪問診療の利用の有無","問13_介護保険サービスの利用の有無","問14_未利用の理由",null,null,null,null,null,null,null,null,"問1_介護者の勤務形態","問2_介護者の働き方の調整の状況",null,null,null,null,null,"問3_効果的な勤め先からの支援（※３つまで）",null,null,null,null,null,null,null,null,null,null,"問4_介護者の就労継続の可否に係る意識","問5_介護者が不安に感じる介護（※３つまで）"]
["サンプルNo","被保険者番号","1.調査対象者本人","2.主な介護者となっている家族・親族","3.主な介護者以外の家族・親族","4.調査対象者のケアマネジャー","5.その他","SA","SA","SA","SA","SA","1.日中の排泄","2.夜間の排泄","3.食事の介助（食べる時）","4.入浴・洗身","5.身だしなみ（洗顔・歯磨き等）","6.衣服の着脱","7.屋内の移乗・移動","8.外出の付き添い、送迎等","9.服薬","10.認知症状への対応","11.医療面での対応（経管栄養、ストーマ 等）","12.食事の準備（調理等）","13.その他の家事（掃除、洗濯、買い物 等）","14.金銭管理や生活面に必要な諸手続き","15.その他","16.わからない","1.主な介護者が仕事を辞めた（転職除く）","2.主な介護者以外の家族・親族が仕事を辞めた（転職除く）","3.主な介護者が転職した","4.主な介護者以外の家族・親族が転職した","5.介護のために仕事を辞めた家族・親族はいない","6.わからない","1.配食","2.調理","3.掃除・洗濯","4.買い物（宅配は含まない）","5.ゴミ出し","6.外出同行（通院、買い物など）","7.移送サービス（介護・福祉ﾀｸｼｰ等）","8.見守り、声かけ","9.サロンなどの定期的な通いの場","10.その他","11.利用していない","1.配食","2.調理","3.掃除・洗濯","4.買い物（宅配は含まない）","5.ゴミ出し","6.外出同行（通院、買い物など）","7.移送サービス（介護・福祉ﾀｸｼｰ等）","8.見守り、声かけ","9.サロンなどの定期的な通いの場","10.その他","11.特になし","SA","1.脳血管疾患（脳卒中）","2.心疾患（心臓病）","3.悪性新生物（がん）","4.呼吸器疾患","5.腎疾患（透析）","6.筋骨格系疾患（骨粗しょう症、脊柱管狭窄症等）","7.膠原病（関節リウマチ含む）","8.変形性関節疾患","9.認知症","10.パーキンソン病","11.難病（パーキンソン病を除く）","12.糖尿病","13.眼科・耳鼻科疾患（視覚・聴覚障害を伴うもの）","14.その他","15.なし","16.わからない","SA","SA","1.現状では、サービスを利用するほどの状態ではない","2.本人にサービス利用の希望がない","3.家族が介護をするため必要ない","4.以前、利用していたサービスに不満があった","5.利用料を支払うのが難しい","6.利用したいサービスが利用できない、身近にない","7.住宅改修、福祉用具貸与・購入のみを利用するため","8.サービスを受けたいが手続きや利用方法が分からない","9.その他","SA","1.特に行っていない","2.介護のために、「労働時間を調整（残業免除、短時間勤務、遅出・早帰・中抜け等）」しながら、働いている","3.介護のために、「休暇（年休や介護休暇等）」を取りながら、働いている","4.介護のために、「在宅勤務」を利用しながら、働いている","5.介護のために、2～4以外の調整をしながら、働いている","6.主な介護者に確認しないとわからない","1.自営業・フリーランス等のため、勤め先はない","2.介護休業・介護休暇等の制度の充実","3.制度を利用しやすい職場づくり","4.労働時間の柔軟な選択（フレックスタイム制など）","5.働く場所の多様化（在宅勤務・テレワークなど）","6.仕事と介護の両立に関する情報の提供","7.介護に関する相談窓口・相談担当者の設置","8.介護をしている従業員への経済的な支援","9.その他","10.特にない","11.主な介護者に確認しないと、わからない","SA","1.日中の排泄","2.夜間の排泄","3.食事の介助（食べる時）","4.入浴・洗身","5.身だしなみ（洗顔・歯磨き等）","6.衣服の着脱","7.屋内の移乗・移動","8.外出の付き添い、送迎等","9.服薬","10.認知症状への対応","11.医療面での対応（経管栄養、ストーマ 等）","12.食事の準備（調理等）","13.その他の家事（掃除、洗濯、買い物 等）","14.金銭管理や生活面に必要な諸手続き","15.その他","16.不安に感じていることは、特にない","17.主な介護者に確認しないと、わからない"]

{"sheet":"要介護認定データ","index":2,"n_rows":2,"n_cols":209,"rows_kept":2,"cut":false,"hidden":false,"merged":[]}
[1,2,3,4,5,6,7,8,9,10,11,12,13,14,15,16,17,18,19,20,21,22,23,24,25,26,27,28,29,30,31,32,33,34,35,36,37,38,39,40,41,42,43,44,45,46,47,48,49,50,51,52,53,54,55,56,57,58,59,60,61,62,63,64,65,66,67,68,69,70,71,72,73,74,75,76,77,78,79,80,81,82,83,84,85,86,87,88,89,90,91,92,93,94,95,96,97,98,99,100,101,102,103,104,105,106,107,108,109,110,111,112,113,114,115,116,117,118,119,120,121,122,123,124,125,126,127,128,129,130,131,132,133,134,135,136,137,138,139,140,141,142,143,144,145,146,147,148,149,150,151,152,153,154,155,156,157,158,159,160,161,162,163,164,165,166,167,168,169,170,171,172,173,174,175,176,177,178,179,180,181,182,183,184,185,186,187,188,189,190,191,192,193,194,195,196,197,198,199,200,201,202,203,204,205,206,207,208,209]
["保険者番号","被保険者番号","認定申請日","枝番","申請種別コード","取下区分コード","被保険者資格区分コード","申請代行区分コード","年齢","生年月日","性別コード","被保険者カナ氏名","被保険者漢字氏名","郵便番号","住所","電話番号","施設名称","所在地","前回申請種別コード","前回認定審査会結果","前回有効期間開始","前回有効期間終了","主治医医療機関コード","主治医コード","コメント等","意見書依頼日","意見書入手日","意見書｢短期記憶｣","意見書｢認知能力｣","意見書｢伝達能力｣","意見書｢食事行為｣","意見書｢認知症高齢者の\n日常生活自立度｣","調査依頼日","調査実施日","委託区分","指定居宅介護支援事業者等コード","認定調査員コード","認定調査員資格コード","一次判定日","一次判定結果","一次判定結果(基準時間の積み足し後)","要介護認定等基準時間(基準時間の積み足し以外)","要介護認定等基準時間(食事)","要介護認定等基準時間(排泄)","要介護認定等基準時間(移動)","要介護認定等基準時間\n(清潔保持)","要介護認定等基準時間\n(間接ケア)","要介護認定等基準時間\n(問題行動)","要介護認定等基準時間(機能訓練)","要介護認定等基準時間(医療関連)","要介護認定等基準時間(積み足し時間)","中間評価項目得点　第１群","中間評価項目得点　第２群","中間評価項目得点　第３群","中間評価項目得点　第４群","中間評価項目得点　第５群","一次判定警告コード","参考指標(認知症高齢者の日常生活自立度の蓋然性評価％)","廃用の程度から推定される給付区分","状態の安定性(認知機能・廃用の程度の評価結果)","審査会資料作成日","審査会予定日","合議体コード","審査会資料番号","二次判定日","二次判定結果","認定有効期間(開始)","認定有効期間(終了)","特定疾病コード","要介護１の場合の状態像","審査会意見","審査会意見有無","現在のサービス区分コード","現在の状況","訪問介護(ホームヘルプサービス)","訪問入浴介護","訪問看護","訪問リハビリテーション","居宅療養管理指導","通所介護(デイサービス)","通所リハビリテーション","短期入所生活介護(ショートステイ)","短期入所療養介護","特定施設入居者生活介護","福祉用具貸与","特定福祉用具販売","住宅改修(介護給付)","夜間対応型訪問介護","認知症対応型通所介護","小規模多機能型居宅介護","認知症対応型共同生活介護(グループホーム)","地域密着型特定施設入居者生活介護","地域密着型介護老人福祉施設入所者生活介護","介護予防訪問介護(ホームヘルプサービス)","介護予防訪問入浴介護","介護予防訪問看護","介護予防訪問リハビリテーション","介護予防居宅療養管理指導","介護予防通所介護(デイサービス)","介護予防通所リハビリテーション","介護予防短期入所生活介護(ショートステイ)","介護予防短期入所療養介護","介護予防特定施設入居者生活介護","介護予防福祉用具貸与","特定介護予防福祉用具販売","住宅改修(予防給付)","介護予防認知症対応型通所介護","介護予防小規模多機能型居宅介護","介護予防認知症対応型共同生活介護(グループホーム)","麻痺(左-上肢)","麻痺(右-上肢)","麻痺(左-下肢)","麻痺(右-下肢)","麻痺(その他)","拘縮(肩関節)","拘縮(股関節)","拘縮(膝関節)","拘縮(その他)","寝返り","起き上がり","座位保持","両足での立位","歩行","立ち上がり","片足での立位","洗身","つめ切り","視力","聴力","移乗","移動","えん下","食事摂取","排尿","排便","口腔清潔","洗顔","整髪","上衣の着脱","ズボン等の着脱","外出頻度","意志の伝達","毎日の日課を理解","生年月日をいう","短期記憶","自分の名前をいう","今の季節を理解","場所の理解","徘徊","外出して戻れない","被害的","作話","感情が不安定","昼夜逆転","同じ話をする","大声を出す","介護に抵抗","落ち着きなし","一人で出たがる","収集癖","物や衣類を壊す","ひどい物忘れ","独り言・独り笑い","自分勝手に行動する","話がまとまらない","薬の内服","金銭の管理","日常の意志決定","集団への不適応","買い物","簡単な調理","点滴の管理","中心静脈栄養","透析","ストーマの処置","酸素療法","レスピレーター","気管切開の処置","疼痛の看護","経管栄養","モニター測定","じょくそうの処置","カテーテル","障害高齢者自立度","認知症高齢者自立度","調査依頼予定日","調査実施予定日","意見書依頼予定日","意見書入手予定日","一次判定実施予定日","審査会資料作成予定日","二次判定実施予定日","ステージナンバー","出力区分","データ状態","送信日時","送信No","データ作成区分","作成日時","作成ユーザー","作成画面ID","作成バージョン","更新日時","更新ユーザー","更新画面ID","更新バージョン","申請区分（申請時）コード","定期巡回・随時対応型訪問介護看護","看護小規模多機能型居宅介護"]

{"sheet":"アンケート＋認定データ","index":3,"n_rows":4,"n_cols":365,"rows_kept":4,"cut":false,"hidden":false,"merged":[]}
[1,2,3,4,5,6,7,8,9,10,11,12,13,14,15,16,17,18,19,20,21,22,23,24,25,26,27,28,29,30,31,32,33,34,35,36,37,38,39,40,41,42,43,44,45,46,47,48,49,50,51,52,53,54,55,56,57,58,59,60,61,62,63,64,65,66,67,68,69,70,71,72,73,74,75,76,77,78,79,80,81,82,83,84,85,86,87,88,89,90,91,92,93,94,95,96,97,98,99,100,101,102,103,104,105,106,107,108,109,110,111,112,113,114,115,116,117,118,119,120,121,122,123,124,125,126,127,128,129,130,131,132,133,134,135,136,137,138,139,140,141,142,143,144,145,146,147,148,149,150,151,152,153,154,155,156,157,158,159,160,161,162,163,164,165,166,167,168,169,170,171,172,173,174,175,176,177,178,179,180,181,182,183,184,185,186,187,188,189,190,191,192,193,194,195,196,197,198,199,200,201,202,203,204,205,206,207,208,209,210,211,212,213,214,215,216,217,218,219,220,221,222,223,224,225,226,227,228,229,230,231,232,233,234,235,236,237,238,239,240,241,242,243,244,245,246,247,248,249,250,251,252,253,254,255,256,257,258,259,260,261,262,263,264,265,266,267,268,269,270,271,272,273,274,275,276,277,278,279,280,281,282,283,284,285,286,287,288,289,290,291,292,293,294,295,296,297,298,299,300,301,302,303,304,305,306,307,308,309,310,311,312,313,314,315,316,317,318,319,320,321,322,323,324,325,326,327,328,329,330,331,332,333,334,335,336,337,338,339,340,341,342,343,344,345,346,347,348,349,350,351,352,353,354,355,356,357,358,359,360,361,362,363,364,365]
[null,"設問No→",1,1,1,1,1,2,3,4,5,6,7,7,7,7,7,7,7,7,7,7,7,7,7,7,7,7,8,8,8,8,8,8,9,9,9,9,9,9,9,9,9,9,9,10,10,10,10,10,10,10,10,10,10,10,11,12,12,12,12,12,12,12,12,12,12,12,12,12,12,12,12,13,14,15,15,15,15,15,15,15,15,15,16,17,17,17,17,17,17,18,18,18,18,18,18,18,18,18,18,18,19,20,20,20,20,20,20,20,20,20,20,20,20,20,20,20,20,20,21,22,23,24,25,26,27,28,29,30,31,32,33,34,35,36,37,38,39,40,41,42,43,44,45,46,47,48,49,50,51,52,53,54,55,56,57]
[null,null,"A票の聞き取りを行った相手",null,null,null,null,"問1_世帯類型","問2_ご家族等の介護の頻度","問3_主な介護者","問4_介護者の性別","問5_介護者の年齢","問6_介護者が行っている介護",null,null,null,null,null,null,null,null,null,null,null,null,null,null,null,"問7_介護のための離職の有無",null,null,null,null,null,"問8_介護保険以外の支援・サービスの利用状況",null,null,null,null,null,null,null,null,null,null,"問9_必要な支援・サービス",null,null,null,null,null,null,null,null,null,null,"問10_施設等の検討状況","問11_抱えている傷病",null,null,null,null,null,null,null,null,null,null,null,null,null,null,null,"問12_訪問診療の利用の有無","問13_介護保険サービスの利用の有無","問14_未利用の理由",null,null,null,null,null,null,null,null,"問1_介護者の勤務形態","問2_介護者の働き方の調整の状況",null,null,null,null,null,"問3_効果的な勤め先からの支援（※３つまで）",null,null,null,null,null,null,null,null,null,null,"問4_介護者の就労継続の可否に係る意識","問5_介護者が不安に感じる介護（※３つまで）",null,null,null,null,null,null,null,null,null,null,null,null,null,null,null,null,"要介護認定データ（コード変換）",null,null,null,null,null,null,null,null,null,"要介護認定データ（コード変換2）",null,null,null,null,null,null,null,null,null,null,null,null,null,null,null,null,null,null,null,null,null,null,null,null,null,null,2,3,4,5,6,7,8,9,10,11,12,13,14,15,16,17,18,19,20,21,22,23,24,25,26,27,28,29,30,31,32,33,34,35,36,37,38,39,40,41,42,43,44,45,46,47,48,49,50,51,52,53,54,55,56,57,58,59,60,61,62,63,64,65,66,67,68,69,70,71,72,73,74,75,76,77,78,79,80,81,82,83,84,85,86,87,88,89,90,91,92,93,94,95,96,97,98,99,100,101,102,103,104,105,106,107,108,109,110,111,112,113,114,115,116,117,118,119,120,121,122,123,124,125,126,127,128,129,130,131,132,133,134,135,136,137,138,139,140,141,142,143,144,145,146,147,148,149,150,151,152,153,154,155,156,157,158,159,160,161,162,163,164,165,166,167,168,169,170,171,172,173,174,175,176,177,178,179,180,181,182,183,184,185,186,187,188,189,190,191,192,193,194,195,196,197,198,199,200,201,202,203,204,205,206,207,208,209]
["サンプルNo","被保険者番号","1.調査対象者本人","2.主な介護者となっている家族・親族","3.主な介護者以外の家族・親族","4.調査対象者のケアマネジャー","5.その他","SA","SA","SA","SA","SA","1.日中の排泄","2.夜間の排泄","3.食事の介助（食べる時）","4.入浴・洗身","5.身だしなみ（洗顔・歯磨き等）","6.衣服の着脱","7.屋内の移乗・移動","8.外出の付き添い、送迎等","9.服薬","10.認知症状への対応","11.医療面での対応（経管栄養、ストーマ 等）","12.食事の準備（調理等）","13.その他の家事（掃除、洗濯、買い物 等）","14.金銭管理や生活面に必要な諸手続き","15.その他","16.わからない","1.主な介護者が仕事を辞めた（転職除く）","2.主な介護者以外の家族・親族が仕事を辞めた（転職除く）","3.主な介護者が転職した","4.主な介護者以外の家族・親族が転職した","5.介護のために仕事を辞めた家族・親族はいない","6.わからない","1.配食","2.調理","3.掃除・洗濯","4.買い物（宅配は含まない）","5.ゴミ出し","6.外出同行（通院、買い物など）","7.移送サービス（介護・福祉ﾀｸｼｰ等）","8.見守り、声かけ","9.サロンなどの定期的な通いの場","10.その他","11.利用していない","1.配食","2.調理","3.掃除・洗濯","4.買い物（宅配は含まない）","5.ゴミ出し","6.外出同行（通院、買い物など）","7.移送サービス（介護・福祉ﾀｸｼｰ等）","8.見守り、声かけ","9.サロンなどの定期的な通いの場","10.その他","11.特になし","SA","1.脳血管疾患（脳卒中）","2.心疾患（心臓病）","3.悪性新生物（がん）","4.呼吸器疾患","5.腎疾患（透析）","6.筋骨格系疾患（骨粗しょう症、脊柱管狭窄症等）","7.膠原病（関節リウマチ含む）","8.変形性関節疾患","9.認知症","10.パーキンソン病","11.難病（パーキンソン病を除く）","12.糖尿病","13.眼科・耳鼻科疾患（視覚・聴覚障害を伴うもの）","14.その他","15.なし","16.わからない","SA","SA","1.現状では、サービスを利用するほどの状態ではない","2.本人にサービス利用の希望がない","3.家族が介護をするため必要ない","4.以前、利用していたサービスに不満があった","5.利用料を支払うのが難しい","6.利用したいサービスが利用できない、身近にない","7.住宅改修、福祉用具貸与・購入のみを利用するため","8.サービスを受けたいが手続きや利用方法が分からない","9.その他","SA","1.特に行っていない","2.介護のために、「労働時間を調整（残業免除、短時間勤務、遅出・早帰・中抜け等）」しながら、働いている","3.介護のために、「休暇（年休や介護休暇等）」を取りながら、働いている","4.介護のために、「在宅勤務」を利用しながら、働いている","5.介護のために、2～4以外の調整をしながら、働いている","6.主な介護者に確認しないとわからない","1.自営業・フリーランス等のため、勤め先はない","2.介護休業・介護休暇等の制度の充実","3.制度を利用しやすい職場づくり","4.労働時間の柔軟な選択（フレックスタイム制など）","5.働く場所の多様化（在宅勤務・テレワークなど）","6.仕事と介護の両立に関する情報の提供","7.介護に関する相談窓口・相談担当者の設置","8.介護をしている従業員への経済的な支援","9.その他","10.特にない","11.主な介護者に確認しないと、わからない","SA","1.日中の排泄","2.夜間の排泄","3.食事の介助（食べる時）","4.入浴・洗身","5.身だしなみ（洗顔・歯磨き等）","6.衣服の着脱","7.屋内の移乗・移動","8.外出の付き添い、送迎等","9.服薬","10.認知症状への対応","11.医療面での対応（経管栄養、ストーマ 等）","12.食事の準備（調理等）","13.その他の家事（掃除、洗濯、買い物 等）","14.金銭管理や生活面に必要な諸手続き","15.その他","16.不安に感じていることは、特にない","17.主な介護者に確認しないと、わからない","年齢","性別コード","二次判定結果","現在の状況","サービス利用の組み合わせ","訪問系_合計回数","通所系_合計回数","短期系_合計回数","障害高齢者自立度","認知症高齢者自立度","認11_本人年齢","認12_二次判定結果","認13_二次判定結果2","認14_二次判定結果3","認15_二次判定結果4","認16_二次判定結果5","認17_二次判定結果6","認18_二次判定結果7","認19_サービス利用の組み合わせ","認20_訪問系の利用の有無","認21_通所系の利用の有無（定期巡回を除く）","認22_短期系の利用の有無（定期巡回を除く）","認23_訪問系の利用回数","認24_通所系の利用回数","認25_短期系の利用回数","認26_認知症高齢者自立度","認27_認知症高齢者自立度2","認28_認知症高齢者自立度3","認29_認知症高齢者自立度4","認30_介護者の就労継続の可否に係る意識","認31_介護者の年齢","認32_介護者の勤務形態","認19_サービス利用の組み合わせ2","問1_介護者の勤務形態2","問1_介護者の勤務形態3","認30_介護者の就労継続の可否に係る意識2","認3_二次判定結果8","被保険者番号","認定申請日","枝番","申請種別コード","取下区分コード","被保険者資格区分コード","申請代行区分コード","年齢","生年月日","性別コード","被保険者カナ氏名","被保険者漢字氏名","郵便番号","住所","電話番号","施設名称","所在地","前回申請種別コード","前回認定審査会結果","前回有効期間開始","前回有効期間終了","主治医医療機関コード","主治医コード","コメント等","意見書依頼日","意見書入手日","意見書｢短期記憶｣","意見書｢認知能力｣","意見書｢伝達能力｣","意見書｢食事行為｣","意見書｢認知症高齢者の\n日常生活自立度｣","調査依頼日","調査実施日","委託区分","指定居宅介護支援事業者等コード","認定調査員コード","認定調査員資格コード","一次判定日","一次判定結果","一次判定結果(基準時間の積み足し後)","要介護認定等基準時間(基準時間の積み足し以外)","要介護認定等基準時間(食事)","要介護認定等基準時間(排泄)","要介護認定等基準時間(移動)","要介護認定等基準時間\n(清潔保持)","要介護認定等基準時間\n(間接ケア)","要介護認定等基準時間\n(問題行動)","要介護認定等基準時間(機能訓練)","要介護認定等基準時間(医療関連)","要介護認定等基準時間(積み足し時間)","中間評価項目得点　第１群","中間評価項目得点　第２群","中間評価項目得点　第３群","中間評価項目得点　第４群","中間評価項目得点　第５群","一次判定警告コード","参考指標(認知症高齢者の日常生活自立度の蓋然性評価％)","廃用の程度から推定される給付区分","状態の安定性(認知機能・廃用の程度の評価結果)","審査会資料作成日","審査会予定日","合議体コード","審査会資料番号","二次判定日","二次判定結果","認定有効期間(開始)","認定有効期間(終了)","特定疾病コード","要介護１の場合の状態像","審査会意見","審査会意見有無","現在のサービス区分コード","現在の状況","訪問介護(ホームヘルプサービス)","訪問入浴介護","訪問看護","訪問リハビリテーション","居宅療養管理指導","通所介護(デイサービス)","通所リハビリテーション","短期入所生活介護(ショートステイ)","短期入所療養介護","特定施設入居者生活介護","福祉用具貸与","特定福祉用具販売","住宅改修(介護給付)","夜間対応型訪問介護","認知症対応型通所介護","小規模多機能型居宅介護","認知症対応型共同生活介護(グループホーム)","地域密着型特定施設入居者生活介護","地域密着型介護老人福祉施設入所者生活介護","介護予防訪問介護(ホームヘルプサービス)","介護予防訪問入浴介護","介護予防訪問看護","介護予防訪問リハビリテーション","介護予防居宅療養管理指導","介護予防通所介護(デイサービス)","介護予防通所リハビリテーション","介護予防短期入所生活介護(ショートステイ)","介護予防短期入所療養介護","介護予防特定施設入居者生活介護","介護予防福祉用具貸与","特定介護予防福祉用具販売","住宅改修(予防給付)","介護予防認知症対応型通所介護","介護予防小規模多機能型居宅介護","介護予防認知症対応型共同生活介護(グループホーム)","麻痺(左-上肢)","麻痺(右-上肢)","麻痺(左-下肢)","麻痺(右-下肢)","麻痺(その他)","拘縮(肩関節)","拘縮(股関節)","拘縮(膝関節)","拘縮(その他)","寝返り","起き上がり","座位保持","両足での立位","歩行","立ち上がり","片足での立位","洗身","つめ切り","視力","聴力","移乗","移動","えん下","食事摂取","排尿","排便","口腔清潔","洗顔","整髪","上衣の着脱","ズボン等の着脱","外出頻度","意志の伝達","毎日の日課を理解","生年月日をいう","短期記憶","自分の名前をいう","今の季節を理解","場所の理解","徘徊","外出して戻れない","被害的","作話","感情が不安定","昼夜逆転","同じ話をする","大声を出す","介護に抵抗","落ち着きなし","一人で出たがる","収集癖","物や衣類を壊す","ひどい物忘れ","独り言・独り笑い","自分勝手に行動する","話がまとまらない","薬の内服","金銭の管理","日常の意志決定","集団への不適応","買い物","簡単な調理","点滴の管理","中心静脈栄養","透析","ストーマの処置","酸素療法","レスピレーター","気管切開の処置","疼痛の看護","経管栄養","モニター測定","じょくそうの処置","カテーテル","障害高齢者自立度","認知症高齢者自立度","調査依頼予定日","調査実施予定日","意見書依頼予定日","意見書入手予定日","一次判定実施予定日","審査会資料作成予定日","二次判定実施予定日","ステージナンバー","出力区分","データ状態","送信日時","送信No","データ作成区分","作成日時","作成ユーザー","作成画面ID","作成バージョン","更新日時","更新ユーザー","更新画面ID","更新バージョン","申請区分（申請時）コード","定期巡回・随時対応型訪問介護看護","看護小規模多機能型居宅介護"]

{"sheet":"集計結果（実数）","index":4,"n_rows":0,"n_cols":0,"rows_kept":0,"cut":false,"hidden":false,"merged":[]}

{"sheet":"集計結果（％）","index":5,"n_rows":0,"n_cols":0,"rows_kept":0,"cut":false,"hidden":false,"merged":[]}

{"sheet":"グラフ","index":6,"n_rows":3210,"n_cols":2,"rows_kept":3210,"cut":false,"hidden":false,"merged":[]}
[]
[]
[null,"図表1-1　施設等検討の状況"]
["chart1"]
[]
[]
[]
[]
[]
[]
[]
[]
[]
[]
[null,"図表1-2　要介護度別・施設等検討の状況"]
["chart2"]
[]
[]
[]
[]
[]
[]
[]
[]
[]
[]
[null,"図表1-3　世帯類型別・施設等検討の状況"]
["chart3"]
[]
[]
[]
[]
[]
[]
[]
[]
[]
[]
[null,"図表1-4　要介護度別・介護者が不安に感じる介護"]
["chart4"]
[]
[]
[]
[]
[]
[]
[]
[]
[]
[]
[]
[]
[]
[]
[]
[]
[]
[]
[]
[]
[]
[]
[]
[]
[]
[]
[]
[]
[]
[]
[]
[]
[]
[]
[]
[]
[]
[]
[]
[]
[null,"図表1-5　認知症自立度別・介護者が不安に感じる介護"]
["chart5"]
[]
[]
[]
[]
[]
[]
[]
[]
[]
[]
[]
[]
[]
[]
[]
[]
[]
[]
[]
[]
[]
[]
[]
[]
[]
[]
[]
[]
[]
[]
[]
[]
[]
[]
[]
[]
[]
[]
[]
[]
[null,"図表1-6　要介護度別・サービス利用の組み合わせ"]
["chart6"]
[]
[]
[]
[]
[]
[]
[]
[]
[]
[]
[]
[]
[]
[]
[]
[]
[]
[]
[]
[]
[]
[]
[]
[]
[]
[]
[]
[]
[]
[]
[null,"図表1-7　認知症自立度別・サービス利用の組み合わせ"]
["chart7"]
[]
[]
[]
[]
[]
[]
[]
[]
[]
[]
[]
[]
[]
[]
[]
[]
[]
[]
[]
[]
[]
[]
[]
[]
[]
[]
[]
[]
[]
[]
[null,"図表1-8　要介護度別・サービス利用の組み合わせ"]
["chart8"]
[]
[]
[]
[]
[]
[]
[]
[]
[]
[]
[null,"図表1-9　認知症自立度別・サービス利用の組み合わせ"]
["chart9"]
[]
[]
[]
[]
[]
[]
[]
[]
[]
[]
[null,"図表1-10　サービス利用の組み合わせと施設等検討の状況（要介護３以上）"]
["chart10"]
[]
[]
[]
[]
[]
[]
[]
[]
[]
[]
[]
[]
[null,"図表1-11　サービス利用の組み合わせと施設等検討の状況（要介護４以上）"]
["chart11"]
[]
[]
[]
[]
[]
[]
[]
[]
[]
[]
[]
[]
[null,"図表1-12　サービス利用の組み合わせと施設等検討の状況（認知症Ⅲ以上）"]
["chart12"]
[]
[]
[]
[]
[]
[]
[]
[]
[]
[]
[]
[]
[null,"図表1-13　サービス利用の組み合わせと施設等検討の状況（要介護３以上）"]
["chart13"]
[]
[]
[]
[]
[]
[]
[]
[]
[]
[]
[null,"図表1-14　サービス利用の組み合わせと施設等検討の状況（要介護４以上）"]
["chart14"]
[]
[]
[]
[]
[]
[]
[]
[]
[]
[]
[null,"図表1-15　サービス利用の組み合わせと施設等検討の状況（認知症Ⅲ以上）"]
["chart15"]
[]
[]
[]
[]
[]
[]
[]
[]
[]
[]
[null,"図表1-16　サービス利用の組み合わせ別・介護者が不安を感じる介護（要介護３以上）"]
["chart16"]
[]
[]
[]
[]
[]
[]
[]
[]
[]
[]
[]
[]
[]
[]
[]
[]
[]
[]
[]
[]
[]
[]
[]
[]
[]
[]
[]
[]
[]
[]
[]
[]
[]
[]
[]
[]
[]
[]
[]
[]
[null,"図表1-17　サービス利用の組み合わせ別・介護者が不安を感じる介護（認知症Ⅲ以上）"]
["chart17"]
[]
[]
[]
[]
[]
[]
[]
[]
[]
[]
[]
[]
[]
[]
[]
[]
[]
[]
[]
[]
[]
[]
[]
[]
[]
[]
[]
[]
[]
[]
[]
[]
[]
[]
[]
[]
[]
[]
[]
[]
[null,"図表1-18　サービス利用回数と施設等検討の状況（訪問系、要介護３以上）"]
["chart18"]
[]
[]
[]
[]
[]
[]
[]
[]
[]
[]
[null,"図表1-19　サービス利用回数と施設等検討の状況（訪問系、認知症Ⅲ以上）"]
["chart19"]
[]
[]
[]
[]
[]
[]
[]
[]
[]
[]
[null,"図表1-20　サービス利用回数と施設等検討の状況（通所系、要介護３以上）"]
["chart20"]
[]
[]
[]
[]
[]
[]
[]
[]
[]
[]
[null,"図表1-21　サービス利用回数と施設等検討の状況（通所系、認知症Ⅲ以上）"]
["chart21"]
[]
[]
[]
[]
[]
[]
[]
[]
[]
[]
[null,"図表1-22　サービス利用回数と施設等検討の状況（短期系、要介護３以上）"]
["chart22"]
[]
[]
[]
[]
[]
[]
[]
[]
[]
[]
[null,"図表1-23　サービス利用回数と施設等検討の状況（短期系、認知症Ⅲ以上）"]
["chart23"]
[]
[]
[]
[]
[]
[]
[]
[]
[]
[]
[null,"図表1-24　サービス利用回数別・介護者が不安を感じる介護（訪問系、要介護３以上）"]
["chart24"]
[]
[]
[]
[]
[]
[]
[]
[]
[]
[]
[]
[]
[]
[]
[]
[]
[]
[]
[]
[]
[]
[]
[]
[]
[]
[]
[]
[]
[]
[]
[]
[]
[]
[]
[]
[]
[]
[]
[]
[]
[null,"図表1-25　サービス利用回数別・介護者が不安を感じる介護（訪問系、認知症Ⅲ以上）"]
["chart25"]
[]
[]
[]
[]
[]
[]
[]
[]
[]
[]
[]
[]
[]
[]
[]
[]
[]
[]
[]
[]
[]
[]
[]
[]
[]
[]
[]
[]
[]
[]
[]
[]
[]
[]
[]
[]
[]
[]
[]
[]
[null,"図表1-26　サービス利用回数別・介護者が不安を感じる介護（通所系、要介護３以上）"]
["chart26"]
[]
[]
[]
[]
[]
[]
[]
[]
[]
[]
[]
[]
[]
[]
[]
[]
[]
[]
[]
[]
[]
[]
[]
[]
[]
[]
[]
[]
[]
[]
[]
[]
[]
[]
[]
[]
[]
[]
[]
[]
[null,"図表1-27　サービス利用回数別・介護者が不安を感じる介護（通所系、認知症Ⅲ以上）"]
["chart27"]
[]
[]
[]
[]
[]
[]
[]
[]
[]
[]
[]
[]
[]
[]
[]
[]
[]
[]
[]
[]
[]
[]
[]
[]
[]
[]
[]
[]
[]
[]
[]
[]
[]
[]
[]
[]
[]
[]
[]
[]
[null,"図表1-28　サービス利用回数別・介護者が不安を感じる介護（短期系、要介護３以上）"]
["chart28"]
[]
[]
[]
[]
[]
[]
[]
[]
[]
[]
[]
[]
[]
[]
[]
[]
[]
[]
[]
[]
[]
[]
[]
[]
[]
[]
[]
[]
[]
[]
[]
[]
[]
[]
[]
[]
[]
[]
[]
[]
[null,"図表1-29　サービス利用回数別・介護者が不安を感じる介護（短期系、認知症Ⅲ以上）"]
["chart29"]
[]
[]
[]
[]
[]
[]
[]
[]
[]
[]
[]
[]
[]
[]
[]
[]
[]
[]
[]
[]
[]
[]
[]
[]
[]
[]
[]
[]
[]
[]
[]
[]
[]
[]
[]
[]
[]
[]
[]
[]
[null,"図表2-1　就労状況別・世帯類型"]
["chart30"]
[]
[]
[]
[]
[]
[]
[]
[]
[]
[]
[]
[]
[null,"図表2-2　就労状況別・主な介護者の本人との関係"]
["chart31"]
[]
[]
[]
[]
[]
[]
[]
[]
[]
[]
[]
[]
[null,"図表2-3　就労状況別・主な介護者の年齢"]
["chart32"]
[]
[]
[]
[]
[]
[]
[]
[]
[]
[]
[]
[]
[null,"図表2-4　就労状況別・主な介護者の性別"]
["chart33"]
[]
[]
[]
[]
[]
[]
[]
[]
[]
[]
[]
[]
[null,"図表2-5　就労状況別・要介護度"]
["chart34"]
[]
[]
[]
[]
[]
[]
[]
[]
[]
[]
[]
[]
[null,"図表2-6　就労状況別・認知症自立度"]
["chart35"]
[]
[]
[]
[]
[]
[]
[]
[]
[]
[]
[]
[]
[null,"図表2-7　就労状況別・家族等による介護の頻度"]
["chart36"]
[]
[]
[]
[]
[]
[]
[]
[]
[]
[]
[]
[]
[]
[]
[]
[]
[]
[]
[]
[]
[null,"図表2-8　就労状況別・主な介護者が行っている介護"]
["chart37"]
[]
[]
[]
[]
[]
[]
[]
[]
[]
[]
[]
[]
[]
[]
[]
[]
[]
[]
[]
[]
[]
[]
[]
[]
[]
[]
[]
[]
[]
[]
[]
[]
[]
[]
[]
[]
[]
[]
[]
[]
[null,"図表2-9　就労状況別・就労継続見込み"]
["chart38"]
[]
[]
[]
[]
[]
[]
[]
[]
[]
[]
[]
[]
[null,"図表2-10　要介護度別・就労継続見込み（フルタイム勤務＋パートタイム勤務）"]
["chart39"]
[]
[]
[]
[]
[]
[]
[]
[]
[]
[]
[]
[]
[null,"図表2-11　認知症自立度別・就労継続見込み（フルタイム勤務＋パートタイム勤務）"]
["chart40"]
[]
[]
[]
[]
[]
[]
[]
[]
[]
[]
[]
[]
[null,"図表2-12　就労状況別・介護保険サービス利用の有無"]
["chart41"]
[]
[]
[]
[]
[]
[]
[]
[]
[]
[]
[]
[]
[null,"図表2-13　就労継続見込み別・介護保険サービス利用の有無（フルタイム勤務＋パートタイム勤務）"]
["chart42"]
[]
[]
[]
[]
[]
[]
[]
[]
[]
[]
[]
[]
[null,"図表2-14　就労継続見込み別のサービス未利用の理由（フルタイム勤務＋パート勤務）"]
["chart43"]
[]
[]
[]
[]
[]
[]
[]
[]
[]
[]
[]
[]
[]
[]
[]
[]
[]
[]
[]
[]
[]
[]
[]
[]
[]
[]
[]
[]
[]
[]
[null,"図表2-15　就労継続見込み別・介護者が不安に感じる介護（フルタイム勤務＋パートタイム勤務）"]
["chart44"]
[]
[]
[]
[]
[]
[]
[]
[]
[]
[]
[]
[]
[]
[]
[]
[]
[]
[]
[]
[]
[]
[]
[]
[]
[]
[]
[]
[]
[]
[]
[]
[]
[]
[]
[]
[]
[]
[]
[]
[]
[null,"図表2-16　就労状況別・サービス利用の組み合わせ"]
["chart45"]
[]
[]
[]
[]
[]
[]
[]
[]
[]
[]
[]
[]
[null,"図表2-17　サービス利用の組み合わせ別・就労継続見込み（要介護２以上、フルタイム勤務＋パートタイム勤務）"]
["chart46"]
[]
[]
[]
[]
[]
[]
[]
[]
[]
[]
[]
[]
[null,"図表2-18　サービス利用の組み合わせ別・就労継続見込み（認知症自立度Ⅱ以上、フルタイム勤務＋パートタイム勤務）"]
["chart47"]
[]
[]
[]
[]
[]
[]
[]
[]
[]
[]
[]
[]
[null,"図表2-19_1　利用している保険外の支援・サービス（フルタイム勤務）"]
["chart48_1"]
[]
[]
[]
[]
[]
[]
[]
[]
[]
[]
[]
[]
[]
[]
[]
[]
[]
[]
[]
[]
[]
[]
[]
[]
[null,"図表2-19_2　在宅生活の継続に必要と感じる支援・サービス（フルタイム勤務）"]
["chart48_2"]
[]
[]
[]
[]
[]
[]
[]
[]
[]
[]
[]
[]
[]
[]
[]
[]
[]
[]
[]
[]
[]
[]
[]
[]
[null,"図表2-20　就労状況別・訪問診療の利用の有無"]
["chart49"]
[]
[]
[]
[]
[]
[]
[]
[]
[]
[]
[]
[]
[null,"図表2-21　就労状況別・施設等検討の状況"]
["chart50"]
[]
[]
[]
[]
[]
[]
[]
[]
[]
[]
[]
[]
[null,"図表2-22　就労継続見込み別・施設等検討の状況（要介護２以上、フルタイム勤務＋パートタイム勤務）"]
["chart51"]
[]
[]
[]
[]
[]
[]
[]
[]
[]
[]
[]
[]
[null,"図表2-23　就労状況別・介護のための働き方の調整"]
["chart52"]
[]
[]
[]
[]
[]
[]
[]
[]
[]
[]
[]
[]
[]
[]
[]
[]
[]
[]
[]
[]
[]
[]
[]
[]
[]
[]
[]
[]
[]
[]
[null,"図表2-24　就労継続見込み別・介護のための働き方の調整（フルタイム勤務＋パートタイム勤務）"]
["chart53"]
[]
[]
[]
[]
[]
[]
[]
[]
[]
[]
[]
[]
[]
[]
[]
[]
[]
[]
[]
[]
[]
[]
[]
[]
[]
[]
[]
[]
[]
[]
[null,"図表2-25　就労状況別・効果的な勤め先からの支援"]
["chart54"]
[]
[]
[]
[]
[]
[]
[]
[]
[]
[]
[]
[]
[]
[]
[]
[]
[]
[]
[]
[]
[]
[]
[]
[]
[]
[]
[]
[]
[]
[]
[]
[]
[]
[]
[]
[]
[]
[]
[]
[]
[null,"図表2-26　就労継続見込み別・効果的な勤め先からの支援（フルタイム勤務＋パートタイム勤務）"]
["chart55"]
[]
[]
[]
[]
[]
[]
[]
[]
[]
[]
[]
[]
[]
[]
[]
[]
[]
[]
[]
[]
[]
[]
[]
[]
[]
[]
[]
[]
[]
[]
[]
[]
[]
[]
[]
[]
[]
[]
[]
[]
[null,"図表3-1　保険外の支援・サービスの利用状況"]
["chart56"]
[]
[]
[]
[]
[]
[]
[]
[]
[]
[]
[]
[]
[]
[]
[]
[]
[]
[]
[]
[]
[null,"図表3-2　在宅生活の継続に必要と感じる支援・サービス"]
["chart57"]
[]
[]
[]
[]
[]
[]
[]
[]
[]
[]
[]
[]
[]
[]
[]
[]
[]
[]
[]
[]
[null,"図表3-3　世帯類型別・保険外の支援・サービスの利用状況"]
["chart58"]
[]
[]
[]
[]
[]
[]
[]
[]
[]
[]
[]
[]
[]
[]
[]
[]
[]
[]
[]
[]
[]
[]
[]
[]
[]
[]
[]
[]
[]
[]
[null,"図表3-4　世帯類型別・在宅生活の継続に必要と感じる支援・サービス"]
["chart59"]
[]
[]
[]
[]
[]
[]
[]
[]
[]
[]
[]
[]
[]
[]
[]
[]
[]
[]
[]
[]
[]
[]
[]
[]
[]
[]
[]
[]
[]
[]
[null,"図表3-5　要介護度別・保険外の支援・サービスの利用状況"]
["chart60"]
[]
[]
[]
[]
[]
[]
[]
[]
[]
[]
[]
[]
[]
[]
[]
[]
[]
[]
[]
[]
[]
[]
[]
[]
[]
[]
[]
[]
[]
[]
[null,"図表3-6　要介護度別・保険外の支援・サービスの利用状況（単身世帯）"]
["chart61"]
[]
[]
[]
[]
[]
[]
[]
[]
[]
[]
[]
[]
[]
[]
[]
[]
[]
[]
[]
[]
[]
[]
[]
[]
[]
[]
[]
[]
[]
[]
[null,"図表3-7　要介護度別・保険外の支援・サービスの利用状況（夫婦のみ世帯）"]
["chart62"]
[]
[]
[]
[]
[]
[]
[]
[]
[]
[]
[]
[]
[]
[]
[]
[]
[]
[]
[]
[]
[]
[]
[]
[]
[]
[]
[]
[]
[]
[]
[null,"図表3-8　要介護度別・保険外の支援・サービスの利用状況（その他世帯）"]
["chart63"]
[]
[]
[]
[]
[]
[]
[]
[]
[]
[]
[]
[]
[]
[]
[]
[]
[]
[]
[]
[]
[]
[]
[]
[]
[]
[]
[]
[]
[]
[]
[null,"図表3-9　要介護度別・在宅生活の継続に必要と感じる支援・サービス"]
["chart64"]
[]
[]
[]
[]
[]
[]
[]
[]
[]
[]
[]
[]
[]
[]
[]
[]
[]
[]
[]
[]
[]
[]
[]
[]
[]
[]
[]
[]
[]
[]
[null,"図表3-10　要介護度別・在宅生活の継続に必要と感じる支援・サービス（単身世帯）"]
["chart65"]
[]
[]
[]
[]
[]
[]
[]
[]
[]
[]
[]
[]
[]
[]
[]
[]
[]
[]
[]
[]
[]
[]
[]
[]
[]
[]
[]
[]
[]
[]
[null,"図表3-11　要介護度別・在宅生活の継続に必要と感じる支援・サービス（夫婦のみ世帯）"]
["chart66"]
[]
[]
[]
[]
[]
[]
[]
[]
[]
[]
[]
[]
[]
[]
[]
[]
[]
[]
[]
[]
[]
[]
[]
[]
[]
[]
[]
[]
[]
[]
[null,"図表3-12　要介護度別・在宅生活の継続に必要と感じる支援・サービス（その他世帯）"]
["chart67"]
[]
[]
[]
[]
[]
[]
[]
[]
[]
[]
[]
[]
[]
[]
[]
[]
[]
[]
[]
[]
[]
[]
[]
[]
[]
[]
[]
[]
[]
[]
[null,"図表4-1　要介護度別・世帯類型"]
["chart68"]
[]
[]
[]
[]
[]
[]
[]
[]
[]
[]
[]
[]
[null,"図表4-2　世帯類型別・要介護度"]
["chart69"]
[]
[]
[]
[]
[]
[]
[]
[]
[]
[]
[]
[]
[null,"図表4-3　世帯類型別・家族等による介護の頻度"]
["chart70"]
[]
[]
[]
[]
[]
[]
[]
[]
[]
[]
[]
[]
[null,"図表4-4　要介護度別・家族等による介護の頻度（単身世帯）"]
["chart71"]
[]
[]
[]
[]
[]
[]
[]
[]
[]
[]
[]
[]
[null,"図表4-5　要介護度別・家族等による介護の頻度（夫婦のみ世帯）"]
["chart72"]
[]
[]
[]
[]
[]
[]
[]
[]
[]
[]
[]
[]
[null,"図表4-6　要介護度別・家族等による介護の頻度（その他世帯）"]
["chart73"]
[]
[]
[]
[]
[]
[]
[]
[]
[]
[]
[]
[]
[null,"図表4-7　要介護度別・サービス利用の組み合わせ（単身世帯）"]
["chart74"]
[]
[]
[]
[]
[]
[]
[]
[]
[]
[]
[]
[]
[null,"図表4-8　要介護度別・サービス利用の組み合わせ（夫婦のみ世帯）"]
["chart75"]
[]
[]
[]
[]
[]
[]
[]
[]
[]
[]
[]
[]
[null,"図表4-9　要介護度別・サービス利用の組み合わせ（その他世帯）"]
["chart76"]
[]
[]
[]
[]
[]
[]
[]
[]
[]
[]
[]
[]
[null,"図表4-10　認知症自立度別・サービス利用の組み合わせ（単身世帯）"]
["chart77"]
[]
[]
[]
[]
[]
[]
[]
[]
[]
[]
[]
[]
[null,"図表4-11　認知症自立度別・サービス利用の組み合わせ（夫婦のみ世帯）"]
["chart78"]
[]
[]
[]
[]
[]
[]
[]
[]
[]
[]
[]
[]
[null,"図表4-12　認知症自立度別・サービス利用の組み合わせ（その他世帯）"]
["chart79"]
[]
[]
[]
[]
[]
[]
[]
[]
[]
[]
[]
[]
[null,"図表4-13　世帯類型別・施設等検討の状況（全要介護度）"]
["chart80"]
[]
[]
[]
[]
[]
[]
[]
[]
[]
[]
[]
[]
[null,"図表4-14　要介護度別・施設等検討の状況（単身世帯）"]
["chart81"]
[]
[]
[]
[]
[]
[]
[]
[]
[]
[]
[]
[]
[null,"図表4-15　要介護度別・施設等検討の状況（夫婦のみ世帯）"]
["chart82"]
[]
[]
[]
[]
[]
[]
[]
[]
[]
[]
[]
[]
[null,"図表4-16　要介護度別・施設等検討の状況（その他世帯）"]
["chart83"]
[]
[]
[]
[]
[]
[]
[]
[]
[]
[]
[]
[]
[null,"図表4-17　認知症自立度別・施設等検討の状況（単身世帯）"]
["chart84"]
[]
[]
[]
[]
[]
[]
[]
[]
[]
[]
[]
[]
[null,"図表4-18　認知症自立度別・施設等検討の状況（夫婦のみ世帯）"]
["chart85"]
[]
[]
[]
[]
[]
[]
[]
[]
[]
[]
[]
[]
[null,"図表4-19　認知症自立度別・施設等検討の状況（その他の世帯）"]
["chart86"]
[]
[]
[]
[]
[]
[]
[]
[]
[]
[]
[]
[]
[null,"図表5-1　主な介護者が行っている介護"]
["chart87"]
[]
[]
[]
[]
[]
[]
[]
[]
[]
[]
[]
[]
[]
[]
[]
[]
[]
[]
[]
[]
[]
[]
[]
[]
[]
[]
[]
[]
[]
[]
[null,"図表5-2　要介護度別・主な介護者が行っている介護"]
["chart88"]
[]
[]
[]
[]
[]
[]
[]
[]
[]
[]
[]
[]
[]
[]
[]
[]
[]
[]
[]
[]
[]
[]
[]
[]
[]
[]
[]
[]
[]
[]
[]
[]
[]
[]
[]
[]
[]
[]
[]
[]
[null,"図表5-3　世帯類型別・主な介護者が行っている介護（要介護３以上）"]
["chart89"]
[]
[]
[]
[]
[]
[]
[]
[]
[]
[]
[]
[]
[]
[]
[]
[]
[]
[]
[]
[]
[]
[]
[]
[]
[]
[]
[]
[]
[]
[]
[]
[]
[]
[]
[]
[]
[]
[]
[]
[]
[null,"図表5-4　訪問診療の利用の有無"]
["chart90"]
[]
[]
[]
[]
[]
[]
[]
[]
[]
[]
[null,"図表5-5　世帯類型別・訪問診療の利用割合"]
["chart91"]
[]
[]
[]
[]
[]
[]
[]
[]
[]
[]
[null,"図表5-6　要介護度別・訪問診療の利用割合"]
["chart92"]
[]
[]
[]
[]
[]
[]
[]
[]
[]
[]
[]
[]
[]
[]
[]
[]
[]
[]
[]
[]
[null,"図表5-7　訪問診療の利用の有無別・サービス利用の組み合わせ（要介護３以上）"]
["chart93"]
[]
[]
[]
[]
[]
[]
[]
[]
[]
[]
[null,"図表5-8　訪問診療の利用の有無別・サービスの利用の有無（訪問系、要介護３以上）"]
["chart94"]
[]
[]
[]
[]
[]
[]
[]
[]
[]
[]
[null,"図表5-9　訪問診療の利用の有無別・サービスの利用の有無（通所系、要介護３以上）"]
["chart95"]
[]
[]
[]
[]
[]
[]
[]
[]
[]
[]
[null,"図表5-10　訪問診療の利用の有無別・サービス利用の有無（短期系、要介護３以上）"]
["chart96"]
[]
[]
[]
[]
[]
[]
[]
[]
[]
[]
[null,"図表6-1　要介護度別のサービス未利用の理由"]
["chart97"]
[]
[]
[]
[]
[]
[]
[]
[]
[]
[]
[]
[]
[]
[]
[]
[]
[]
[]
[]
[]
[]
[]
[]
[]
[]
[]
[]
[]
[]
[]
[null,"図表6-2　要介護度別のサービス未利用の理由（単身世帯）"]
["chart98"]
[]
[]
[]
[]
[]
[]
[]
[]
[]
[]
[]
[]
[]
[]
[]
[]
[]
[]
[]
[]
[]
[]
[]
[]
[]
[]
[]
[]
[]
[]
[null,"図表6-3　要介護度別のサービス未利用の理由（夫婦のみ世帯）"]
["chart99"]
[]
[]
[]
[]
[]
[]
[]
[]
[]
[]
[]
[]
[]
[]
[]
[]
[]
[]
[]
[]
[]
[]
[]
[]
[]
[]
[]
[]
[]
[]
[]
[null,"図表6-4　要介護度別のサービス未利用の理由（その他世帯）"]
["chart100"]
[]
[]
[]
[]
[]
[]
[]
[]
[]
[]
[]
[]
[]
[]
[]
[]
[]
[]
[]
[]
[]
[]
[]
[]
[]
[]
[]
[]
[]
[]
[null,"図表6-5　認知症自立度別のサービス未利用の理由"]
["chart101"]
[]
[]
[]
[]
[]
[]
[]
[]
[]
[]
[]
[]
[]
[]
[]
[]
[]
[]
[]
[]
[]
[]
[]
[]
[]
[]
[]
[]
[]
[]
[null,"図表6-6　認知症自立度別のサービス未利用の理由（単身世帯）"]
["chart102"]
[]
[]
[]
[]
[]
[]
[]
[]
[]
[]
[]
[]
[]
[]
[]
[]
[]
[]
[]
[]
[]
[]
[]
[]
[]
[]
[]
[]
[]
[]
[null,"図表6-7　認知症自立度別のサービス未利用の理由（夫婦のみ世帯）"]
["chart103"]
[]
[]
[]
[]
[]
[]
[]
[]
[]
[]
[]
[]
[]
[]
[]
[]
[]
[]
[]
[]
[]
[]
[]
[]
[]
[]
[]
[]
[]
[]
[null,"図表6-8　認知症自立度別のサービス未利用の理由（その他世帯）"]
["chart104"]
[]
[]
[]
[]
[]
[]
[]
[]
[]
[]
[]
[]
[]
[]
[]
[]
[]
[]
[]
[]
[]
[]
[]
[]
[]
[]
[]
[]
[]
[]
[null,"図表6-9　認知症自立度別の在宅生活の継続に必要と感じる支援・サービス"]
["chart105"]
[]
[]
[]
[]
[]
[]
[]
[]
[]
[]
[]
[]
[]
[]
[]
[]
[]
[]
[]
[]
[]
[]
[]
[]
[]
[]
[]
[]
[]
[]
[null,"図表6-10　認知症自立度別の在宅生活の継続に必要と感じる支援・サービス（単身世帯）"]
["chart106"]
[]
[]
[]
[]
[]
[]
[]
[]
[]
[]
[]
[]
[]
[]
[]
[]
[]
[]
[]
[]
[]
[]
[]
[]
[]
[]
[]
[]
[]
[]
[null,"図表6-11　認知症自立度別の在宅生活の継続に必要と感じる支援・サービス（夫婦のみ世帯）"]
["chart107"]
[]
[]
[]
[]
[]
[]
[]
[]
[]
[]
[]
[]
[]
[]
[]
[]
[]
[]
[]
[]
[]
[]
[]
[]
[]
[]
[]
[]
[]
[]
[null,"図表6-12　認知症自立度別の在宅生活の継続に必要と感じる支援・サービス（その他世帯）"]
["chart108"]
[]
[]
[]
[]
[]
[]
[]
[]
[]
[]
[]
[]
[]
[]
[]
[]
[]
[]
[]
[]
[]
[]
[]
[]
[]
[]
[]
[]
[]
[]
[null,"図表6-13　本人の年齢別・主な介護者の年齢"]
["chart109"]
[]
[]
[]
[]
[]
[]
[]
[]
[]
[]
[]
[]
[null,"図表6-14　要介護度別・抱えている傷病"]
["chart110"]
[]
[]
[]
[]
[]
[]
[]
[]
[]
[]
[]
[]
[]
[]
[]
[]
[]
[]
[]
[]
[]
[]
[]
[]
[]
[]
[]
[]
[]
[]
[]
[]
[]
[]
[]
[]
[]
[]
[]
[]
[null,"図表6-15　訪問診療の利用の有無別・抱えている傷病"]
["chart111"]
[]
[]
[]
[]
[]
[]
[]
[]
[]
[]
[]
[]
[]
[]
[]
[]
[]
[]
[]
[]
[]
[]
[]
[]
[]
[]
[]
[]
[]
[]
[]
[]
[]
[]
[]
[]
[]
[]
[]
[]
[null,"図表1-1　世帯類型（単数回答）"]
["chart112"]
[]
[]
[]
[]
[]
[]
[]
[]
[]
[]
[null,"図表1-2　家族等による介護の頻度（単数回答）"]
["chart113"]
[]
[]
[]
[]
[]
[]
[]
[]
[]
[]
[null,"図表1-3　主な介護者の本人との関係（単数回答）"]
["chart114"]
[]
[]
[]
[]
[]
[]
[]
[]
[]
[]
[]
[]
[]
[null,"図表1-4　主な介護者の性別（単数回答）"]
["chart115"]
[]
[]
[]
[]
[]
[]
[]
[]
[]
[]
[null,"図表1-5　主な介護者の年齢（単数回答）"]
["chart116"]
[]
[]
[]
[]
[]
[]
[]
[]
[]
[]
[]
[]
[]
[]
[]
[]
[]
[]
[]
[]
[null,"図表1-6　主な介護者が行っている介護（複数回答）"]
["chart117"]
[]
[]
[]
[]
[]
[]
[]
[]
[]
[]
[]
[]
[]
[]
[]
[]
[]
[]
[]
[]
[]
[]
[]
[]
[]
[]
[]
[]
[]
[]
[null,"図表1-7　介護のための離職の有無（複数回答）"]
["chart118"]
[]
[]
[]
[]
[]
[]
[]
[]
[]
[]
[]
[]
[]
[]
[]
[]
[]
[]
[]
[]
[null,"図表1-8　保険外の支援・サービスの利用状況（複数回答）"]
["chart119"]
[]
[]
[]
[]
[]
[]
[]
[]
[]
[]
[]
[]
[]
[]
[]
[]
[]
[]
[]
[]
[]
[]
[]
[]
[]
[]
[]
[]
[]
[]
[null,"図表1-9　在宅生活の継続のために充実が必要な支援・サービス（複数回答）"]
["chart120"]
[]
[]
[]
[]
[]
[]
[]
[]
[]
[]
[]
[]
[]
[]
[]
[]
[]
[]
[]
[]
[]
[]
[]
[]
[]
[]
[]
[]
[]
[]
[null,"図表1-10　施設等検討の状況（単数回答）"]
["chart121"]
[]
[]
[]
[]
[]
[]
[]
[]
[]
[]
[]
[null,"図表1-11　本人が抱えている傷病（複数回答）"]
["chart122"]
[]
[]
[]
[]
[]
[]
[]
[]
[]
[]
[]
[]
[]
[]
[]
[]
[]
[]
[]
[]
[]
[]
[]
[]
[]
[]
[]
[]
[]
[]
[]
[]
[]
[]
[]
[]
[]
[]
[null,"図表1-12　訪問診療の利用の有無（単数回答）"]
["chart123"]
[]
[]
[]
[]
[]
[]
[]
[]
[]
[]
[]
[null,"図表1-13　介護保険サービスの利用の有無（単数回答）"]
["chart124"]
[]
[]
[]
[]
[]
[]
[]
[]
[]
[]
[]
[null,"図表1-14　介護保険サービスの未利用の理由（複数回答）"]
["chart125"]
[]
[]
[]
[]
[]
[]
[]
[]
[]
[]
[]
[]
[]
[]
[]
[]
[]
[]
[]
[]
[]
[]
[]
[]
[]
[]
[]
[]
[]
[]
[null,"図表2-1　主な介護者の勤務形態（単数回答）"]
["chart126"]
[]
[]
[]
[]
[]
[]
[]
[]
[]
[]
[null,"図表2-2　主な介護者の働き方の調整状況（複数回答）"]
["chart127"]
[]
[]
[]
[]
[]
[]
[]
[]
[]
[]
[]
[]
[]
[]
[]
[]
[]
[]
[]
[]
[]
[]
[]
[]
[]
[null,"図表2-3　就労の継続に向けて効果的であると考えられる勤め先からの支援（複数回答）"]
["chart128"]
[]
[]
[]
[]
[]
[]
[]
[]
[]
[]
[]
[]
[]
[]
[]
[]
[]
[]
[]
[]
[]
[]
[]
[]
[]
[]
[]
[]
[]
[]
[null,"図表2-4　主な介護者の就労継続の可否に係る意識（単数回答）"]
["chart129"]
[]
[]
[]
[]
[]
[]
[]
[]
[]
[]
[]
[]
[null,"図表2-5　今後の在宅生活の継続に向けて、主な介護者が不安に感じる介護（複数回答）"]
["chart130"]
[]
[]
[]
[]
[]
[]
[]
[]
[]
[]
[]
[]
[]
[]
[]
[]
[]
[]
[]
[]
[]
[]
[]
[]
[]
[]
[]
[]
[]
[]
[null,"図表3-1　年齢"]
["chart132"]
[]
[]
[]
[]
[]
[]
[]
[]
[]
[]
[]
[]
[]
[]
[]
[]
[]
[]
[]
[]
[null,"図表3-2　性別"]
["chart133"]
[]
[]
[]
[]
[]
[]
[]
[]
[]
[]
[null,"図表3-3　二次判定結果"]
["chart134"]
[]
[]
[]
[]
[]
[]
[]
[]
[]
[]
[]
[]
[]
[]
[]
[]
[]
[]
[]
[]
[]
[]
[]
[]
[]
[]
[]
[]
[]
[]
[null,"図表3-4　サービス利用の組み合わせ"]
["chart135"]
[]
[]
[]
[]
[]
[]
[]
[]
[]
[]
[]
[]
[]
[]
[]
[]
[]
[]
[]
[]
[]
[]
[]
[]
[]
[]
[]
[]
[]
[]
[null,"図表3-5　サービスの利用回数（訪問系）"]
["chart136"]
[]
[]
[]
[]
[]
[]
[]
[]
[]
[]
[]
[]
[]
[]
[]
[]
[]
[]
[]
[]
[]
[]
[]
[]
[]
[]
[]
[]
[null,"図表3-6　サービスの利用回数（通所系）"]
["chart137"]
[]
[]
[]
[]
[]
[]
[]
[]
[]
[]
[]
[]
[]
[]
[]
[]
[]
[]
[]
[]
[null,"図表3-7　サービスの利用回数（短期系）"]
["chart138"]
[]
[]
[]
[]
[]
[]
[]
[]
[]
[]
[]
[]
[]
[]
[]
[]
[]
[]
[]
[]
[null,"図表3-8　障害高齢者の日常生活自立度"]
["chart139"]
[]
[]
[]
[]
[]
[]
[]
[]
[]
[]
[]
[]
[]
[]
[]
[]
[]
[]
[]
[]
[null,"図表3-9　認知症高齢者の日常生活自立度"]
["chart140"]

{"sheet":"Word文書(単純)","index":7,"n_rows":158,"n_cols":4,"rows_kept":158,"cut":false,"hidden":true,"merged":[]}
["記号","意味",null,"【　グラフ名の確認方法　】"]
["#","見出し1"]
["##","見出し2"]
["###","見出し3"]
["####","見出し4"]
["C","グラフ(内容欄には、Sheet「グラフ」の中から、出力したいグラフのグラフ名を入力)"]
["F","参照・センタリング"]
["L","リスト段落"]
["S","行間詰め"]
["R","改行"]
["NP","改ページ"]
[]
[]
[]
[]
[]
[]
["記号","内容"]
["M","目次"]
["P","1 基本調査項目（Ａ票）　　　［P.1］"]
["P","　　(1) 世帯類型　　　［P.1］"]
["P","　　(2) 家族等による介護の頻度　　　［P.1］"]
["P","　　(3) 主な介護者の本人との関係　　　［P.2］"]
["P","　　(4) 主な介護者の性別　　　［P.2］"]
["P","　　(5) 主な介護者の年齢　　　［P.3］"]
["P","　　(6) 主な介護者が行っている介護　　　［P.4］"]
["P","　　(7) 介護のための離職の有無　　　［P.5］"]
["P","　　(8) 保険外の支援・サービスの利用状況　　　［P.5］"]
["P","　　(9) 在宅生活の継続のために充実が必要な支援・サービス　　　［P.6］"]
["P","　　(10) 施設等検討の状況　　　［P.6］"]
["P","　　(11) 本人が抱えている傷病　　　［P.7］"]
["P","　　(12) 訪問診療の利用の有無　　　［P.7］"]
["P","　　(13) 介護保険サービスの利用の有無　　　［P.8］"]
["P","　　(14) 介護保険サービス未利用の理由　　　［P.8］"]
["P","2 主な介護者様用の調査項目（Ｂ票）　　　［P.9］"]
["P","　　(1) 主な介護者の勤務形態　　　［P.9］"]
["P","　　(2) 主な介護者の方の働き方の調整の状況　　　［P.9］"]
["P","　　(3) 就労の継続に向けて効果的であると考えられる勤め先からの支援　　　［P.10］"]
["P","　　(4) 主な介護者の就労継続の可否に係る意識　　　［P.10］"]
["P","　　(5) 今後の在宅生活の継続に向けて、主な介護者が不安に感じる介護　　　［P.11］"]
["P","3 要介護認定データ　　　［P.12］"]
["P","　　(1) 年齢　　　［P.12］"]
["P","　　(2) 性別　　　［P.12］"]
["P","　　(3) 二次判定結果（要介護度）　　　［P.13］"]
["P","　　(4) サービス利用の組み合わせ　　　［P.13］"]
["P","　　(5) 訪問系サービスの合計利用回数　　　［P.14］"]
["P","　　(6) 通所系サービスの合計利用回数　　　［P.15］"]
["P","　　(7) 短期系サービスの合計利用回数　　　［P.16］"]
["P","　　(8) 障害高齢者の日常生活自立度　　　［P.16］"]
["P","　　(9) 認知症高齢者の日常生活自立度　　　［P.17］"]
["R"]
["P","※図表タイトルの「★」は、オプション調査項目であることを示しています。"]
["NP"]
["SC"]
["##","1　 基本調査項目（Ａ票）"]
["####","(1)  世帯類型"]
["F","図表1-1　世帯類型（単数回答）"]
["C","chart112"]
["####","(2)  家族等による介護の頻度"]
["F","図表1-2　家族等による介護の頻度（単数回答）"]
["C","chart113"]
["NP"]
["####","(3)  主な介護者の本人との関係"]
["F","図表1-3　★主な介護者の本人との関係（単数回答）"]
["C","chart114"]
["####","(4)  主な介護者の性別"]
["F","図表1-4　★主な介護者の性別（単数回答）"]
["C","chart115"]
["NP"]
["####","(5)  主な介護者の年齢"]
["F","図表1-5　主な介護者の年齢（単数回答）"]
["C","chart116"]
["NP"]
["####","(6)  主な介護者が行っている介護"]
["F","図表1-6　★主な介護者が行っている介護（複数回答）"]
["C","chart117"]
["NP"]
["####","(7)  介護のための離職の有無"]
["F","図表1-7　介護のための離職の有無（複数回答）"]
["C","chart118"]
["####","(8)  保険外の支援・サービスの利用状況"]
["F","図表1-8　★保険外の支援・サービスの利用状況（複数回答）"]
["C","chart119"]
["NP"]
["####","(9)  在宅生活の継続のために充実が必要な支援・サービス"]
["F","図表1-9　★在宅生活の継続のために充実が必要な支援・サービス（複数回答）"]
["C","chart120"]
["####","(10)  施設等検討の状況"]
["F","図表1-10　施設等検討の状況（単数回答）"]
["C","chart121"]
["NP"]
["####","(11)  本人が抱えている傷病"]
["F","図表1-11　★本人が抱えている傷病（複数回答）"]
["C","chart122"]
["NP"]
["####","(12)  訪問診療の利用の有無"]
["F","図表1-12　★訪問診療の利用の有無（単数回答）"]
["C","chart123"]
["####","(13)  介護保険サービスの利用の有無"]
["F","図表1-13　★介護保険サービスの利用の有無（単数回答）"]
["C","chart124"]
["NP"]
["####","(14)  介護保険サービス未利用の理由"]
["F","図表1-14　★介護保険サービスの未利用の理由（複数回答）"]
["C","chart125"]
["NP"]
["##","2　 主な介護者様用の調査項目（Ｂ票）"]
["####","(1)  主な介護者の勤務形態"]
["F","図表2-1　主な介護者の勤務形態（単数回答）"]
["C","chart126"]
["####","(2)  主な介護者の方の働き方の調整の状況"]
["F","図表2-2　主な介護者の働き方の調整状況（複数回答）"]
["C","chart127"]
["NP"]
["####","(3)  就労の継続に向けて効果的であると考えられる勤め先からの支援"]
["F","図表2-3　★就労の継続に向けて効果的であると考えられる勤め先からの支援（複数回答）"]
["C","chart128"]
["NP"]
["####","(4)  主な介護者の就労継続の可否に係る意識"]
["F","図表2-4　主な介護者の就労継続の可否に係る意識（単数回答）"]
["C","chart129"]
["####","(5)  今後の在宅生活の継続に向けて、主な介護者が不安に感じる介護"]
["F","図表2-5　今後の在宅生活の継続に向けて、主な介護者が不安に感じる介護（複数回答）"]
["C","chart130"]
["NP"]
["##","3　 要介護認定データ"]
["####","(1)  年齢"]
["F","図表3-1　年齢"]
["C","chart132"]
["####","(2)  性別"]
["F","図表3-2　性別"]
["C","chart133"]
["NP"]
["####","(3)  二次判定結果（要介護度）"]
["F","図表3-3　二次判定結果"]
["C","chart134"]
["####","(4)  サービス利用の組み合わせ"]
["F","図表3-4　サービス利用の組み合わせ"]
["C","chart135"]
["NP"]
["####","(5)  訪問系サービスの合計利用回数"]
["F","図表3-5　サービスの利用回数（訪問系）"]
["C","chart136"]
["NP"]
["####","(6)  通所系サービスの合計利用回数"]
["F","図表3-6　サービスの利用回数（通所系）"]
["C","chart137"]
["NP"]
["####","(7)  短期系サービスの合計利用回数"]
["F","図表3-7　サービスの利用回数（短期系）"]
["C","chart138"]
["####","(8)  障害高齢者の日常生活自立度"]
["F","図表3-8　障害高齢者の日常生活自立度"]
["C","chart139"]
["NP"]
["####","(9)  認知症高齢者の日常生活自立度"]
["F","図表3-9　認知症高齢者の日常生活自立度"]
["C","chart140"]

{"sheet":"Word文書(詳細)","index":8,"n_rows":619,"n_cols":13,"rows_kept":619,"cut":false,"hidden":true,"merged":[]}
["記号","意味",null,"【　グラフ名の確認方法　】"]
["#","見出し1"]
["##","見出し2"]
["###","見出し3"]
["####","見出し4"]
["C","グラフ(内容欄には、Sheet「グラフ」の中から、出力したいグラフのグラフ名を入力)"]
["F","参照・センタリング"]
["L","リスト段落"]
["S","行間詰め"]
["R","改行"]
["NP","改ページ"]
[]
[]
[]
[]
[]
[]
["記号","内容"]
["M","目次",null,null,null,null,null,null,null,null,null,null,"目次"]
["P","1 在宅限界点の向上のための支援・サービスの提供体制の検討　　　［P.1］",null,null,null,null,null,null,null,null,null,null,"1 在宅限界点の向上のための支援・サービスの提供体制の検討　　　［P.1］"]
["P","　1.1 集計・分析の狙い　　　［P.1］",null,null,null,null,null,null,null,null,null,null,"　1.1 集計・分析の狙い　　　［P.1］"]
["P","　1.2 集計結果と着目すべきポイント　　　［P.2］",null,null,null,null,null,null,null,null,null,null,"　1.2 集計結果と着目すべきポイント　　　［P.2］"]
["P","　　(1) 基礎集計　　　［P.2］",null,null,null,null,null,null,null,null,null,null,"　　(1) 基礎集計　　　［P.2］"]
["P","　　(2) 要介護度・認知症自立度の重度化に伴う「主な介護者が不安に感じる介護」の変化　　　［P.3］",null,null,null,null,null,null,null,null,null,null,"　　(2) 要介護度・認知症自立度の重度化に伴う「主な介護者が不安に感じる介護」の変化　　　［P.3］"]
["P","　　(3) 要介護度・認知症自立度の重度化に伴う「サービス利用の組み合わせ」の変化　　　［P.6］",null,null,null,null,null,null,null,null,null,null,"　　(3) 要介護度・認知症自立度の重度化に伴う「サービス利用の組み合わせ」の変化　　　［P.6］"]
["P","　　(4) 「サービス利用の組み合わせ」と「施設等検討の状況」の関係　　　［P.10］",null,null,null,null,null,null,null,null,null,null,"　　(4) 「サービス利用の組み合わせ」と「施設等検討の状況」の関係　　　［P.10］"]
["P","　　(5) 「サービス利用の組み合わせ」と「主な介護者が不安に感じる介護」の関係　　　［P.13］",null,null,null,null,null,null,null,null,null,null,"　　(5) 「サービス利用の組み合わせ」と「主な介護者が不安に感じる介護」の関係　　　［P.13］"]
["P","　　(6) 「サービス利用の回数」と「施設等検討の状況」の関係　　　［P.16］",null,null,null,null,null,null,null,null,null,null,"　　(6) 「サービス利用の回数」と「施設等検討の状況」の関係　　　［P.16］"]
["P","　　(7) 「サービス利用の回数」と「主な介護者が不安に感じる介護」の関係　　　［P.20］",null,null,null,null,null,null,null,null,null,null,"　　(7) 「サービス利用の回数」と「主な介護者が不安に感じる介護」の関係　　　［P.20］"]
["P","　1.3 考察　　　［P.27］",null,null,null,null,null,null,null,null,null,null,"　1.3 考察　　　［P.27］"]
["R"]
["P","2 仕事と介護の両立に向けた支援・サービスの提供体制の検討　　　［P.28］",null,null,null,null,null,null,null,null,null,null,"2 仕事と介護の両立に向けた支援・サービスの提供体制の検討　　　［P.28］"]
["P","　2.1 集計・分析の狙い　　　［P.28］",null,null,null,null,null,null,null,null,null,null,"　2.1 集計・分析の狙い　　　［P.28］"]
["P","　2.2 集計結果と着目すべきポイント　　　［P.29］",null,null,null,null,null,null,null,null,null,null,"　2.2 集計結果と着目すべきポイント　　　［P.29］"]
["P","　　(1) 基本集計　　　［P.29］",null,null,null,null,null,null,null,null,null,null,"　　(1) 基本集計　　　［P.29］"]
["P","　　(2) 就労状況別の、主な介護者が行っている介護と就労継続見込み　　　［P.32］",null,null,null,null,null,null,null,null,null,null,"　　(2) 就労状況別の、主な介護者が行っている介護と就労継続見込み　　　［P.32］"]
["P","　　(3) 「介護保険サービスの利用状況」・「主な介護者が不安に感じる介護」と",null,null,null,null,null,null,null,null,null,null,"　　(3) 「介護保険サービスの利用状況」・「主な介護者が不安に感じる介護」と"]
["P","　　　　「就労継続見込み」の関係　　　［P.35］",null,null,null,null,null,null,null,null,null,null,"　　　　「就労継続見込み」の関係　　　［P.35］"]
["P","　　(4) 「サービス利用の組み合わせ」と「就労継続見込み」の関係　　　［P.38］",null,null,null,null,null,null,null,null,null,null,"　　(4) 「サービス利用の組み合わせ」と「就労継続見込み」の関係　　　［P.38］"]
["P","　　(5) 就労状況別の、保険外の支援・サービスの利用状況と、施設等検討の状況　　　［P.39］",null,null,null,null,null,null,null,null,null,null,"　　(5) 就労状況別の、保険外の支援・サービスの利用状況と、施設等検討の状況　　　［P.39］"]
["P","　　(6) 就労状況別の、介護のための働き方の調整と効果的な勤め先からの支援　　　［P.42］",null,null,null,null,null,null,null,null,null,null,"　　(6) 就労状況別の、介護のための働き方の調整と効果的な勤め先からの支援　　　［P.42］"]
["P","　2.3 考察　　　［P.46］",null,null,null,null,null,null,null,null,null,null,"　2.3 考察　　　［P.46］"]
["R"]
["P","3 保険外の支援・サービスを中心とした地域資源の整備の検討　　　［P.47］",null,null,null,null,null,null,null,null,null,null,"3 保険外の支援・サービスを中心とした地域資源の整備の検討　　　［P.47］"]
["P","　3.1 集計・分析の狙い　　　［P.47］",null,null,null,null,null,null,null,null,null,null,"　3.1 集計・分析の狙い　　　［P.47］"]
["P","　3.2 集計結果と着目すべきポイント　　　［P.48］",null,null,null,null,null,null,null,null,null,null,"　3.2 集計結果と着目すべきポイント　　　［P.48］"]
["P","　　(1) 基礎集計　　　［P.48］",null,null,null,null,null,null,null,null,null,null,"　　(1) 基礎集計　　　［P.48］"]
["P","　　(2) 世帯類型別の、保険外の支援・サービスの利用状況と必要と感じる支援・サービス　　　［P.49］",null,null,null,null,null,null,null,null,null,null,"　　(2) 世帯類型別の、保険外の支援・サービスの利用状況と必要と感じる支援・サービス　　　［P.49］"]
["P","　　(3) 「世帯類型」×「要介護度」×「保険外の支援・サービスの利用状況」　　　［P.52］",null,null,null,null,null,null,null,null,null,null,"　　(3) 「世帯類型」×「要介護度」×「保険外の支援・サービスの利用状況」　　　［P.52］"]
["P","　　(4) 「世帯類型」×「要介護度」×「必要と感じる支援・サービス」　　　［P.56］",null,null,null,null,null,null,null,null,null,null,"　　(4) 「世帯類型」×「要介護度」×「必要と感じる支援・サービス」　　　［P.56］"]
["P","　3.3 考察　　　［P.60］",null,null,null,null,null,null,null,null,null,null,"　3.3 考察　　　［P.60］"]
["R"]
["P","4 将来の世帯類型の変化に応じた支援・サービスの提供体制の検討　　　［P.61］",null,null,null,null,null,null,null,null,null,null,"4 将来の世帯類型の変化に応じた支援・サービスの提供体制の検討　　　［P.61］"]
["P","　4.1 集計・分析の狙い　　　［P.61］",null,null,null,null,null,null,null,null,null,null,"　4.1 集計・分析の狙い　　　［P.61］"]
["P","　4.2 集計結果と着目すべきポイント　　　［P.62］",null,null,null,null,null,null,null,null,null,null,"　4.2 集計結果と着目すべきポイント　　　［P.62］"]
["P","　　(1) 基礎集計　　　［P.62］",null,null,null,null,null,null,null,null,null,null,"　　(1) 基礎集計　　　［P.62］"]
["P","　　(2) 「要介護度別・世帯類型別」の「家族等による介護の頻度」　　　［P.63］",null,null,null,null,null,null,null,null,null,null,"　　(2) 「要介護度別・世帯類型別」の「家族等による介護の頻度」　　　［P.63］"]
["P","　　(3) 「要介護度別・認知症自立度別」の「世帯類型別のサービス利用の組み合わせ」　　　［P.65］",null,null,null,null,null,null,null,null,null,null,"　　(3) 「要介護度別・認知症自立度別」の「世帯類型別のサービス利用の組み合わせ」　　　［P.65］"]
["P","　　(4) 「要介護度別・認知症自立度別別」の「世帯類型別の施設等検討の状況」　　　［P.68］",null,null,null,null,null,null,null,null,null,null,"　　(4) 「要介護度別・認知症自立度別別」の「世帯類型別の施設等検討の状況」　　　［P.68］"]
["P","　4.3 考察　　　［P.71］",null,null,null,null,null,null,null,null,null,null,"　4.3 考察　　　［P.71］"]
["R"]
["P","5 医療ニーズの高い在宅療養者を支える支援・サービスの提供体制の検討　　　［P.72］",null,null,null,null,null,null,null,null,null,null,"5 医療ニーズの高い在宅療養者を支える支援・サービスの提供体制の検討　　　［P.72］"]
["P","　5.1 集計・分析の狙い　　　［P.72］",null,null,null,null,null,null,null,null,null,null,"　5.1 集計・分析の狙い　　　［P.72］"]
["P","　5.2 集計結果の傾向　　　［P.73］",null,null,null,null,null,null,null,null,null,null,"　5.2 集計結果の傾向　　　［P.73］"]
["P","　　(1) 基礎集計　　　［P.73］",null,null,null,null,null,null,null,null,null,null,"　　(1) 基礎集計　　　［P.73］"]
["P","　　(2) 訪問診療の利用割合　　　［P.76］",null,null,null,null,null,null,null,null,null,null,"　　(2) 訪問診療の利用割合　　　［P.76］"]
["P","　　(3) 訪問診療の利用の有無別のサービス利用の組み合わせ　　　［P.77］",null,null,null,null,null,null,null,null,null,null,"　　(3) 訪問診療の利用の有無別のサービス利用の組み合わせ　　　［P.77］"]
["P","　　(4) 訪問診療の利用の有無別の訪問系・通所系・短期系サービスの利用の有無　　　［P.78］",null,null,null,null,null,null,null,null,null,null,"　　(4) 訪問診療の利用の有無別の訪問系・通所系・短期系サービスの利用の有無　　　［P.78］"]
["P","　5.3 考察　　　［P.80］",null,null,null,null,null,null,null,null,null,null,"　5.3 考察　　　［P.80］"]
["R"]
["P","6 サービス未利用の理由など　　　［P.81］",null,null,null,null,null,null,null,null,null,null,"6 サービス未利用の理由など　　　［P.81］"]
["P","　6.1 集計・分析の狙い　　　［P.81］",null,null,null,null,null,null,null,null,null,null,"　6.1 集計・分析の狙い　　　［P.81］"]
["P","　6.2 集計結果（参考）　　　［P.82］",null,null,null,null,null,null,null,null,null,null,"　6.2 集計結果（参考）　　　［P.82］"]
["P","　　(1) 要介護度別・世帯類型別のサービス未利用の理由　　　［P.82］",null,null,null,null,null,null,null,null,null,null,"　　(1) 要介護度別・世帯類型別のサービス未利用の理由　　　［P.82］"]
["P","　　(2) 認知症自立度別・世帯類型別のサービス未利用の理由　　　［P.86］",null,null,null,null,null,null,null,null,null,null,"　　(2) 認知症自立度別・世帯類型別のサービス未利用の理由　　　［P.86］"]
["P","　　(3) 認知症自立度別の今後の在宅生活に必要と感じる支援・サービス　　　［P.90］",null,null,null,null,null,null,null,null,null,null,"　　(3) 認知症自立度別の今後の在宅生活に必要と感じる支援・サービス　　　［P.90］"]
["P","　　(4) 本人の年齢別・主な介護者の年齢　　　［P.94］",null,null,null,null,null,null,null,null,null,null,"　　(4) 本人の年齢別・主な介護者の年齢　　　［P.94］"]
["P","　　(5) 要介護度別の抱えている傷病　　　［P.95］",null,null,null,null,null,null,null,null,null,null,"　　(5) 要介護度別の抱えている傷病　　　［P.95］"]
["P","　　(6) 訪問診療の利用の有無別の抱えている傷病　　　［P.96］",null,null,null,null,null,null,null,null,null,null,"　　(6) 訪問診療の利用の有無別の抱えている傷病　　　［P.96］"]
["R"]
["P","※図表タイトルの「★」は、オプション調査項目であることを示しています。",null,null,null,null,null,null,null,null,null,null,"※図表タイトルの「★」は、オプション調査項目であることを示しています。"]
["SC"]
["#","I　介護保険事業計画の策定に向けた検討",null,null,null,null,null,null,null,null,null,null,"I　介護保険事業計画の策定に向けた検討"]
["##","1　 在宅限界点の向上のための支援・サービスの提供体制の検討",null,null,null,null,null,null,null,null,null,null,"1　 在宅限界点の向上のための支援・サービスの提供体制の検討"]
["###","1.1　 集計・分析の狙い",null,null,null,null,null,null,null,null,null,null,"1.1　 集計・分析の狙い"]
["L","ここでは、在宅限界点の向上に向けて必要となる支援・サービスを検討するために、「在宅生活の継続」と「介護者不安の軽減」の２つの視点からの集計を行っています。",null,null,null,null,null,null,null,null,null,null,"ここでは、在宅限界点の向上に向けて必要となる支援・サービスを検討するために、「在宅生活の継続」と「介護者不安の軽減」の２つの視点からの集計を行っています。"]
["L","それぞれ、「どのようなサービス利用パターンの場合」に、「在宅生活を継続することができると考えているのか」、もしくは「介護者の不安が軽減されているのか」を分析するために、「サービス利用パターン」とのクロス集計を行っています。",null,null,null,null,null,null,null,null,null,null,"それぞれ、「どのようなサービス利用パターンの場合」に、「在宅生活を継続することができると考えているのか」、もしくは「介護者の不安が軽減されているのか」を分析するために、「サービス利用パターン」とのクロス集計を行っています。"]
["L","なお、「サービス利用パターン」は、「サービス利用の組み合わせ」と「サービス利用の回数」の２つからなります。",null,null,null,null,null,null,null,null,null,null,"なお、「サービス利用パターン」は、「サービス利用の組み合わせ」と「サービス利用の回数」の２つからなります。"]
["L","また、在宅限界点についての分析を行うという主旨から、多くの集計は要介護３以上、もしくは認知症高齢者の日常生活自立度Ⅲ以上の方に限定して集計をしています。",null,null,null,null,null,null,null,null,null,null,"また、在宅限界点についての分析を行うという主旨から、多くの集計は要介護３以上、もしくは認知症高齢者の日常生活自立度Ⅲ以上の方に限定して集計をしています。"]
["NP"]
["###","1.2　 集計結果と着目すべきポイント",null,null,null,null,null,null,null,null,null,null,"1.2　 集計結果と着目すべきポイント"]
["####","(1)  基礎集計",null,null,null,null,null,null,null,null,null,null,"(1)  基礎集計"]
["L","施設等の検討状況に係る、基礎的な集計を行っています（図表1-1～図表1-3）。",null,null,null,null,null,null,null,null,null,null,"施設等の検討状況に係る、基礎的な集計を行っています（図表1-1～図表1-3）。"]
["L","要介護度の重度化に伴う、施設等検討状況の変化や世帯類型ごとの施設等検討状況についてその状況を確認してください。",null,null,null,null,null,null,null,null,null,null,"要介護度の重度化に伴う、施設等検討状況の変化や世帯類型ごとの施設等検討状況についてその状況を確認してください。"]
["F","図表1-1　施設等検討の状況",null,null,null,null,null,null,null,null,null,null,"図表1-1　施設等検討の状況"]
["C","chart1",null,null,null,null,null,null,null,null,null,null,"chart1"]
["F","図表1-2　要介護度別・施設等検討の状況",null,null,null,null,null,null,null,null,null,null,"図表1-2　要介護度別・施設等検討の状況"]
["C","chart2",null,null,null,null,null,null,null,null,null,null,"chart2"]
["F","図表1-3　世帯類型別・施設等検討の状況",null,null,null,null,null,null,null,null,null,null,"図表1-3　世帯類型別・施設等検討の状況"]
["C","chart3",null,null,null,null,null,null,null,null,null,null,"chart3"]
["####","(2)  要介護度・認知症自立度の重度化に伴う「主な介護者が不安に感じる介護」の変化",null,null,null,null,null,null,null,null,null,null,"(2)  要介護度・認知症自立度の重度化に伴う「主な介護者が不安に感じる介護」の変化"]
["S","【着目すべきポイント】",null,null,null,null,null,null,null,null,null,null,"【着目すべきポイント】"]
["L","要介護度と認知症自立度の重度化に伴う「主な介護者が不安に感じる介護」の変化について、集計分析をしています（図表1-4、図表1-5）。",null,null,null,null,null,null,null,null,null,null,"要介護度と認知症自立度の重度化に伴う「主な介護者が不安に感じる介護」の変化について、集計分析をしています（図表1-4、図表1-5）。"]
["L","ここでの「主な介護者が不安に感じる介護」とは、「現在の生活を継続していくにあたって、主な介護者が不安に感じる介護等」のことです。なお、ここで選択される介護は、現状で行っている介護であるか否かは問われていません。",null,null,null,null,null,null,null,null,null,null,"ここでの「主な介護者が不安に感じる介護」とは、「現在の生活を継続していくにあたって、主な介護者が不安に感じる介護等」のことです。なお、ここで選択される介護は、現状で行っている介護であるか否かは問われていません。"]
["L","ここから、要介護度・認知症自立度別の、主な介護者が不安に感じる介護等を把握することができます。",null,null,null,null,null,null,null,null,null,null,"ここから、要介護度・認知症自立度別の、主な介護者が不安に感じる介護等を把握することができます。"]
["L","また、主な介護者の不安が相対的に大きな介護や、重度化に伴い主な介護者の不安が大きくなる介護等に着目することで、在宅限界点に大きな影響を与えると考えられる「主な介護者が不安に感じる介護」を推測することも可能になります。",null,null,null,null,null,null,null,null,null,null,"また、主な介護者の不安が相対的に大きな介護や、重度化に伴い主な介護者の不安が大きくなる介護等に着目することで、在宅限界点に大きな影響を与えると考えられる「主な介護者が不安に感じる介護」を推測することも可能になります。"]
["S","【留意事項】",null,null,null,null,null,null,null,null,null,null,"【留意事項】"]
["L","なお、「医療面での対応（経管栄養、ストーマ等）」については、特に、実際に行われている割合が低い可能性が高いと考えられます。したがって、仮に選択した回答者が少ない場合でも、実際に医療ニーズのある要介護者を介護しているケースでは、主な介護者の不安は大きいことも考えられます。",null,null,null,null,null,null,null,null,null,null,"なお、「医療面での対応（経管栄養、ストーマ等）」については、特に、実際に行われている割合が低い可能性が高いと考えられます。したがって、仮に選択した回答者が少ない場合でも、実際に医療ニーズのある要介護者を介護しているケースでは、主な介護者の不安は大きいことも考えられます。"]
["L","そのような観点から、在宅限界点に与える影響が過小評価される項目もあると考えられることから、注意が必要です。",null,null,null,null,null,null,null,null,null,null,"そのような観点から、在宅限界点に与える影響が過小評価される項目もあると考えられることから、注意が必要です。"]
["NP"]
["F","図表1-4　要介護度別・介護者が不安に感じる介護",null,null,null,null,null,null,null,null,null,null,"図表1-4　要介護度別・介護者が不安に感じる介護"]
["C","chart4",null,null,null,null,null,null,null,null,null,null,"chart4"]
["NP"]
["F","図表1-5　認知症自立度別・介護者が不安に感じる介護",null,null,null,null,null,null,null,null,null,null,"図表1-5　認知症自立度別・介護者が不安に感じる介護"]
["C","chart5",null,null,null,null,null,null,null,null,null,null,"chart5"]
["NP"]
["####","(3)  要介護度・認知症自立度の重度化に伴う「サービス利用の組み合わせ」の変化",null,null,null,null,null,null,null,null,null,null,"(3)  要介護度・認知症自立度の重度化に伴う「サービス利用の組み合わせ」の変化"]
["S","【着目すべきポイント】",null,null,null,null,null,null,null,null,null,null,"【着目すべきポイント】"]
["L","ここでは、要介護度・認知症自立度別の「サービス利用の組み合わせ」について、集計分析をしています（図表1-6、図表1-7）。",null,null,null,null,null,null,null,null,null,null,"ここでは、要介護度・認知症自立度別の「サービス利用の組み合わせ」について、集計分析をしています（図表1-6、図表1-7）。"]
["L","特に、重度化に伴い、どのようなサービス利用の組み合わせが増加しているかに着目することで、現在在宅で生活をする中重度の要介護者が、どのような組み合わせのサービス利用を増加させることで在宅生活を維持しているかを把握することができます。",null,null,null,null,null,null,null,null,null,null,"特に、重度化に伴い、どのようなサービス利用の組み合わせが増加しているかに着目することで、現在在宅で生活をする中重度の要介護者が、どのような組み合わせのサービス利用を増加させることで在宅生活を維持しているかを把握することができます。"]
["L","さらに、例えば今後の中重度の要介護者の増加に伴い、どのような「サービス利用の組み合わせ」のニーズが大きくなると考えられるかを推測することも可能になります。",null,null,null,null,null,null,null,null,null,null,"さらに、例えば今後の中重度の要介護者の増加に伴い、どのような「サービス利用の組み合わせ」のニーズが大きくなると考えられるかを推測することも可能になります。"]
["S","【留意事項】",null,null,null,null,null,null,null,null,null,null,"【留意事項】"]
["L","ただし、現在利用しているサービスが「地域目標を達成するためのサービス」であるとは限らない点には注意が必要です。",null,null,null,null,null,null,null,null,null,null,"ただし、現在利用しているサービスが「地域目標を達成するためのサービス」であるとは限らない点には注意が必要です。"]
["NP"]
["F","図表1-6　要介護度別・サービス利用の組み合わせ",null,null,null,null,null,null,null,null,null,null,"図表1-6　要介護度別・サービス利用の組み合わせ"]
["C","chart6",null,null,null,null,null,null,null,null,null,null,"chart6"]
["NP"]
["F","図表1-7　認知症自立度別・サービス利用の組み合わせ",null,null,null,null,null,null,null,null,null,null,"図表1-7　認知症自立度別・サービス利用の組み合わせ"]
["C","chart7",null,null,null,null,null,null,null,null,null,null,"chart7"]
["NP"]
["S","【着目すべきポイント】",null,null,null,null,null,null,null,null,null,null,"【着目すべきポイント】"]
["L","ここでは、要介護度・認知症自立度別の「サービス利用の組み合わせ」について、組み合わせのパターンを簡略化した集計分析をしています（図表1-8、図表1-9）。",null,null,null,null,null,null,null,null,null,null,"ここでは、要介護度・認知症自立度別の「サービス利用の組み合わせ」について、組み合わせのパターンを簡略化した集計分析をしています（図表1-8、図表1-9）。"]
["L","具体的には、サービス利用の組み合わせを、「訪問系のみ」のサービス利用と、レスパイト機能をもつ「通所系」および「短期系」のみのサービス利用、さらにその２つを組み合わせた「訪問系を含むサービス利用」の３種類（未利用除く）に分類したものです。",null,null,null,null,null,null,null,null,null,null,"具体的には、サービス利用の組み合わせを、「訪問系のみ」のサービス利用と、レスパイト機能をもつ「通所系」および「短期系」のみのサービス利用、さらにその２つを組み合わせた「訪問系を含むサービス利用」の３種類（未利用除く）に分類したものです。"]
["L","組み合わせのパターンが細分化された集計分析（図表1-6、図表1-7）と比較して、上記のような視点から、重度化に伴う「サービス利用の組み合わせ」の変化の傾向等を分かりやすく示すことを目的としたものです。",null,null,null,null,null,null,null,null,null,null,"組み合わせのパターンが細分化された集計分析（図表1-6、図表1-7）と比較して、上記のような視点から、重度化に伴う「サービス利用の組み合わせ」の変化の傾向等を分かりやすく示すことを目的としたものです。"]
["L","前掲の集計分析（図表1-6、図表1-7）と同様に、重度化に伴い、どのようなサービス利用の組み合わせが増加しているかに着目することで、現在在宅で生活をする中重度の要介護者が、どのような組み合わせのサービス利用を増加させることで在宅生活を維持しているかを把握することができます。",null,null,null,null,null,null,null,null,null,null,"前掲の集計分析（図表1-6、図表1-7）と同様に、重度化に伴い、どのようなサービス利用の組み合わせが増加しているかに着目することで、現在在宅で生活をする中重度の要介護者が、どのような組み合わせのサービス利用を増加させることで在宅生活を維持しているかを把握することができます。"]
["L","また、中重度の要介護者の増加に伴い、どのような「サービス利用の組み合わせ」のニーズが大きくなると考えられるかを推測することも可能になります。",null,null,null,null,null,null,null,null,null,null,"また、中重度の要介護者の増加に伴い、どのような「サービス利用の組み合わせ」のニーズが大きくなると考えられるかを推測することも可能になります。"]
["F","図表1-8　要介護度別・サービス利用の組み合わせ",null,null,null,null,null,null,null,null,null,null,"図表1-8　要介護度別・サービス利用の組み合わせ"]
["C","chart8",null,null,null,null,null,null,null,null,null,null,"chart8"]
["F","図表1-9　認知症自立度別・サービス利用の組み合わせ",null,null,null,null,null,null,null,null,null,null,"図表1-9　認知症自立度別・サービス利用の組み合わせ"]
["C","chart9",null,null,null,null,null,null,null,null,null,null,"chart9"]
["####","(4)  「サービス利用の組み合わせ」と「施設等検討の状況」の関係",null,null,null,null,null,null,null,null,null,null,"(4)  「サービス利用の組み合わせ」と「施設等検討の状況」の関係"]
["S","【着目すべきポイント】",null,null,null,null,null,null,null,null,null,null,"【着目すべきポイント】"]
["L","ここでは、「サービス利用の組み合わせ」と「施設等検討の状況」の関係について、集計分析をしています。それぞれ、要介護３以上と要介護４以上、認知症自立度Ⅲ以上に分けて集計分析を行っています。",null,null,null,null,null,null,null,null,null,null,"ここでは、「サービス利用の組み合わせ」と「施設等検討の状況」の関係について、集計分析をしています。それぞれ、要介護３以上と要介護４以上、認知症自立度Ⅲ以上に分けて集計分析を行っています。"]
["L","「施設等検討の状況」について「入所・入居は検討していない」の割合を高めることは、在宅介護実態調査で想定する「アウトカム」の１つです。",null,null,null,null,null,null,null,null,null,null,"「施設等検討の状況」について「入所・入居は検討していない」の割合を高めることは、在宅介護実態調査で想定する「アウトカム」の１つです。"]
["L","ここでは「サービス利用の組み合わせ」との関係を集計分析することで、地域目標を達成するためのサービス整備方針の検討につなげることなどを想定しています。",null,null,null,null,null,null,null,null,null,null,"ここでは「サービス利用の組み合わせ」との関係を集計分析することで、地域目標を達成するためのサービス整備方針の検討につなげることなどを想定しています。"]
["L","図表1-10～図表1-12は、「サービス利用の組み合わせ」別に「施設等検討の状況」の割合を集計分析したもので、特に「サービス利用の組み合わせ」ごとの「施設等検討の状況」の比較が容易です。",null,null,null,null,null,null,null,null,null,null,"図表1-10～図表1-12は、「サービス利用の組み合わせ」別に「施設等検討の状況」の割合を集計分析したもので、特に「サービス利用の組み合わせ」ごとの「施設等検討の状況」の比較が容易です。"]
["L","また、図表1-13～図表1-15は、表側と表頭を逆にして集計したもので、「施設等検討の状況」別の「サービス利用の組み合わせ」をみることができます。これにより、例えば施設等への入所・入居を「検討していない」ケースのような「適切な在宅生活の継続を実現している」と考えられる要介護者について、実際に「どのような組み合わせのサービスを利用しているか」を把握することができます。",null,null,null,null,null,null,null,null,null,null,"また、図表1-13～図表1-15は、表側と表頭を逆にして集計したもので、「施設等検討の状況」別の「サービス利用の組み合わせ」をみることができます。これにより、例えば施設等への入所・入居を「検討していない」ケースのような「適切な在宅生活の継続を実現している」と考えられる要介護者について、実際に「どのような組み合わせのサービスを利用しているか」を把握することができます。"]
["L","したがって、例えば「検討中」や「申請済み」と比較して、「検討していない」ケースで多くみられるような「サービス利用の組み合わせ」を推進するような支援・サービスの整備を進めていくことで、在宅限界点の向上につながることなどが期待されます。",null,null,null,null,null,null,null,null,null,null,"したがって、例えば「検討中」や「申請済み」と比較して、「検討していない」ケースで多くみられるような「サービス利用の組み合わせ」を推進するような支援・サービスの整備を進めていくことで、在宅限界点の向上につながることなどが期待されます。"]
["S","【留意事項】",null,null,null,null,null,null,null,null,null,null,"【留意事項】"]
["L","ただし、このような「サービス利用の組み合わせ」については、ケアマネジメントに直結する内容でもあることから、ここでの集計分析結果やその解釈については、ケアマネジャー等を含む専門職との議論を交えながら、地域ごとにその効果等についての考察を深めていくことが重要となります。",null,null,null,null,null,null,null,null,null,null,"ただし、このような「サービス利用の組み合わせ」については、ケアマネジメントに直結する内容でもあることから、ここでの集計分析結果やその解釈については、ケアマネジャー等を含む専門職との議論を交えながら、地域ごとにその効果等についての考察を深めていくことが重要となります。"]
["L","例えば、「□□のサービスを利用しているケースでは、「検討していない」の割合が高い」といった傾向がみられたとしても、「何故、□□のサービスを利用しているケースでは、「検討していない」の割合が高いのか」といった解釈には、地域の特性や専門職の知見等を踏まえた個別の議論を行うことが必要になります。",null,null,null,null,null,null,null,null,null,null,"例えば、「□□のサービスを利用しているケースでは、「検討していない」の割合が高い」といった傾向がみられたとしても、「何故、□□のサービスを利用しているケースでは、「検討していない」の割合が高いのか」といった解釈には、地域の特性や専門職の知見等を踏まえた個別の議論を行うことが必要になります。"]
["NP"]
["F","図表1-10　サービス利用の組み合わせと施設等検討の状況（要介護３以上）",null,null,null,null,null,null,null,null,null,null,"図表1-10　サービス利用の組み合わせと施設等検討の状況（要介護３以上）"]
["C","chart10",null,null,null,null,null,null,null,null,null,null,"chart10"]
["F","図表1-11　サービス利用の組み合わせと施設等検討の状況（要介護４以上）",null,null,null,null,null,null,null,null,null,null,"図表1-11　サービス利用の組み合わせと施設等検討の状況（要介護４以上）"]
["C","chart11",null,null,null,null,null,null,null,null,null,null,"chart11"]
["F","図表1-12　サービス利用の組み合わせと施設等検討の状況（認知症Ⅲ以上）",null,null,null,null,null,null,null,null,null,null,"図表1-12　サービス利用の組み合わせと施設等検討の状況（認知症Ⅲ以上）"]
["C","chart12",null,null,null,null,null,null,null,null,null,null,"chart12"]
["NP"]
["F","図表1-13　サービス利用の組み合わせと施設等検討の状況（要介護３以上）",null,null,null,null,null,null,null,null,null,null,"図表1-13　サービス利用の組み合わせと施設等検討の状況（要介護３以上）"]
["C","chart13",null,null,null,null,null,null,null,null,null,null,"chart13"]
["F","図表1-14　サービス利用の組み合わせと施設等検討の状況（要介護４以上）",null,null,null,null,null,null,null,null,null,null,"図表1-14　サービス利用の組み合わせと施設等検討の状況（要介護４以上）"]
["C","chart14",null,null,null,null,null,null,null,null,null,null,"chart14"]
["F","図表1-15　サービス利用の組み合わせと施設等検討の状況（認知症Ⅲ以上）",null,null,null,null,null,null,null,null,null,null,"図表1-15　サービス利用の組み合わせと施設等検討の状況（認知症Ⅲ以上）"]
["C","chart15",null,null,null,null,null,null,null,null,null,null,"chart15"]
["NP"]
["####","(5)  「サービス利用の組み合わせ」と「主な介護者が不安に感じる介護」の関係",null,null,null,null,null,null,null,null,null,null,"(5)  「サービス利用の組み合わせ」と「主な介護者が不安に感じる介護」の関係"]
["S","【着目すべきポイント】",null,null,null,null,null,null,null,null,null,null,"【着目すべきポイント】"]
["L","ここでは、「サービス利用の組み合わせ」と「主な介護者が不安に感じる介護」の関係について、集計分析をしています（図表1-16、図表1-17）。それぞれ、要介護３以上と認知症自立度Ⅲ以上に分けて集計分析を行っています。",null,null,null,null,null,null,null,null,null,null,"ここでは、「サービス利用の組み合わせ」と「主な介護者が不安に感じる介護」の関係について、集計分析をしています（図表1-16、図表1-17）。それぞれ、要介護３以上と認知症自立度Ⅲ以上に分けて集計分析を行っています。"]
["L","「在宅生活の継続に向けてポイントとなる介護（主な介護者の不安が大きな介護 等）」について、「主な介護者が不安に感じる」割合を下げることは、在宅介護実態調査で想定する「アウトカム」の１つです。",null,null,null,null,null,null,null,null,null,null,"「在宅生活の継続に向けてポイントとなる介護（主な介護者の不安が大きな介護 等）」について、「主な介護者が不安に感じる」割合を下げることは、在宅介護実態調査で想定する「アウトカム」の１つです。"]
["L","ここでは「サービス利用の組み合わせ」との関係を集計分析することで、地域目標を達成するためのサービス整備方針の検討につなげることなどを想定しています。",null,null,null,null,null,null,null,null,null,null,"ここでは「サービス利用の組み合わせ」との関係を集計分析することで、地域目標を達成するためのサービス整備方針の検討につなげることなどを想定しています。"]
["L","したがって、「主な介護者の不安」が比較的小さくなるような「サービス利用の組み合わせ」を推進するようなサービス整備を進めていくことで、在宅限界点の向上につながることなどが期待されます。",null,null,null,null,null,null,null,null,null,null,"したがって、「主な介護者の不安」が比較的小さくなるような「サービス利用の組み合わせ」を推進するようなサービス整備を進めていくことで、在宅限界点の向上につながることなどが期待されます。"]
["S","【留意事項】",null,null,null,null,null,null,null,null,null,null,"【留意事項】"]
["L","ただし、このような「サービス利用の組み合わせ」については、ケアマネジメントに直結する内容でもあることから、ここでの集計分析結果やその解釈については、ケアマネジャー等を含む専門職との議論・考察を交えながら、地域ごとにその効果等についての議論を深めていくことが重要となります。",null,null,null,null,null,null,null,null,null,null,"ただし、このような「サービス利用の組み合わせ」については、ケアマネジメントに直結する内容でもあることから、ここでの集計分析結果やその解釈については、ケアマネジャー等を含む専門職との議論・考察を交えながら、地域ごとにその効果等についての議論を深めていくことが重要となります。"]
["L","例えば、「□□のサービスを利用しているケースでは、○○の介護について「主な介護者が不安に感じる」割合が低い」といった傾向がみられたとしても、「何故、□□のサービスを利用しているケースでは、○○の介護について「主な介護者が不安に感じる」割合が低いのか」といった解釈には、地域の特性や専門職の知見等を踏まえた個別の議論を行うことが必要になります。",null,null,null,null,null,null,null,null,null,null,"例えば、「□□のサービスを利用しているケースでは、○○の介護について「主な介護者が不安に感じる」割合が低い」といった傾向がみられたとしても、「何故、□□のサービスを利用しているケースでは、○○の介護について「主な介護者が不安に感じる」割合が低いのか」といった解釈には、地域の特性や専門職の知見等を踏まえた個別の議論を行うことが必要になります。"]
["NP"]
["F","図表1-16　サービス利用の組み合わせ別・介護者が不安を感じる介護（要介護３以上）",null,null,null,null,null,null,null,null,null,null,"図表1-16　サービス利用の組み合わせ別・介護者が不安を感じる介護（要介護３以上）"]
["C","chart16",null,null,null,null,null,null,null,null,null,null,"chart16"]
["NP"]
["F","図表1-17　サービス利用の組み合わせ別・介護者が不安を感じる介護（認知症Ⅲ以上）",null,null,null,null,null,null,null,null,null,null,"図表1-17　サービス利用の組み合わせ別・介護者が不安を感じる介護（認知症Ⅲ以上）"]
["C","chart17",null,null,null,null,null,null,null,null,null,null,"chart17"]
["NP"]
["####","(6)  「サービス利用の回数」と「施設等検討の状況」の関係",null,null,null,null,null,null,null,null,null,null,"(6)  「サービス利用の回数」と「施設等検討の状況」の関係"]
["S","【着目すべきポイント】",null,null,null,null,null,null,null,null,null,null,"【着目すべきポイント】"]
["L","(4)では、「サービス利用の組み合わせ」と「施設等検討の状況」の関係を分析しましたが、ここでは「サービス利用の回数」と「施設等検討の状況」について、集計分析を行っています。それぞれ、要介護３以上と認知症自立度Ⅲ以上に分けて集計分析を行っています。",null,null,null,null,null,null,null,null,null,null,"(4)では、「サービス利用の組み合わせ」と「施設等検討の状況」の関係を分析しましたが、ここでは「サービス利用の回数」と「施設等検討の状況」について、集計分析を行っています。それぞれ、要介護３以上と認知症自立度Ⅲ以上に分けて集計分析を行っています。"]
["L","「施設等検討の状況」について「入所・入居は検討していない」の割合を高めることは、在宅介護実態調査で想定する「アウトカム」の１つです。",null,null,null,null,null,null,null,null,null,null,"「施設等検討の状況」について「入所・入居は検討していない」の割合を高めることは、在宅介護実態調査で想定する「アウトカム」の１つです。"]
["L","ここでは「サービス利用の回数」との関係を集計分析することで、地域目標を達成するためのサービス整備方針の検討につなげることなどを想定しています。",null,null,null,null,null,null,null,null,null,null,"ここでは「サービス利用の回数」との関係を集計分析することで、地域目標を達成するためのサービス整備方針の検討につなげることなどを想定しています。"]
["L","図表1-18と図表1-19が訪問系、図表1-20と図表1-21通所系、図表1-22と図表1-23が短期系について集計分析した結果です。",null,null,null,null,null,null,null,null,null,null,"図表1-18と図表1-19が訪問系、図表1-20と図表1-21通所系、図表1-22と図表1-23が短期系について集計分析した結果です。"]
["L","「サービス利用の回数」の増加に伴い、施設等への入所・入居を「検討していない」割合が高くなるような支援・サービスの整備を進めていくことで、在宅限界点の向上につながることなどが期待されます。",null,null,null,null,null,null,null,null,null,null,"「サービス利用の回数」の増加に伴い、施設等への入所・入居を「検討していない」割合が高くなるような支援・サービスの整備を進めていくことで、在宅限界点の向上につながることなどが期待されます。"]
["S","【留意事項】",null,null,null,null,null,null,null,null,null,null,"【留意事項】"]
["L","(4)の「サービス利用の組み合わせ」と、ここでの「サービス利用の回数」の２つの分析結果を参考に、在宅限界点の向上に資するサービス整備方針の検討につなげていくことが重要です。",null,null,null,null,null,null,null,null,null,null,"(4)の「サービス利用の組み合わせ」と、ここでの「サービス利用の回数」の２つの分析結果を参考に、在宅限界点の向上に資するサービス整備方針の検討につなげていくことが重要です。"]
["L","(4)の「サービス利用の組み合わせ」と同様、ケアマネジメントに直結する内容であることから、ここでの集計分析結果やその解釈については、ケアマネジャー等を含む専門職との議論・考察を交えながら、地域ごとにその効果等についての議論を深めていくことが重要となります。",null,null,null,null,null,null,null,null,null,null,"(4)の「サービス利用の組み合わせ」と同様、ケアマネジメントに直結する内容であることから、ここでの集計分析結果やその解釈については、ケアマネジャー等を含む専門職との議論・考察を交えながら、地域ごとにその効果等についての議論を深めていくことが重要となります。"]
["NP"]
["F","図表1-18　サービス利用回数と施設等検討の状況（訪問系、要介護３以上）",null,null,null,null,null,null,null,null,null,null,"図表1-18　サービス利用回数と施設等検討の状況（訪問系、要介護３以上）"]
["C","chart18",null,null,null,null,null,null,null,null,null,null,"chart18"]
["F","図表1-19　サービス利用回数と施設等検討の状況（訪問系、認知症Ⅲ以上）",null,null,null,null,null,null,null,null,null,null,"図表1-19　サービス利用回数と施設等検討の状況（訪問系、認知症Ⅲ以上）"]
["C","chart19",null,null,null,null,null,null,null,null,null,null,"chart19"]
["NP"]
["F","図表1-20　サービス利用回数と施設等検討の状況（通所系、要介護３以上）",null,null,null,null,null,null,null,null,null,null,"図表1-20　サービス利用回数と施設等検討の状況（通所系、要介護３以上）"]
["C","chart20",null,null,null,null,null,null,null,null,null,null,"chart20"]
["F","図表1-21　サービス利用回数と施設等検討の状況（通所系、認知症Ⅲ以上）",null,null,null,null,null,null,null,null,null,null,"図表1-21　サービス利用回数と施設等検討の状況（通所系、認知症Ⅲ以上）"]
["C","chart21",null,null,null,null,null,null,null,null,null,null,"chart21"]
["NP"]
["F","図表1-22　サービス利用回数と施設等検討の状況（短期系、要介護３以上）",null,null,null,null,null,null,null,null,null,null,"図表1-22　サービス利用回数と施設等検討の状況（短期系、要介護３以上）"]
["C","chart22",null,null,null,null,null,null,null,null,null,null,"chart22"]
["F","図表1-23　サービス利用回数と施設等検討の状況（短期系、認知症Ⅲ以上）",null,null,null,null,null,null,null,null,null,null,"図表1-23　サービス利用回数と施設等検討の状況（短期系、認知症Ⅲ以上）"]
["C","chart23",null,null,null,null,null,null,null,null,null,null,"chart23"]
["NP"]
["####","(7)  「サービス利用の回数」と「主な介護者が不安に感じる介護」の関係",null,null,null,null,null,null,null,null,null,null,"(7)  「サービス利用の回数」と「主な介護者が不安に感じる介護」の関係"]
["S","【着目すべきポイント】",null,null,null,null,null,null,null,null,null,null,"【着目すべきポイント】"]
["L","(5)では、「サービス利用の組み合わせ」と「主な介護者が不安に感じる介護」の関係を分析しましたが、ここでは「サービス利用の回数」と「主な介護者が不安に感じる介護」について、集計分析を行っています。",null,null,null,null,null,null,null,null,null,null,"(5)では、「サービス利用の組み合わせ」と「主な介護者が不安に感じる介護」の関係を分析しましたが、ここでは「サービス利用の回数」と「主な介護者が不安に感じる介護」について、集計分析を行っています。"]
["L","「在宅生活の継続に向けてポイントとなる介護（主な介護者の不安が大きな介護 等）」について、「主な介護者が不安に感じる」割合を下げることは、在宅介護実態調査で想定する「アウトカム」の１つです。",null,null,null,null,null,null,null,null,null,null,"「在宅生活の継続に向けてポイントとなる介護（主な介護者の不安が大きな介護 等）」について、「主な介護者が不安に感じる」割合を下げることは、在宅介護実態調査で想定する「アウトカム」の１つです。"]
["L","ここでは「サービス利用の回数」との関係を集計分析することで、地域目標を達成するためのサービス整備方針の検討につなげることなどを想定しています。",null,null,null,null,null,null,null,null,null,null,"ここでは「サービス利用の回数」との関係を集計分析することで、地域目標を達成するためのサービス整備方針の検討につなげることなどを想定しています。"]
["L","図表1-24と図表1-25が訪問系、図表1-26と図表1-27が通所系、図表1-28と図表1-29が短期系について集計分析した結果です。それぞれ、要介護３以上と認知症自立度Ⅲ以上に分けて集計分析を行っています。",null,null,null,null,null,null,null,null,null,null,"図表1-24と図表1-25が訪問系、図表1-26と図表1-27が通所系、図表1-28と図表1-29が短期系について集計分析した結果です。それぞれ、要介護３以上と認知症自立度Ⅲ以上に分けて集計分析を行っています。"]
["L","「サービス利用の回数」の増加に伴い、「主な介護者が不安に感じる」割合が低くなるような支援・サービスの整備を進めていくことで、在宅限界点の向上につながることなどが期待されます。",null,null,null,null,null,null,null,null,null,null,"「サービス利用の回数」の増加に伴い、「主な介護者が不安に感じる」割合が低くなるような支援・サービスの整備を進めていくことで、在宅限界点の向上につながることなどが期待されます。"]
["S","【留意事項】",null,null,null,null,null,null,null,null,null,null,"【留意事項】"]
["L","(5)の「サービス利用の組み合わせ」と、ここでの「サービス利用の回数」の２つの分析結果を参考に、介護者不安の軽減に資するサービス整備方針の検討につなげていくことが重要です。",null,null,null,null,null,null,null,null,null,null,"(5)の「サービス利用の組み合わせ」と、ここでの「サービス利用の回数」の２つの分析結果を参考に、介護者不安の軽減に資するサービス整備方針の検討につなげていくことが重要です。"]
["L","(5)の「サービス利用の組み合わせ」と同様、ケアマネジメントに直結する内容であることから、ここでの集計分析結果やその解釈については、ケアマネジャー等を含む専門職との議論・考察を交えながら、地域ごとにその効果等についての議論を深めていくことが重要となります。",null,null,null,null,null,null,null,null,null,null,"(5)の「サービス利用の組み合わせ」と同様、ケアマネジメントに直結する内容であることから、ここでの集計分析結果やその解釈については、ケアマネジャー等を含む専門職との議論・考察を交えながら、地域ごとにその効果等についての議論を深めていくことが重要となります。"]
["NP"]
["F","図表1-24　サービス利用回数別・介護者が不安を感じる介護（訪問系、要介護３以上）",null,null,null,null,null,null,null,null,null,null,"図表1-24　サービス利用回数別・介護者が不安を感じる介護（訪問系、要介護３以上）"]
["C","chart24",null,null,null,null,null,null,null,null,null,null,"chart24"]
["NP"]
["F","図表1-25　サービス利用回数別・介護者が不安を感じる介護（訪問系、認知症Ⅲ以上）",null,null,null,null,null,null,null,null,null,null,"図表1-25　サービス利用回数別・介護者が不安を感じる介護（訪問系、認知症Ⅲ以上）"]
["C","chart25",null,null,null,null,null,null,null,null,null,null,"chart25"]
["NP"]
["F","図表1-26　サービス利用回数別・介護者が不安を感じる介護（通所系、要介護３以上）",null,null,null,null,null,null,null,null,null,null,"図表1-26　サービス利用回数別・介護者が不安を感じる介護（通所系、要介護３以上）"]
["C","chart26",null,null,null,null,null,null,null,null,null,null,"chart26"]
["NP"]
["F","図表1-27　サービス利用回数別・介護者が不安を感じる介護（通所系、認知症Ⅲ以上）",null,null,null,null,null,null,null,null,null,null,"図表1-27　サービス利用回数別・介護者が不安を感じる介護（通所系、認知症Ⅲ以上）"]
["C","chart27",null,null,null,null,null,null,null,null,null,null,"chart27"]
["NP"]
["F","図表1-28　サービス利用回数別・介護者が不安を感じる介護（短期系、要介護３以上）",null,null,null,null,null,null,null,null,null,null,"図表1-28　サービス利用回数別・介護者が不安を感じる介護（短期系、要介護３以上）"]
["C","chart28",null,null,null,null,null,null,null,null,null,null,"chart28"]
["NP"]
["F","図表1-29　サービス利用回数別・介護者が不安を感じる介護（短期系、認知症Ⅲ以上）",null,null,null,null,null,null,null,null,null,null,"図表1-29　サービス利用回数別・介護者が不安を感じる介護（短期系、認知症Ⅲ以上）"]
["C","chart29",null,null,null,null,null,null,null,null,null,null,"chart29"]
["NP"]
["###","1.3　 考察",null,null,null,null,null,null,null,null,null,null,"1.3　 考察"]
["P","※「試行調査に基づく調査報告書」を参考としながら、「関係者間での議論と考察」を経て、各自治体の調査分析結果に基づく「考察」を記載してください。",null,null,null,null,null,null,null,null,null,null,"※「試行調査に基づく調査報告書」を参考としながら、「関係者間での議論と考察」を経て、各自治体の調査分析結果に基づく「考察」を記載してください。"]
["NP"]
["##","2　 仕事と介護の両立に向けた支援・サービスの提供体制の検討",null,null,null,null,null,null,null,null,null,null,"2　 仕事と介護の両立に向けた支援・サービスの提供体制の検討"]
["###","2.1　 集計・分析の狙い",null,null,null,null,null,null,null,null,null,null,"2.1　 集計・分析の狙い"]
["L","ここでは、介護者の就労継続見込みの向上に向けて必要となる支援・サービスを検討するために、「主な介護者の就労状況」と「主な介護者の就労継続見込み」の２つの視点からの集計を行っています。",null,null,null,null,null,null,null,null,null,null,"ここでは、介護者の就労継続見込みの向上に向けて必要となる支援・サービスを検討するために、「主な介護者の就労状況」と「主な介護者の就労継続見込み」の２つの視点からの集計を行っています。"]
["L","具体的には、「就労している介護者（フルタイム勤務、パートタイム勤務）」と「就労していない介護者」の違いに着目し、就労している介護者の属性や介護状況の特徴別に、必要な支援を集計・分析しています。",null,null,null,null,null,null,null,null,null,null,"具体的には、「就労している介護者（フルタイム勤務、パートタイム勤務）」と「就労していない介護者」の違いに着目し、就労している介護者の属性や介護状況の特徴別に、必要な支援を集計・分析しています。"]
["L","さらに、「どのようなサービス利用」や「働き方の調整・職場の支援」を受けている場合に、「就労を継続することができる」という見込みを持つことができるのかを分析するために、主な介護者の「就労継続見込み」と、「主な介護者が行っている介護」や「介護保険サービスの利用の有無」、「介護のための働き方の調整」などとのクロス集計を行っています。",null,null,null,null,null,null,null,null,null,null,"さらに、「どのようなサービス利用」や「働き方の調整・職場の支援」を受けている場合に、「就労を継続することができる」という見込みを持つことができるのかを分析するために、主な介護者の「就労継続見込み」と、「主な介護者が行っている介護」や「介護保険サービスの利用の有無」、「介護のための働き方の調整」などとのクロス集計を行っています。"]
["L","上記の視点からの分析では、要介護度や認知症高齢者の日常生活自立度といった要介護者の状態別の分析も加え、要介護者の自立度が重くなっても、在宅生活や就労を継続できる支援のあり方を検討しています。",null,null,null,null,null,null,null,null,null,null,"上記の視点からの分析では、要介護度や認知症高齢者の日常生活自立度といった要介護者の状態別の分析も加え、要介護者の自立度が重くなっても、在宅生活や就労を継続できる支援のあり方を検討しています。"]
["NP"]
["###","2.2　 集計結果と着目すべきポイント",null,null,null,null,null,null,null,null,null,null,"2.2　 集計結果と着目すべきポイント"]
["####","(1)  基本集計",null,null,null,null,null,null,null,null,null,null,"(1)  基本集計"]
["L","主な介護者の就労状況（フルタイム勤務・パートタイム勤務・働いていない）別に、世帯や介護者の特徴などの基礎的な集計を行っています。",null,null,null,null,null,null,null,null,null,null,"主な介護者の就労状況（フルタイム勤務・パートタイム勤務・働いていない）別に、世帯や介護者の特徴などの基礎的な集計を行っています。"]
["L","主な介護者の属性や、要介護者の要介護度・認知症自立度について、就労状況別にその状況を確認してください。",null,null,null,null,null,null,null,null,null,null,"主な介護者の属性や、要介護者の要介護度・認知症自立度について、就労状況別にその状況を確認してください。"]
["F","図表2-1　就労状況別・世帯類型",null,null,null,null,null,null,null,null,null,null,"図表2-1　就労状況別・世帯類型"]
["C","chart30",null,null,null,null,null,null,null,null,null,null,"chart30"]
["F","図表2-2　就労状況別・★主な介護者の本人との関係",null,null,null,null,null,null,null,null,null,null,"図表2-2　就労状況別・★主な介護者の本人との関係"]
["C","chart31",null,null,null,null,null,null,null,null,null,null,"chart31"]
["NP"]
["F","図表2-3　就労状況別・主な介護者の年齢",null,null,null,null,null,null,null,null,null,null,"図表2-3　就労状況別・主な介護者の年齢"]
["C","chart32",null,null,null,null,null,null,null,null,null,null,"chart32"]
["F","図表2-4　就労状況別・主な介護者の性別",null,null,null,null,null,null,null,null,null,null,"図表2-4　就労状況別・主な介護者の性別"]
["C","chart33",null,null,null,null,null,null,null,null,null,null,"chart33"]
["F","図表2-5　就労状況別・要介護度",null,null,null,null,null,null,null,null,null,null,"図表2-5　就労状況別・要介護度"]
["C","chart34",null,null,null,null,null,null,null,null,null,null,"chart34"]
["NP"]
["F","図表2-6　就労状況別・認知症自立度",null,null,null,null,null,null,null,null,null,null,"図表2-6　就労状況別・認知症自立度"]
["C","chart35",null,null,null,null,null,null,null,null,null,null,"chart35"]
["NP"]
["####","(2)  就労状況別の、主な介護者が行っている介護と就労継続見込み",null,null,null,null,null,null,null,null,null,null,"(2)  就労状況別の、主な介護者が行っている介護と就労継続見込み"]
["S","【着目すべきポイント】",null,null,null,null,null,null,null,null,null,null,"【着目すべきポイント】"]
["L","ここでは、「主な介護者が行っている介護」と「今後の就労継続見込み」について、主な介護者の就労状況別に集計分析をしています（図表2-8、図表2-9）。",null,null,null,null,null,null,null,null,null,null,"ここでは、「主な介護者が行っている介護」と「今後の就労継続見込み」について、主な介護者の就労状況別に集計分析をしています（図表2-8、図表2-9）。"]
["L","「主な介護者が行っている介護」について、例えば、「働いていない」人と比較して、「フルタイム勤務」や「パートタイム勤務」で少ない介護は、働いている介護者が、他の介護者や介護サービスの支援を必要としているものと考えられます。",null,null,null,null,null,null,null,null,null,null,"「主な介護者が行っている介護」について、例えば、「働いていない」人と比較して、「フルタイム勤務」や「パートタイム勤務」で少ない介護は、働いている介護者が、他の介護者や介護サービスの支援を必要としているものと考えられます。"]
["L","「今後の就労継続見込み」については、「就労状況」との関係に加え、「要介護度」や「認知症自立度」別についても、集計分析を行っています。これにより、要介護者の重度化に伴って就労継続見込みを困難と考える人が増加するかどうかを把握することができます。",null,null,null,null,null,null,null,null,null,null,"「今後の就労継続見込み」については、「就労状況」との関係に加え、「要介護度」や「認知症自立度」別についても、集計分析を行っています。これにより、要介護者の重度化に伴って就労継続見込みを困難と考える人が増加するかどうかを把握することができます。"]
["L","なお、就労継続見込みの分析においては、「問題なく、続けていける」の割合と、「問題なく、続けていける」と「問題はあるが、何とか続けていける」をあわせた「続けていける」と考えている人の割合の２つの指標に着目しています（図表2-10、図表2-11）。",null,null,null,null,null,null,null,null,null,null,"なお、就労継続見込みの分析においては、「問題なく、続けていける」の割合と、「問題なく、続けていける」と「問題はあるが、何とか続けていける」をあわせた「続けていける」と考えている人の割合の２つの指標に着目しています（図表2-10、図表2-11）。"]
["F","図表2-7　就労状況別・家族等による介護の頻度",null,null,null,null,null,null,null,null,null,null,"図表2-7　就労状況別・家族等による介護の頻度"]
["C","chart36",null,null,null,null,null,null,null,null,null,null,"chart36"]
["NP"]
["F","図表2-8　就労状況別・★主な介護者が行っている介護",null,null,null,null,null,null,null,null,null,null,"図表2-8　就労状況別・★主な介護者が行っている介護"]
["C","chart37",null,null,null,null,null,null,null,null,null,null,"chart37"]
["NP"]
["F","図表2-9　就労状況別・就労継続見込み",null,null,null,null,null,null,null,null,null,null,"図表2-9　就労状況別・就労継続見込み"]
["C","chart38",null,null,null,null,null,null,null,null,null,null,"chart38"]
["F","図表2-10　要介護度別・就労継続見込み（フルタイム勤務＋パートタイム勤務）",null,null,null,null,null,null,null,null,null,null,"図表2-10　要介護度別・就労継続見込み（フルタイム勤務＋パートタイム勤務）"]
["C","chart39",null,null,null,null,null,null,null,null,null,null,"chart39"]
["F","図表2-11　認知症自立度別・就労継続見込み（フルタイム勤務＋パートタイム勤務）",null,null,null,null,null,null,null,null,null,null,"図表2-11　認知症自立度別・就労継続見込み（フルタイム勤務＋パートタイム勤務）"]
["C","chart40",null,null,null,null,null,null,null,null,null,null,"chart40"]
["NP"]
["####","(3)  「介護保険サービスの利用状況」・「主な介護者が不安に感じる介護」と「就労継続見込み」の関係",null,null,null,null,null,null,null,null,null,null,"(3)  「介護保険サービスの利用状況」・「主な介護者が不安に感じる介護」と「就労継続見込み」の関係"]
["S","【着目すべきポイント】",null,null,null,null,null,null,null,null,null,null,"【着目すべきポイント】"]
["L","ここでは、「介護保険サービスの利用状況」と「主な介護者が不安に感じる介護」について、主な介護者の就労状況別及び就労継続見込み別に集計分析をしています（図表2-12～図表2-15）。",null,null,null,null,null,null,null,null,null,null,"ここでは、「介護保険サービスの利用状況」と「主な介護者が不安に感じる介護」について、主な介護者の就労状況別及び就労継続見込み別に集計分析をしています（図表2-12～図表2-15）。"]
["L","「介護保険サービスの利用状況」と「就労継続見込み」の関係についての集計分析から、サービス利用による就労継続見込みへの影響を把握することができます。さらに、サービスを利用していない人の「サービス未利用の理由」について、就労継続が困難と考える人が、そうでない人と比較して特徴がみられる理由に着目することで、必要なサービス利用がなされているかどうかを推測することができます。",null,null,null,null,null,null,null,null,null,null,"「介護保険サービスの利用状況」と「就労継続見込み」の関係についての集計分析から、サービス利用による就労継続見込みへの影響を把握することができます。さらに、サービスを利用していない人の「サービス未利用の理由」について、就労継続が困難と考える人が、そうでない人と比較して特徴がみられる理由に着目することで、必要なサービス利用がなされているかどうかを推測することができます。"]
["L","例えば、就労継続が困難と考える人において、サービスを「利用していない」割合が高く、かつサービスを利用していない理由として、「現状では、サービスを利用するほどの状態ではない」が低い割合にとどまっている場合には、サービス利用の必要性が低くないにも関わらず、サービスの利用がなされていないことになります（図表2-13、図表2-14）。",null,null,null,null,null,null,null,null,null,null,"例えば、就労継続が困難と考える人において、サービスを「利用していない」割合が高く、かつサービスを利用していない理由として、「現状では、サービスを利用するほどの状態ではない」が低い割合にとどまっている場合には、サービス利用の必要性が低くないにも関わらず、サービスの利用がなされていないことになります（図表2-13、図表2-14）。"]
["L","「主な介護者が不安に感じる介護」については、就労継続見込みの困難化に伴い、どのような介護等で不安が増加しているかに着目することで、在宅生活を継続しながらの就労継続について、介護者がその可否を判断するポイントとなる可能性がある介護等を把握することができます。",null,null,null,null,null,null,null,null,null,null,"「主な介護者が不安に感じる介護」については、就労継続見込みの困難化に伴い、どのような介護等で不安が増加しているかに着目することで、在宅生活を継続しながらの就労継続について、介護者がその可否を判断するポイントとなる可能性がある介護等を把握することができます。"]
["F","図表2-12　就労状況別・★介護保険サービス利用の有無",null,null,null,null,null,null,null,null,null,null,"図表2-12　就労状況別・★介護保険サービス利用の有無"]
["C","chart41",null,null,null,null,null,null,null,null,null,null,"chart41"]
["NP"]
["F","図表2-13　就労継続見込み別・★介護保険サービス利用の有無（フルタイム勤務＋パートタイム勤務）",null,null,null,null,null,null,null,null,null,null,"図表2-13　就労継続見込み別・★介護保険サービス利用の有無（フルタイム勤務＋パートタイム勤務）"]
["C","chart42",null,null,null,null,null,null,null,null,null,null,"chart42"]
["F","図表2-14　就労継続見込み別・★サービス未利用の理由（フルタイム勤務＋パート勤務）",null,null,null,null,null,null,null,null,null,null,"図表2-14　就労継続見込み別・★サービス未利用の理由（フルタイム勤務＋パート勤務）"]
["C","chart43",null,null,null,null,null,null,null,null,null,null,"chart43"]
["NP"]
["F","図表2-15　就労継続見込み別・介護者が不安に感じる介護（フルタイム勤務＋パートタイム勤務）",null,null,null,null,null,null,null,null,null,null,"図表2-15　就労継続見込み別・介護者が不安に感じる介護（フルタイム勤務＋パートタイム勤務）"]
["C","chart44",null,null,null,null,null,null,null,null,null,null,"chart44"]
["NP"]
["####","(4)  「サービス利用の組み合わせ」と「就労継続見込み」の関係",null,null,null,null,null,null,null,null,null,null,"(4)  「サービス利用の組み合わせ」と「就労継続見込み」の関係"]
["S","【着目すべきポイント】",null,null,null,null,null,null,null,null,null,null,"【着目すべきポイント】"]
["L","ここでは、「サービス利用の組み合わせ」について、組み合わせのパターンを簡略化し、主な介護者の就労状況別及び就労継続見込み別に集計分析をしています。さらに、訪問系サービスについては、要介護２以上、認知症自立度Ⅱ以上に分けて集計分析を行っています（図表2-16～図表2-18）。",null,null,null,null,null,null,null,null,null,null,"ここでは、「サービス利用の組み合わせ」について、組み合わせのパターンを簡略化し、主な介護者の就労状況別及び就労継続見込み別に集計分析をしています。さらに、訪問系サービスについては、要介護２以上、認知症自立度Ⅱ以上に分けて集計分析を行っています（図表2-16～図表2-18）。"]
["L","ここから、主な介護者の就労状況によって、「サービス利用の組み合わせ」に差がみられるかどうかを把握することができます。",null,null,null,null,null,null,null,null,null,null,"ここから、主な介護者の就労状況によって、「サービス利用の組み合わせ」に差がみられるかどうかを把握することができます。"]
["L","また、「訪問系サービスの利用の有無」と「就労継続見込み」の関係を集計分析することで、訪問系サービスの利用が、就労継続見込みの「問題なく、続けていける」「問題はあるが、何とか続けていける」の割合に影響を与えているかどうかを推測することが可能です。",null,null,null,null,null,null,null,null,null,null,"また、「訪問系サービスの利用の有無」と「就労継続見込み」の関係を集計分析することで、訪問系サービスの利用が、就労継続見込みの「問題なく、続けていける」「問題はあるが、何とか続けていける」の割合に影響を与えているかどうかを推測することが可能です。"]
["F","図表2-16　就労状況別・サービス利用の組み合わせ",null,null,null,null,null,null,null,null,null,null,"図表2-16　就労状況別・サービス利用の組み合わせ"]
["C","chart45",null,null,null,null,null,null,null,null,null,null,"chart45"]
["F","図表2-17　サービス利用の組み合わせ別・就労継続見込み（要介護２以上、フルタイム勤務＋パートタイム勤務）",null,null,null,null,null,null,null,null,null,null,"図表2-17　サービス利用の組み合わせ別・就労継続見込み（要介護２以上、フルタイム勤務＋パートタイム勤務）"]
["C","chart46",null,null,null,null,null,null,null,null,null,null,"chart46"]
["NP"]
["F","図表2-18　サービス利用の組み合わせ別・就労継続見込み（認知症自立度Ⅱ以上、フルタイム勤務＋パートタイム勤務）",null,null,null,null,null,null,null,null,null,null,"図表2-18　サービス利用の組み合わせ別・就労継続見込み（認知症自立度Ⅱ以上、フルタイム勤務＋パートタイム勤務）"]
["C","chart47",null,null,null,null,null,null,null,null,null,null,"chart47"]
["####","(5)  就労状況別の、保険外の支援・サービスの利用状況と、施設等検討の状況",null,null,null,null,null,null,null,null,null,null,"(5)  就労状況別の、保険外の支援・サービスの利用状況と、施設等検討の状況"]
["S","【着目すべきポイント】",null,null,null,null,null,null,null,null,null,null,"【着目すべきポイント】"]
["L","ここでは、「保険外の支援・サービスの利用状況」、「訪問診療の利用の有無」、「施設等検討の状況」について、主な介護者の就労状況別及び就労継続見込み別に集計分析をしています（図表2-19～図表2-22）。",null,null,null,null,null,null,null,null,null,null,"ここでは、「保険外の支援・サービスの利用状況」、「訪問診療の利用の有無」、「施設等検討の状況」について、主な介護者の就労状況別及び就労継続見込み別に集計分析をしています（図表2-19～図表2-22）。"]
["L","「利用している保険外の支援・サービス」と、「在宅生活の継続に必要と感じる支援・サービス」の差をみることにより、働いている介護者が必要と感じているが、実際には利用されていない生活支援サービスを把握することができます。",null,null,null,null,null,null,null,null,null,null,"「利用している保険外の支援・サービス」と、「在宅生活の継続に必要と感じる支援・サービス」の差をみることにより、働いている介護者が必要と感じているが、実際には利用されていない生活支援サービスを把握することができます。"]
["L","また、「訪問診療の利用の有無」と就労状況との関係を集計分析することで、訪問診療の利用が就労状況により異なるかどうかを把握することができます。",null,null,null,null,null,null,null,null,null,null,"また、「訪問診療の利用の有無」と就労状況との関係を集計分析することで、訪問診療の利用が就労状況により異なるかどうかを把握することができます。"]
["L","「施設等検討の状況」については、働いていない介護者に比べて、働いている介護者では、施設入所を必要と感じているかどうか分析することを目的としています。",null,null,null,null,null,null,null,null,null,null,"「施設等検討の状況」については、働いていない介護者に比べて、働いている介護者では、施設入所を必要と感じているかどうか分析することを目的としています。"]
["L","さらに、要介護２以上の中重度者については、就労継続見込みについて「続けていくのは、やや難しい」「続けていくのは、かなり難しい」と考える人のうち、どの程度の人が施設を検討しているかに着目しています。これにより、在宅での仕事と介護の両立が困難となった場合の対応として、施設対応の必要性と、在宅サービスや働き方の調整による対応の必要性のそれぞれについて、把握することができます。",null,null,null,null,null,null,null,null,null,null,"さらに、要介護２以上の中重度者については、就労継続見込みについて「続けていくのは、やや難しい」「続けていくのは、かなり難しい」と考える人のうち、どの程度の人が施設を検討しているかに着目しています。これにより、在宅での仕事と介護の両立が困難となった場合の対応として、施設対応の必要性と、在宅サービスや働き方の調整による対応の必要性のそれぞれについて、把握することができます。"]
["S","【留意事項】",null,null,null,null,null,null,null,null,null,null,"【留意事項】"]
["L","ここでの「在宅生活の継続に必要と感じる支援・サービス」とは、保険外の支援・サービスに限定されるものではありません。必要となる支援・サービスの整備方法については、必ずしも保険外のサービスに限定せず、幅広い視点から検討を進めることが重要です。",null,null,null,null,null,null,null,null,null,null,"ここでの「在宅生活の継続に必要と感じる支援・サービス」とは、保険外の支援・サービスに限定されるものではありません。必要となる支援・サービスの整備方法については、必ずしも保険外のサービスに限定せず、幅広い視点から検討を進めることが重要です。"]
["L","アンケート調査の中で「必要な支援・サービス」を回答して頂くと、「無くても大丈夫であるが、無いよりはあった方が良い」といった回答も含まれることが想定されることから、回答結果は実際のニーズよりもやや過大となる可能性があります。",null,null,null,null,null,null,null,null,null,null,"アンケート調査の中で「必要な支援・サービス」を回答して頂くと、「無くても大丈夫であるが、無いよりはあった方が良い」といった回答も含まれることが想定されることから、回答結果は実際のニーズよりもやや過大となる可能性があります。"]
["F","図表2-19_1　★利用している保険外の支援・サービス（フルタイム勤務）",null,null,null,null,null,null,null,null,null,null,"図表2-19_1　★利用している保険外の支援・サービス（フルタイム勤務）"]
["C","chart48_1",null,null,null,null,null,null,null,null,null,null,"chart48_1"]
["F","図表2-19_2　★在宅生活の継続に必要と感じる支援・サービス（フルタイム勤務）",null,null,null,null,null,null,null,null,null,null,"図表2-19_2　★在宅生活の継続に必要と感じる支援・サービス（フルタイム勤務）"]
["C","chart48_2",null,null,null,null,null,null,null,null,null,null,"chart48_2"]
["NP"]
["F","図表2-20　就労状況別・★訪問診療の利用の有無",null,null,null,null,null,null,null,null,null,null,"図表2-20　就労状況別・★訪問診療の利用の有無"]
["C","chart49",null,null,null,null,null,null,null,null,null,null,"chart49"]
["F","図表2-21　就労状況別・施設等検討の状況",null,null,null,null,null,null,null,null,null,null,"図表2-21　就労状況別・施設等検討の状況"]
["C","chart50",null,null,null,null,null,null,null,null,null,null,"chart50"]
["F","図表2-22　就労継続見込み別・施設等検討の状況（要介護２以上、フルタイム勤務＋パートタイム勤務）",null,null,null,null,null,null,null,null,null,null,"図表2-22　就労継続見込み別・施設等検討の状況（要介護２以上、フルタイム勤務＋パートタイム勤務）"]
["C","chart51",null,null,null,null,null,null,null,null,null,null,"chart51"]
["NP"]
["####","(6)  就労状況別の、介護のための働き方の調整と効果的な勤め先からの支援",null,null,null,null,null,null,null,null,null,null,"(6)  就労状況別の、介護のための働き方の調整と効果的な勤め先からの支援"]
["S","【着目すべきポイント】",null,null,null,null,null,null,null,null,null,null,"【着目すべきポイント】"]
["L","ここでは、「介護のための働き方の調整」と、「効果的な勤め先からの支援」について、主な介護者の就労状況別及び就労継続見込み別に集計分析をしています（図表2-23～図表2-26）。",null,null,null,null,null,null,null,null,null,null,"ここでは、「介護のための働き方の調整」と、「効果的な勤め先からの支援」について、主な介護者の就労状況別及び就労継続見込み別に集計分析をしています（図表2-23～図表2-26）。"]
["L","就労継続見込みによって、介護のために働き方を調整している割合や、効果的と考える勤め先の支援内容がどのように変化するかに着目して集計分析をしています。",null,null,null,null,null,null,null,null,null,null,"就労継続見込みによって、介護のために働き方を調整している割合や、効果的と考える勤め先の支援内容がどのように変化するかに着目して集計分析をしています。"]
["L","ただし、「問題なく、続けていける」とする人において、働き方の調整を「特に行っていない」割合、もしくは効果的な勤め先の支援として「特にない」が高いケースは、職場が恒常的な長時間労働や、休暇取得が困難といった状況にはなく、介護のために特段働き方の調整や勤め先からの支援を行わなくても、両立可能な職場であることが考えられます。",null,null,null,null,null,null,null,null,null,null,"ただし、「問題なく、続けていける」とする人において、働き方の調整を「特に行っていない」割合、もしくは効果的な勤め先の支援として「特にない」が高いケースは、職場が恒常的な長時間労働や、休暇取得が困難といった状況にはなく、介護のために特段働き方の調整や勤め先からの支援を行わなくても、両立可能な職場であることが考えられます。"]
["L","このように、職場の状況や業務の内容によっても、必要な調整や支援の内容が異なることに留意することが必要です。",null,null,null,null,null,null,null,null,null,null,"このように、職場の状況や業務の内容によっても、必要な調整や支援の内容が異なることに留意することが必要です。"]
["F","図表2-23　就労状況別・介護のための働き方の調整",null,null,null,null,null,null,null,null,null,null,"図表2-23　就労状況別・介護のための働き方の調整"]
["C","chart52",null,null,null,null,null,null,null,null,null,null,"chart52"]
["NP"]
["F","図表2-24　就労継続見込み別・介護のための働き方の調整（フルタイム勤務＋パートタイム勤務）",null,null,null,null,null,null,null,null,null,null,"図表2-24　就労継続見込み別・介護のための働き方の調整（フルタイム勤務＋パートタイム勤務）"]
["C","chart53",null,null,null,null,null,null,null,null,null,null,"chart53"]
["NP"]
["F","図表2-25　就労状況別・★効果的な勤め先からの支援",null,null,null,null,null,null,null,null,null,null,"図表2-25　就労状況別・★効果的な勤め先からの支援"]
["C","chart54",null,null,null,null,null,null,null,null,null,null,"chart54"]
["NP"]
["F","図表2-26　就労継続見込み別・★効果的な勤め先からの支援（フルタイム勤務＋パートタイム勤務）",null,null,null,null,null,null,null,null,null,null,"図表2-26　就労継続見込み別・★効果的な勤め先からの支援（フルタイム勤務＋パートタイム勤務）"]
["C","chart55",null,null,null,null,null,null,null,null,null,null,"chart55"]
["NP"]
["###","2.3　 考察",null,null,null,null,null,null,null,null,null,null,"2.3　 考察"]
["P","※「試行調査に基づく調査報告書」を参考としながら、「関係者間での議論と考察」を経て、各自治体の調査分析結果に基づく「考察」を記載してください。",null,null,null,null,null,null,null,null,null,null,"※「試行調査に基づく調査報告書」を参考としながら、「関係者間での議論と考察」を経て、各自治体の調査分析結果に基づく「考察」を記載してください。"]
["NP"]
["##","3　 保険外の支援・サービスを中心とした地域資源の整備の検討",null,null,null,null,null,null,null,null,null,null,"3　 保険外の支援・サービスを中心とした地域資源の整備の検討"]
["###","3.1　 集計・分析の狙い",null,null,null,null,null,null,null,null,null,null,"3.1　 集計・分析の狙い"]
["L","ここでは、在宅限界点の向上に向けて必要となる支援・サービスを検討するために、特に「保険外の支援・サービス」に焦点を当てた集計を行っています。ここで把握された現状やニーズは、生活支援体制整備事業の推進のために活用していくことなどが考えられます。",null,null,null,null,null,null,null,null,null,null,"ここでは、在宅限界点の向上に向けて必要となる支援・サービスを検討するために、特に「保険外の支援・サービス」に焦点を当てた集計を行っています。ここで把握された現状やニーズは、生活支援体制整備事業の推進のために活用していくことなどが考えられます。"]
["L","具体的には、「現在利用している保険外の支援・サービス」と「在宅生活の継続に必要と感じる支援・サービス（現在利用しているが、さらなる充実が必要と感じる支援・サービスを含む）」について、要介護度別や世帯類型別のクロス集計を行い、現在の利用状況の把握と今後さらに充実が必要となる支援・サービスについての分析を行います。",null,null,null,null,null,null,null,null,null,null,"具体的には、「現在利用している保険外の支援・サービス」と「在宅生活の継続に必要と感じる支援・サービス（現在利用しているが、さらなる充実が必要と感じる支援・サービスを含む）」について、要介護度別や世帯類型別のクロス集計を行い、現在の利用状況の把握と今後さらに充実が必要となる支援・サービスについての分析を行います。"]
["L","なお、調査の中では、総合事業に基づく支援・サービスは介護保険サービスに含めるとともに、「在宅生活の継続に必要と感じる支援・サービス」については、介護保険サービスか保険外の支援・サービスであるかは区別していません。",null,null,null,null,null,null,null,null,null,null,"なお、調査の中では、総合事業に基づく支援・サービスは介護保険サービスに含めるとともに、「在宅生活の継続に必要と感じる支援・サービス」については、介護保険サービスか保険外の支援・サービスであるかは区別していません。"]
["NP"]
["###","3.2　 集計結果と着目すべきポイント",null,null,null,null,null,null,null,null,null,null,"3.2　 集計結果と着目すべきポイント"]
["####","(1)  基礎集計",null,null,null,null,null,null,null,null,null,null,"(1)  基礎集計"]
["S","【着目すべきポイント】",null,null,null,null,null,null,null,null,null,null,"【着目すべきポイント】"]
["L","「保険外の支援・サービスの利用状況」と、「在宅生活の継続に必要と感じる支援・サービス」について、集計分析をしています（図表3-1、図表3-2）。",null,null,null,null,null,null,null,null,null,null,"「保険外の支援・サービスの利用状況」と、「在宅生活の継続に必要と感じる支援・サービス」について、集計分析をしています（図表3-1、図表3-2）。"]
["L","例えば、「保険外の支援・サービスの利用状況」については、現状の把握のみでなく、保険外の支援・サービスの利用促進の取組に係るアウトプットとして、その「利用割合」を設定することで、経年的にその成果をモニタリングしていくことも可能になると考えられます。",null,null,null,null,null,null,null,null,null,null,"例えば、「保険外の支援・サービスの利用状況」については、現状の把握のみでなく、保険外の支援・サービスの利用促進の取組に係るアウトプットとして、その「利用割合」を設定することで、経年的にその成果をモニタリングしていくことも可能になると考えられます。"]
["L","さらに、「在宅生活の継続に必要と感じる支援・サービス」からは、在宅限界点の向上という地域目標の達成に向けて、その地域において特に重要となる支援・サービスの種類を把握することができます。",null,null,null,null,null,null,null,null,null,null,"さらに、「在宅生活の継続に必要と感じる支援・サービス」からは、在宅限界点の向上という地域目標の達成に向けて、その地域において特に重要となる支援・サービスの種類を把握することができます。"]
["S","【留意事項】",null,null,null,null,null,null,null,null,null,null,"【留意事項】"]
["L","ここでの「在宅生活の継続に必要と感じる支援・サービス」とは、保険外の支援・サービスに限定されるものではありません。必要となる支援・サービスの整備方法については、必ずしも保険外のサービスに限定せず、幅広い視点から検討を進めることが重要です。",null,null,null,null,null,null,null,null,null,null,"ここでの「在宅生活の継続に必要と感じる支援・サービス」とは、保険外の支援・サービスに限定されるものではありません。必要となる支援・サービスの整備方法については、必ずしも保険外のサービスに限定せず、幅広い視点から検討を進めることが重要です。"]
["F","図表3-1　★保険外の支援・サービスの利用状況",null,null,null,null,null,null,null,null,null,null,"図表3-1　★保険外の支援・サービスの利用状況"]
["C","chart56",null,null,null,null,null,null,null,null,null,null,"chart56"]
["NP"]
["F","図表3-2　★在宅生活の継続に必要と感じる支援・サービス",null,null,null,null,null,null,null,null,null,null,"図表3-2　★在宅生活の継続に必要と感じる支援・サービス"]
["C","chart57",null,null,null,null,null,null,null,null,null,null,"chart57"]
["####","(2)  世帯類型別の、保険外の支援・サービスの利用状況と必要と感じる支援・サービス",null,null,null,null,null,null,null,null,null,null,"(2)  世帯類型別の、保険外の支援・サービスの利用状況と必要と感じる支援・サービス"]
["S","【着目すべきポイント】",null,null,null,null,null,null,null,null,null,null,"【着目すべきポイント】"]
["L","世帯類型別に「保険外の支援・サービスの利用状況」と、「在宅生活の継続に必要と感じる支援・サービス」について、集計分析をしています（図表3-3、図表3-4）。",null,null,null,null,null,null,null,null,null,null,"世帯類型別に「保険外の支援・サービスの利用状況」と、「在宅生活の継続に必要と感じる支援・サービス」について、集計分析をしています（図表3-3、図表3-4）。"]
["L","「保険外の支援・サービスの利用割合」については、世帯類型別の割合をアウトプット指標としてモニタリングしていくも考えられます。",null,null,null,null,null,null,null,null,null,null,"「保険外の支援・サービスの利用割合」については、世帯類型別の割合をアウトプット指標としてモニタリングしていくも考えられます。"]
["L","また、「在宅生活の継続に必要と感じる支援・サービス」については、世帯類型別に異なる傾向がみられた場合は、世帯類型に応じたアプローチを検討していくことが重要になると考えられます。",null,null,null,null,null,null,null,null,null,null,"また、「在宅生活の継続に必要と感じる支援・サービス」については、世帯類型別に異なる傾向がみられた場合は、世帯類型に応じたアプローチを検討していくことが重要になると考えられます。"]
["S","【留意事項】",null,null,null,null,null,null,null,null,null,null,"【留意事項】"]
["L","アンケート調査の中で「必要な支援・サービス」を回答して頂くと、「無くても大丈夫であるが、無いよりはあった方が良い」といった回答も含まれることが想定されることから、回答結果は実際のニーズよりもやや過大となる可能性があります。",null,null,null,null,null,null,null,null,null,null,"アンケート調査の中で「必要な支援・サービス」を回答して頂くと、「無くても大丈夫であるが、無いよりはあった方が良い」といった回答も含まれることが想定されることから、回答結果は実際のニーズよりもやや過大となる可能性があります。"]
["L","「在宅生活の継続に必要と感じる支援・サービス」については、特に「複数の支援・サービスを比較して、より優先順位の高い支援・サービスを明らかにする」といった視点でみることが重要です。",null,null,null,null,null,null,null,null,null,null,"「在宅生活の継続に必要と感じる支援・サービス」については、特に「複数の支援・サービスを比較して、より優先順位の高い支援・サービスを明らかにする」といった視点でみることが重要です。"]
["NP"]
["F","図表3-3　世帯類型別・★保険外の支援・サービスの利用状況",null,null,null,null,null,null,null,null,null,null,"図表3-3　世帯類型別・★保険外の支援・サービスの利用状況"]
["C","chart58",null,null,null,null,null,null,null,null,null,null,"chart58"]
["NP"]
["F","図表3-4　世帯類型別・★在宅生活の継続に必要と感じる支援・サービス",null,null,null,null,null,null,null,null,null,null,"図表3-4　世帯類型別・★在宅生活の継続に必要と感じる支援・サービス"]
["C","chart59",null,null,null,null,null,null,null,null,null,null,"chart59"]
["NP"]
["####","(3)  「世帯類型」×「要介護度」×「保険外の支援・サービスの利用状況」",null,null,null,null,null,null,null,null,null,null,"(3)  「世帯類型」×「要介護度」×「保険外の支援・サービスの利用状況」"]
["S","【着目すべきポイント】",null,null,null,null,null,null,null,null,null,null,"【着目すべきポイント】"]
["L","世帯類型別・要介護度別に「保険外の支援・サービスの利用状況」について、集計分析をしています（図表3-5～図表3-8）。",null,null,null,null,null,null,null,null,null,null,"世帯類型別・要介護度別に「保険外の支援・サービスの利用状況」について、集計分析をしています（図表3-5～図表3-8）。"]
["L","利用割合の低い世帯類型であっても、要介護度の重度化に伴い利用割合が増加している支援・サービスがあることも考えられます。",null,null,null,null,null,null,null,null,null,null,"利用割合の低い世帯類型であっても、要介護度の重度化に伴い利用割合が増加している支援・サービスがあることも考えられます。"]
["L","介護保険サービスと同様、重度化に伴い、どのような支援・サービスの利用割合が増加しているかに着目することで、現在在宅で生活をする中重度の要介護者が、どのような支援・サービス利用を増加させることで在宅生活を維持しているかを把握することができます。",null,null,null,null,null,null,null,null,null,null,"介護保険サービスと同様、重度化に伴い、どのような支援・サービスの利用割合が増加しているかに着目することで、現在在宅で生活をする中重度の要介護者が、どのような支援・サービス利用を増加させることで在宅生活を維持しているかを把握することができます。"]
["F","図表3-5　要介護度別・★保険外の支援・サービスの利用状況",null,null,null,null,null,null,null,null,null,null,"図表3-5　要介護度別・★保険外の支援・サービスの利用状況"]
["C","chart60",null,null,null,null,null,null,null,null,null,null,"chart60"]
["NP"]
["F","図表3-6　要介護度別・★保険外の支援・サービスの利用状況（単身世帯）",null,null,null,null,null,null,null,null,null,null,"図表3-6　要介護度別・★保険外の支援・サービスの利用状況（単身世帯）"]
["C","chart61",null,null,null,null,null,null,null,null,null,null,"chart61"]
["NP"]
["F","図表3-7　要介護度別・★保険外の支援・サービスの利用状況（夫婦のみ世帯）",null,null,null,null,null,null,null,null,null,null,"図表3-7　要介護度別・★保険外の支援・サービスの利用状況（夫婦のみ世帯）"]
["C","chart62",null,null,null,null,null,null,null,null,null,null,"chart62"]
["NP"]
["F","図表3-8　要介護度別・★保険外の支援・サービスの利用状況（その他世帯）",null,null,null,null,null,null,null,null,null,null,"図表3-8　要介護度別・★保険外の支援・サービスの利用状況（その他世帯）"]
["C","chart63",null,null,null,null,null,null,null,null,null,null,"chart63"]
["NP"]
["####","(4)  「世帯類型」×「要介護度」×「必要と感じる支援・サービス」",null,null,null,null,null,null,null,null,null,null,"(4)  「世帯類型」×「要介護度」×「必要と感じる支援・サービス」"]
["S","【着目すべきポイント】",null,null,null,null,null,null,null,null,null,null,"【着目すべきポイント】"]
["L","世帯類型別・要介護度別に「必要と感じる支援・サービス」について、集計分析をしています（図表3-9～図表3-12）。",null,null,null,null,null,null,null,null,null,null,"世帯類型別・要介護度別に「必要と感じる支援・サービス」について、集計分析をしています（図表3-9～図表3-12）。"]
["L","特に、各世帯類型の要介護度別のニーズに着目しながら、各地域の実情に応じた取組を推進していくことが必要です。",null,null,null,null,null,null,null,null,null,null,"特に、各世帯類型の要介護度別のニーズに着目しながら、各地域の実情に応じた取組を推進していくことが必要です。"]
["F","図表3-9　要介護度別・★在宅生活の継続に必要と感じる支援・サービス",null,null,null,null,null,null,null,null,null,null,"図表3-9　要介護度別・★在宅生活の継続に必要と感じる支援・サービス"]
["C","chart64",null,null,null,null,null,null,null,null,null,null,"chart64"]
["NP"]
["F","図表3-10　要介護度別・★在宅生活の継続に必要と感じる支援・サービス（単身世帯）",null,null,null,null,null,null,null,null,null,null,"図表3-10　要介護度別・★在宅生活の継続に必要と感じる支援・サービス（単身世帯）"]
["C","chart65",null,null,null,null,null,null,null,null,null,null,"chart65"]
["NP"]
["F","図表3-11　要介護度別・★在宅生活の継続に必要と感じる支援・サービス（夫婦のみ世帯）",null,null,null,null,null,null,null,null,null,null,"図表3-11　要介護度別・★在宅生活の継続に必要と感じる支援・サービス（夫婦のみ世帯）"]
["C","chart66",null,null,null,null,null,null,null,null,null,null,"chart66"]
["NP"]
["F","図表3-12　要介護度別・★在宅生活の継続に必要と感じる支援・サービス（その他世帯）",null,null,null,null,null,null,null,null,null,null,"図表3-12　要介護度別・★在宅生活の継続に必要と感じる支援・サービス（その他世帯）"]
["C","chart67",null,null,null,null,null,null,null,null,null,null,"chart67"]
["NP"]
["###","3.3　 考察",null,null,null,null,null,null,null,null,null,null,"3.3　 考察"]
["P","※「試行調査に基づく調査報告書」を参考としながら、「関係者間での議論と考察」を経て、各自治体の調査分析結果に基づく「考察」を記載してください。",null,null,null,null,null,null,null,null,null,null,"※「試行調査に基づく調査報告書」を参考としながら、「関係者間での議論と考察」を経て、各自治体の調査分析結果に基づく「考察」を記載してください。"]
["NP"]
["##","4　 将来の世帯類型の変化に応じた支援・サービスの提供体制の検討",null,null,null,null,null,null,null,null,null,null,"4　 将来の世帯類型の変化に応じた支援・サービスの提供体制の検討"]
["###","4.1　 集計・分析の狙い",null,null,null,null,null,null,null,null,null,null,"4.1　 集計・分析の狙い"]
["L","ここでは、在宅限界点の向上のための、将来の世帯類型の変化に応じた支援・サービスの提供体制の検討につなげるため、特に世帯類型別の「サービス利用の特徴」や「施設等検討の状況」に焦点を当てた集計を行っています。",null,null,null,null,null,null,null,null,null,null,"ここでは、在宅限界点の向上のための、将来の世帯類型の変化に応じた支援・サービスの提供体制の検討につなげるため、特に世帯類型別の「サービス利用の特徴」や「施設等検討の状況」に焦点を当てた集計を行っています。"]
["L","具体的には、世帯類型別の「家族等による介護の頻度」、「サービス利用の組み合わせ」、「施設等検討の状況」などの分析を行います。",null,null,null,null,null,null,null,null,null,null,"具体的には、世帯類型別の「家族等による介護の頻度」、「サービス利用の組み合わせ」、「施設等検討の状況」などの分析を行います。"]
["L","将来の高齢世帯の世帯類型の構成は、地域ごとに異なりますので、それぞれ地域の実情に応じた支援・サービスの検討につなげていくことが重要となります。",null,null,null,null,null,null,null,null,null,null,"将来の高齢世帯の世帯類型の構成は、地域ごとに異なりますので、それぞれ地域の実情に応じた支援・サービスの検討につなげていくことが重要となります。"]
["NP"]
["###","4.2　 集計結果と着目すべきポイント",null,null,null,null,null,null,null,null,null,null,"4.2　 集計結果と着目すべきポイント"]
["####","(1)  基礎集計",null,null,null,null,null,null,null,null,null,null,"(1)  基礎集計"]
["L","「要介護度別の世帯類型の割合」および「世帯類型別の要介護度の割合」を集計しています（図表4-1、図表4-2）。",null,null,null,null,null,null,null,null,null,null,"「要介護度別の世帯類型の割合」および「世帯類型別の要介護度の割合」を集計しています（図表4-1、図表4-2）。"]
["L","要介護度の重度化に伴う、世帯類型の変化などを確認してください。",null,null,null,null,null,null,null,null,null,null,"要介護度の重度化に伴う、世帯類型の変化などを確認してください。"]
["F","図表4-1　要介護度別・世帯類型",null,null,null,null,null,null,null,null,null,null,"図表4-1　要介護度別・世帯類型"]
["C","chart68",null,null,null,null,null,null,null,null,null,null,"chart68"]
["F","図表4-2　世帯類型別・要介護度",null,null,null,null,null,null,null,null,null,null,"図表4-2　世帯類型別・要介護度"]
["C","chart69",null,null,null,null,null,null,null,null,null,null,"chart69"]
["NP"]
["####","(2)  「要介護度別・世帯類型別」の「家族等による介護の頻度」",null,null,null,null,null,null,null,null,null,null,"(2)  「要介護度別・世帯類型別」の「家族等による介護の頻度」"]
["S","【着目すべきポイント】",null,null,null,null,null,null,null,null,null,null,"【着目すべきポイント】"]
["L","図表4-3では、「世帯類型別」の「家族等による介護の頻度」の割合を集計しています。また、図表4-4～図表4-6では、世帯類型別に「要介護度別」の「家族等による介護の頻度」を集計しています。",null,null,null,null,null,null,null,null,null,null,"図表4-3では、「世帯類型別」の「家族等による介護の頻度」の割合を集計しています。また、図表4-4～図表4-6では、世帯類型別に「要介護度別」の「家族等による介護の頻度」を集計しています。"]
["L","「単身世帯」については、同居の家族等はいなくても、近居の家族等による介護が行われているケースも多いと考えられます。中重度の単身世帯のうち、家族等の介護がない中で在宅生活を送っているケースがどの程度あるかなど、現状についてご確認ください。",null,null,null,null,null,null,null,null,null,null,"「単身世帯」については、同居の家族等はいなくても、近居の家族等による介護が行われているケースも多いと考えられます。中重度の単身世帯のうち、家族等の介護がない中で在宅生活を送っているケースがどの程度あるかなど、現状についてご確認ください。"]
["F","図表4-3　世帯類型別・家族等による介護の頻度",null,null,null,null,null,null,null,null,null,null,"図表4-3　世帯類型別・家族等による介護の頻度"]
["C","chart70",null,null,null,null,null,null,null,null,null,null,"chart70"]
["NP"]
["F","図表4-4　要介護度別・家族等による介護の頻度（単身世帯）",null,null,null,null,null,null,null,null,null,null,"図表4-4　要介護度別・家族等による介護の頻度（単身世帯）"]
["C","chart71",null,null,null,null,null,null,null,null,null,null,"chart71"]
["F","図表4-5　要介護度別・家族等による介護の頻度（夫婦のみ世帯）",null,null,null,null,null,null,null,null,null,null,"図表4-5　要介護度別・家族等による介護の頻度（夫婦のみ世帯）"]
["C","chart72",null,null,null,null,null,null,null,null,null,null,"chart72"]
["F","図表4-6　要介護度別・家族等による介護の頻度（その他世帯）",null,null,null,null,null,null,null,null,null,null,"図表4-6　要介護度別・家族等による介護の頻度（その他世帯）"]
["C","chart73",null,null,null,null,null,null,null,null,null,null,"chart73"]
["NP"]
["####","(3)  「要介護度別・認知症自立度別」の「世帯類型別のサービス利用の組み合わせ」",null,null,null,null,null,null,null,null,null,null,"(3)  「要介護度別・認知症自立度別」の「世帯類型別のサービス利用の組み合わせ」"]
["S","【着目すべきポイント】",null,null,null,null,null,null,null,null,null,null,"【着目すべきポイント】"]
["L","要介護度別・認知症自立度別の「世帯類型別のサービス利用の組み合わせ」について、集計分析をしています（図表4-7～図表4-12）。",null,null,null,null,null,null,null,null,null,null,"要介護度別・認知症自立度別の「世帯類型別のサービス利用の組み合わせ」について、集計分析をしています（図表4-7～図表4-12）。"]
["L","サービス利用の組み合わせは、「訪問系のみ」のサービス利用と、レスパイト機能をもつ「通所系」および「短期系」のみのサービス利用、さらにその２つを組み合わせた「訪問系を含むサービス利用」の３種類（未利用除く）に簡略化したものを使用しています。",null,null,null,null,null,null,null,null,null,null,"サービス利用の組み合わせは、「訪問系のみ」のサービス利用と、レスパイト機能をもつ「通所系」および「短期系」のみのサービス利用、さらにその２つを組み合わせた「訪問系を含むサービス利用」の３種類（未利用除く）に簡略化したものを使用しています。"]
["L","重度化に伴い、どのようなサービス利用の組み合わせが増加しているかに着目することで、現在在宅で生活をする中重度の要介護者が、どのような組み合わせのサービス利用を増加させることで在宅生活を維持しているかを、世帯類型別に把握することができます。",null,null,null,null,null,null,null,null,null,null,"重度化に伴い、どのようなサービス利用の組み合わせが増加しているかに着目することで、現在在宅で生活をする中重度の要介護者が、どのような組み合わせのサービス利用を増加させることで在宅生活を維持しているかを、世帯類型別に把握することができます。"]
["L","また、世帯類型別の要介護者の増加に伴い、どのような「サービス利用の組み合わせ」のニーズが大きくなると考えられるかを推測することも可能になります。",null,null,null,null,null,null,null,null,null,null,"また、世帯類型別の要介護者の増加に伴い、どのような「サービス利用の組み合わせ」のニーズが大きくなると考えられるかを推測することも可能になります。"]
["L","例えば、特に今後「要介護度が中重度の単身世帯」が増加すると見込まれる場合は、単身世帯の要介護者が要介護度の重度化に伴いどのようなサービス利用の組み合わせを増加させているかに着目し、推測することなどが考えられます。",null,null,null,null,null,null,null,null,null,null,"例えば、特に今後「要介護度が中重度の単身世帯」が増加すると見込まれる場合は、単身世帯の要介護者が要介護度の重度化に伴いどのようなサービス利用の組み合わせを増加させているかに着目し、推測することなどが考えられます。"]
["S","【留意事項】",null,null,null,null,null,null,null,null,null,null,"【留意事項】"]
["L","ただし、現在利用しているサービスが「地域目標を達成するためのサービス」であるとは限らない点には注意が必要です。",null,null,null,null,null,null,null,null,null,null,"ただし、現在利用しているサービスが「地域目標を達成するためのサービス」であるとは限らない点には注意が必要です。"]
["NP"]
["F","図表4-7　要介護度別・サービス利用の組み合わせ（単身世帯）",null,null,null,null,null,null,null,null,null,null,"図表4-7　要介護度別・サービス利用の組み合わせ（単身世帯）"]
["C","chart74",null,null,null,null,null,null,null,null,null,null,"chart74"]
["F","図表4-8　要介護度別・サービス利用の組み合わせ（夫婦のみ世帯）",null,null,null,null,null,null,null,null,null,null,"図表4-8　要介護度別・サービス利用の組み合わせ（夫婦のみ世帯）"]
["C","chart75",null,null,null,null,null,null,null,null,null,null,"chart75"]
["F","図表4-9　要介護度別・サービス利用の組み合わせ（その他世帯）",null,null,null,null,null,null,null,null,null,null,"図表4-9　要介護度別・サービス利用の組み合わせ（その他世帯）"]
["C","chart76",null,null,null,null,null,null,null,null,null,null,"chart76"]
["NP"]
["F","図表4-10　認知症自立度別・サービス利用の組み合わせ（単身世帯）",null,null,null,null,null,null,null,null,null,null,"図表4-10　認知症自立度別・サービス利用の組み合わせ（単身世帯）"]
["C","chart77",null,null,null,null,null,null,null,null,null,null,"chart77"]
["F","図表4-11　認知症自立度別・サービス利用の組み合わせ（夫婦のみ世帯）",null,null,null,null,null,null,null,null,null,null,"図表4-11　認知症自立度別・サービス利用の組み合わせ（夫婦のみ世帯）"]
["C","chart78",null,null,null,null,null,null,null,null,null,null,"chart78"]
["F","図表4-12　認知症自立度別・サービス利用の組み合わせ（その他世帯）",null,null,null,null,null,null,null,null,null,null,"図表4-12　認知症自立度別・サービス利用の組み合わせ（その他世帯）"]
["C","chart79",null,null,null,null,null,null,null,null,null,null,"chart79"]
["NP"]
["####","(4)  「要介護度別・認知症自立度別別」の「世帯類型別の施設等検討の状況」",null,null,null,null,null,null,null,null,null,null,"(4)  「要介護度別・認知症自立度別別」の「世帯類型別の施設等検討の状況」"]
["S","【着目すべきポイント】",null,null,null,null,null,null,null,null,null,null,"【着目すべきポイント】"]
["L","ここでは、「要介護度別・認知症自立度別」の「世帯類型別の施設等検討の状況」について、集計分析をしています（図表4-13～図表4-19）。",null,null,null,null,null,null,null,null,null,null,"ここでは、「要介護度別・認知症自立度別」の「世帯類型別の施設等検討の状況」について、集計分析をしています（図表4-13～図表4-19）。"]
["L","「施設等検討の状況」について「入所・入居は検討していない」の割合を高めることは、在宅介護実態調査で想定する「アウトカム」の１つです。",null,null,null,null,null,null,null,null,null,null,"「施設等検討の状況」について「入所・入居は検討していない」の割合を高めることは、在宅介護実態調査で想定する「アウトカム」の１つです。"]
["L","ここでは「世帯類型」ごとの特徴を集計分析することで、地域目標を達成するためのサービス整備方針の検討につなげることなどを想定しています。",null,null,null,null,null,null,null,null,null,null,"ここでは「世帯類型」ごとの特徴を集計分析することで、地域目標を達成するためのサービス整備方針の検討につなげることなどを想定しています。"]
["F","図表4-13　世帯類型別・施設等検討の状況（全要介護度）",null,null,null,null,null,null,null,null,null,null,"図表4-13　世帯類型別・施設等検討の状況（全要介護度）"]
["C","chart80",null,null,null,null,null,null,null,null,null,null,"chart80"]
["NP"]
["F","図表4-14　要介護度別・施設等検討の状況（単身世帯）",null,null,null,null,null,null,null,null,null,null,"図表4-14　要介護度別・施設等検討の状況（単身世帯）"]
["C","chart81",null,null,null,null,null,null,null,null,null,null,"chart81"]
["F","図表4-15　要介護度別・施設等検討の状況（夫婦のみ世帯）",null,null,null,null,null,null,null,null,null,null,"図表4-15　要介護度別・施設等検討の状況（夫婦のみ世帯）"]
["C","chart82",null,null,null,null,null,null,null,null,null,null,"chart82"]
["F","図表4-16　要介護度別・施設等検討の状況（その他世帯）",null,null,null,null,null,null,null,null,null,null,"図表4-16　要介護度別・施設等検討の状況（その他世帯）"]
["C","chart83",null,null,null,null,null,null,null,null,null,null,"chart83"]
["NP"]
["F","図表4-17　認知症自立度別・施設等検討の状況（単身世帯）",null,null,null,null,null,null,null,null,null,null,"図表4-17　認知症自立度別・施設等検討の状況（単身世帯）"]
["C","chart84",null,null,null,null,null,null,null,null,null,null,"chart84"]
["F","図表4-18　認知症自立度別・施設等検討の状況（夫婦のみ世帯）",null,null,null,null,null,null,null,null,null,null,"図表4-18　認知症自立度別・施設等検討の状況（夫婦のみ世帯）"]
["C","chart85",null,null,null,null,null,null,null,null,null,null,"chart85"]
["F","図表4-19　認知症自立度別・施設等検討の状況（その他の世帯）",null,null,null,null,null,null,null,null,null,null,"図表4-19　認知症自立度別・施設等検討の状況（その他の世帯）"]
["C","chart86",null,null,null,null,null,null,null,null,null,null,"chart86"]
["NP"]
["###","4.3　 考察",null,null,null,null,null,null,null,null,null,null,"4.3　 考察"]
["P","※「試行調査に基づく調査報告書」を参考としながら、「関係者間での議論と考察」を経て、各自治体の調査分析結果に基づく「考察」を記載してください。",null,null,null,null,null,null,null,null,null,null,"※「試行調査に基づく調査報告書」を参考としながら、「関係者間での議論と考察」を経て、各自治体の調査分析結果に基づく「考察」を記載してください。"]
["NP"]
["##","5　 医療ニーズの高い在宅療養者を支える支援・サービスの提供体制の検討",null,null,null,null,null,null,null,null,null,null,"5　 医療ニーズの高い在宅療養者を支える支援・サービスの提供体制の検討"]
["###","5.1　 集計・分析の狙い",null,null,null,null,null,null,null,null,null,null,"5.1　 集計・分析の狙い"]
["L","ここでは、医療ニーズの高い在宅療養者を支える支援・サービスの検討につなげるための集計を行います。",null,null,null,null,null,null,null,null,null,null,"ここでは、医療ニーズの高い在宅療養者を支える支援・サービスの検討につなげるための集計を行います。"]
["L","具体的には、世帯類型別・要介護度別の「主な介護者が行っている介護」や「訪問診療の利用の有無」、「訪問診療の利用の有無別のサービス利用の組み合わせ」などの分析を行います。",null,null,null,null,null,null,null,null,null,null,"具体的には、世帯類型別・要介護度別の「主な介護者が行っている介護」や「訪問診療の利用の有無」、「訪問診療の利用の有無別のサービス利用の組み合わせ」などの分析を行います。"]
["NP"]
["###","5.2　 集計結果と着目すべきポイント",null,null,null,null,null,null,null,null,null,null,"5.2　 集計結果と着目すべきポイント"]
["####","(1)  基礎集計",null,null,null,null,null,null,null,null,null,null,"(1)  基礎集計"]
["L","「主な介護者が行っている介護」について、要介護度別・世帯類型別の集計を行っています（図表5-1～図表5-3）。",null,null,null,null,null,null,null,null,null,null,"「主な介護者が行っている介護」について、要介護度別・世帯類型別の集計を行っています（図表5-1～図表5-3）。"]
["L","ここでは、特に「医療面での対応（経管栄養、ストーマ等）」に着目し、家族等の主な介護者が「医療面での対応」を行っている割合を把握することができます。",null,null,null,null,null,null,null,null,null,null,"ここでは、特に「医療面での対応（経管栄養、ストーマ等）」に着目し、家族等の主な介護者が「医療面での対応」を行っている割合を把握することができます。"]
["F","図表5-1　★主な介護者が行っている介護",null,null,null,null,null,null,null,null,null,null,"図表5-1　★主な介護者が行っている介護"]
["C","chart87",null,null,null,null,null,null,null,null,null,null,"chart87"]
["NP"]
["F","図表5-2　要介護度別・★主な介護者が行っている介護",null,null,null,null,null,null,null,null,null,null,"図表5-2　要介護度別・★主な介護者が行っている介護"]
["C","chart88",null,null,null,null,null,null,null,null,null,null,"chart88"]
["NP"]
["F","図表5-3　世帯類型別・★主な介護者が行っている介護（要介護３以上）",null,null,null,null,null,null,null,null,null,null,"図表5-3　世帯類型別・★主な介護者が行っている介護（要介護３以上）"]
["C","chart89",null,null,null,null,null,null,null,null,null,null,"chart89"]
["NP"]
["####","(2)  訪問診療の利用割合",null,null,null,null,null,null,null,null,null,null,"(2)  訪問診療の利用割合"]
["S","【着目すべきポイント】",null,null,null,null,null,null,null,null,null,null,"【着目すべきポイント】"]
["L","「訪問診療の利用の有無」について、世帯類型別・要介護度別の集計を行っています（図表5-4～図表5-6）。",null,null,null,null,null,null,null,null,null,null,"「訪問診療の利用の有無」について、世帯類型別・要介護度別の集計を行っています（図表5-4～図表5-6）。"]
["L","特に、「要介護度別の訪問診療の利用割合」を「将来の要介護度別の在宅療養者数」に乗じることで、「将来の在宅における訪問診療の利用者数」の粗推計を行うことも可能です。",null,null,null,null,null,null,null,null,null,null,"特に、「要介護度別の訪問診療の利用割合」を「将来の要介護度別の在宅療養者数」に乗じることで、「将来の在宅における訪問診療の利用者数」の粗推計を行うことも可能です。"]
["S","【留意事項】",null,null,null,null,null,null,null,null,null,null,"【留意事項】"]
["L","ここでの「訪問診療」には、訪問歯科診療や居宅療養管理指導等は含まれていません。",null,null,null,null,null,null,null,null,null,null,"ここでの「訪問診療」には、訪問歯科診療や居宅療養管理指導等は含まれていません。"]
["L","また、上述の「将来の在宅における訪問診療の利用者数」を推計方法は、現在の訪問診療の利用割合を前提としたものであり、地域の状況の変化によっては誤差が大きくなることが想定されます。粗推計のための手法である点については、注意が必要です。",null,null,null,null,null,null,null,null,null,null,"また、上述の「将来の在宅における訪問診療の利用者数」を推計方法は、現在の訪問診療の利用割合を前提としたものであり、地域の状況の変化によっては誤差が大きくなることが想定されます。粗推計のための手法である点については、注意が必要です。"]
["L","必要に応じて、地域医療構想の検討における「2025年の在宅医療等で対応が必要な医療需要」の需要量予測の結果等もご覧ください。",null,null,null,null,null,null,null,null,null,null,"必要に応じて、地域医療構想の検討における「2025年の在宅医療等で対応が必要な医療需要」の需要量予測の結果等もご覧ください。"]
["F","図表5-4　★訪問診療の利用の有無",null,null,null,null,null,null,null,null,null,null,"図表5-4　★訪問診療の利用の有無"]
["C","chart90",null,null,null,null,null,null,null,null,null,null,"chart90"]
["F","図表5-5　世帯類型別・★訪問診療の利用割合",null,null,null,null,null,null,null,null,null,null,"図表5-5　世帯類型別・★訪問診療の利用割合"]
["C","chart91",null,null,null,null,null,null,null,null,null,null,"chart91"]
["NP"]
["F","図表5-6　要介護度別・★訪問診療の利用割合",null,null,null,null,null,null,null,null,null,null,"図表5-6　要介護度別・★訪問診療の利用割合"]
["C","chart92",null,null,null,null,null,null,null,null,null,null,"chart92"]
["####","(3)  訪問診療の利用の有無別のサービス利用の組み合わせ",null,null,null,null,null,null,null,null,null,null,"(3)  訪問診療の利用の有無別のサービス利用の組み合わせ"]
["S","【着目すべきポイント】",null,null,null,null,null,null,null,null,null,null,"【着目すべきポイント】"]
["L","訪問診療の利用の有無別に、要介護３以上の「サービス利用の組み合わせ」を集計しています（図表5-7）。",null,null,null,null,null,null,null,null,null,null,"訪問診療の利用の有無別に、要介護３以上の「サービス利用の組み合わせ」を集計しています（図表5-7）。"]
["L","特に、今後在宅で療養生活を送る医療ニーズの高い中重度の要介護者の増加が見込まれる地域では、今後どのようなサービスに対する利用ニーズが高まるかを予測することにもつながります。",null,null,null,null,null,null,null,null,null,null,"特に、今後在宅で療養生活を送る医療ニーズの高い中重度の要介護者の増加が見込まれる地域では、今後どのようなサービスに対する利用ニーズが高まるかを予測することにもつながります。"]
["F","図表5-7　★訪問診療の利用の有無別・サービス利用の組み合わせ（要介護３以上）",null,null,null,null,null,null,null,null,null,null,"図表5-7　★訪問診療の利用の有無別・サービス利用の組み合わせ（要介護３以上）"]
["C","chart93",null,null,null,null,null,null,null,null,null,null,"chart93"]
["NP"]
["####","(4)  訪問診療の利用の有無別の訪問系・通所系・短期系サービスの利用の有無",null,null,null,null,null,null,null,null,null,null,"(4)  訪問診療の利用の有無別の訪問系・通所系・短期系サービスの利用の有無"]
["S","【着目すべきポイント】",null,null,null,null,null,null,null,null,null,null,"【着目すべきポイント】"]
["L","訪問診療の利用の有無別に、要介護３以上について、訪問系・通所系・短期系のそれぞれのサービス利用の有無を集計しています（図表5-8～図表5-10）。",null,null,null,null,null,null,null,null,null,null,"訪問診療の利用の有無別に、要介護３以上について、訪問系・通所系・短期系のそれぞれのサービス利用の有無を集計しています（図表5-8～図表5-10）。"]
["L","地域によっては、例えば「医療ニーズの高い要介護者」の受け入れが可能なショートステイが十分に整っていない場合に、訪問診療の利用の有無で短期系の利用割合が大きく異なることも想定されます。",null,null,null,null,null,null,null,null,null,null,"地域によっては、例えば「医療ニーズの高い要介護者」の受け入れが可能なショートステイが十分に整っていない場合に、訪問診療の利用の有無で短期系の利用割合が大きく異なることも想定されます。"]
["S","【留意事項】",null,null,null,null,null,null,null,null,null,null,"【留意事項】"]
["L","上記の例のように、訪問診療の利用の有無で短期系の利用割合が大きく異なる場合についても、必ずしも「「医療ニーズの高い要介護者」の受け入れが可能なショートステイが十分に整っていない」ことに原因があるとは限りません。",null,null,null,null,null,null,null,null,null,null,"上記の例のように、訪問診療の利用の有無で短期系の利用割合が大きく異なる場合についても、必ずしも「「医療ニーズの高い要介護者」の受け入れが可能なショートステイが十分に整っていない」ことに原因があるとは限りません。"]
["L","集計分析結果の解釈は、地域の実情等に照らし合わせながら、専門職を含む関係者間での議論・考察を経て行うことが必要です。",null,null,null,null,null,null,null,null,null,null,"集計分析結果の解釈は、地域の実情等に照らし合わせながら、専門職を含む関係者間での議論・考察を経て行うことが必要です。"]
["F","図表5-8　★訪問診療の利用の有無別・サービスの利用の有無（訪問系、要介護３以上）",null,null,null,null,null,null,null,null,null,null,"図表5-8　★訪問診療の利用の有無別・サービスの利用の有無（訪問系、要介護３以上）"]
["C","chart94",null,null,null,null,null,null,null,null,null,null,"chart94"]
["F","図表5-9　★訪問診療の利用の有無別・サービスの利用の有無（通所系、要介護３以上）",null,null,null,null,null,null,null,null,null,null,"図表5-9　★訪問診療の利用の有無別・サービスの利用の有無（通所系、要介護３以上）"]
["C","chart95",null,null,null,null,null,null,null,null,null,null,"chart95"]
["NP"]
["F","図表5-10　★訪問診療の利用の有無別・サービス利用の有無（短期系、要介護３以上）",null,null,null,null,null,null,null,null,null,null,"図表5-10　★訪問診療の利用の有無別・サービス利用の有無（短期系、要介護３以上）"]
["C","chart96",null,null,null,null,null,null,null,null,null,null,"chart96"]
["NP"]
["###","5.3　 考察",null,null,null,null,null,null,null,null,null,null,"5.3　 考察"]
["P","※「試行調査に基づく調査報告書」を参考としながら、「関係者間での議論と考察」を経て、各自治体の調査分析結果に基づく「考察」を記載してください。",null,null,null,null,null,null,null,null,null,null,"※「試行調査に基づく調査報告書」を参考としながら、「関係者間での議論と考察」を経て、各自治体の調査分析結果に基づく「考察」を記載してください。"]
["NP"]
["##","6　 サービス未利用の理由など",null,null,null,null,null,null,null,null,null,null,"6　 サービス未利用の理由など"]
["###","6.1　 集計・分析の狙い",null,null,null,null,null,null,null,null,null,null,"6.1　 集計・分析の狙い"]
["L","ここでは、各地域において支援・サービスの提供体制の構築を含む各種の取組を検討する際に、参考になると考えられるいくつかの集計結果を整理しています。",null,null,null,null,null,null,null,null,null,null,"ここでは、各地域において支援・サービスの提供体制の構築を含む各種の取組を検討する際に、参考になると考えられるいくつかの集計結果を整理しています。"]
["L","主要なデータは、テーマ１～テーマ５において整理をしていますが、ここで整理する集計結果も必要に応じてご活用ください。",null,null,null,null,null,null,null,null,null,null,"主要なデータは、テーマ１～テーマ５において整理をしていますが、ここで整理する集計結果も必要に応じてご活用ください。"]
["NP"]
["###","6.2　 集計結果（参考）",null,null,null,null,null,null,null,null,null,null,"6.2　 集計結果（参考）"]
["####","(1)  要介護度別・世帯類型別のサービス未利用の理由",null,null,null,null,null,null,null,null,null,null,"(1)  要介護度別・世帯類型別のサービス未利用の理由"]
["F","図表6-1　要介護度別の★サービス未利用の理由",null,null,null,null,null,null,null,null,null,null,"図表6-1　要介護度別の★サービス未利用の理由"]
["C","chart97",null,null,null,null,null,null,null,null,null,null,"chart97"]
["NP"]
["F","図表6-2　要介護度別の★サービス未利用の理由（単身世帯）",null,null,null,null,null,null,null,null,null,null,"図表6-2　要介護度別の★サービス未利用の理由（単身世帯）"]
["C","chart98",null,null,null,null,null,null,null,null,null,null,"chart98"]
["NP"]
["F","図表6-3　要介護度別の★サービス未利用の理由（夫婦のみ世帯）",null,null,null,null,null,null,null,null,null,null,"図表6-3　要介護度別の★サービス未利用の理由（夫婦のみ世帯）"]
["C","chart99",null,null,null,null,null,null,null,null,null,null,"chart99"]
["NP"]
["F","図表6-4　要介護度別の★サービス未利用の理由（その他世帯）",null,null,null,null,null,null,null,null,null,null,"図表6-4　要介護度別の★サービス未利用の理由（その他世帯）"]
["C","chart100",null,null,null,null,null,null,null,null,null,null,"chart100"]
["NP"]
["####","(2)  認知症自立度別・世帯類型別のサービス未利用の理由",null,null,null,null,null,null,null,null,null,null,"(2)  認知症自立度別・世帯類型別のサービス未利用の理由"]
["F","図表6-5　認知症自立度別の★サービス未利用の理由",null,null,null,null,null,null,null,null,null,null,"図表6-5　認知症自立度別の★サービス未利用の理由"]
["C","chart101",null,null,null,null,null,null,null,null,null,null,"chart101"]
["NP"]
["F","図表6-6　認知症自立度別の★サービス未利用の理由（単身世帯）",null,null,null,null,null,null,null,null,null,null,"図表6-6　認知症自立度別の★サービス未利用の理由（単身世帯）"]
["C","chart102",null,null,null,null,null,null,null,null,null,null,"chart102"]
["NP"]
["F","図表6-7　認知症自立度別の★サービス未利用の理由（夫婦のみ世帯）",null,null,null,null,null,null,null,null,null,null,"図表6-7　認知症自立度別の★サービス未利用の理由（夫婦のみ世帯）"]
["C","chart103",null,null,null,null,null,null,null,null,null,null,"chart103"]
["NP"]
["F","図表6-8　認知症自立度別の★サービス未利用の理由（その他世帯）",null,null,null,null,null,null,null,null,null,null,"図表6-8　認知症自立度別の★サービス未利用の理由（その他世帯）"]
["C","chart104",null,null,null,null,null,null,null,null,null,null,"chart104"]
["NP"]
["####","(3)  認知症自立度別の今後の在宅生活に必要と感じる支援・サービス",null,null,null,null,null,null,null,null,null,null,"(3)  認知症自立度別の今後の在宅生活に必要と感じる支援・サービス"]
["F","図表6-9　認知症自立度別の★在宅生活の継続に必要と感じる支援・サービス",null,null,null,null,null,null,null,null,null,null,"図表6-9　認知症自立度別の★在宅生活の継続に必要と感じる支援・サービス"]
["C","chart105",null,null,null,null,null,null,null,null,null,null,"chart105"]
["NP"]
["F","図表6-10　認知症自立度別の★在宅生活の継続に必要と感じる支援・サービス（単身世帯）",null,null,null,null,null,null,null,null,null,null,"図表6-10　認知症自立度別の★在宅生活の継続に必要と感じる支援・サービス（単身世帯）"]
["C","chart106",null,null,null,null,null,null,null,null,null,null,"chart106"]
["NP"]
["F","図表6-11　認知症自立度別の★在宅生活の継続に必要と感じる支援・サービス（夫婦のみ世帯）",null,null,null,null,null,null,null,null,null,null,"図表6-11　認知症自立度別の★在宅生活の継続に必要と感じる支援・サービス（夫婦のみ世帯）"]
["C","chart107",null,null,null,null,null,null,null,null,null,null,"chart107"]
["NP"]
["F","図表6-12　認知症自立度別の★在宅生活の継続に必要と感じる支援・サービス（その他世帯）",null,null,null,null,null,null,null,null,null,null,"図表6-12　認知症自立度別の★在宅生活の継続に必要と感じる支援・サービス（その他世帯）"]
["C","chart108",null,null,null,null,null,null,null,null,null,null,"chart108"]
["NP"]
["####","(4)  本人の年齢別・主な介護者の年齢",null,null,null,null,null,null,null,null,null,null,"(4)  本人の年齢別・主な介護者の年齢"]
["F","図表6-13　本人の年齢別・主な介護者の年齢",null,null,null,null,null,null,null,null,null,null,"図表6-13　本人の年齢別・主な介護者の年齢"]
["C","chart109",null,null,null,null,null,null,null,null,null,null,"chart109"]
["NP"]
["####","(5)  要介護度別の抱えている傷病",null,null,null,null,null,null,null,null,null,null,"(5)  要介護度別の抱えている傷病"]
["F","図表6-14　要介護度別・★抱えている傷病",null,null,null,null,null,null,null,null,null,null,"図表6-14　要介護度別・★抱えている傷病"]
["C","chart110",null,null,null,null,null,null,null,null,null,null,"chart110"]
["NP"]
["####","(6)  訪問診療の利用の有無別の抱えている傷病",null,null,null,null,null,null,null,null,null,null,"(6)  訪問診療の利用の有無別の抱えている傷病"]
["F","図表6-15　★訪問診療の利用の有無別・★抱えている傷病",null,null,null,null,null,null,null,null,null,null,"図表6-15　★訪問診療の利用の有無別・★抱えている傷病"]
["C","chart111",null,null,null,null,null,null,null,null,null,null,"chart111"]

{"sheet":"データセット","index":9,"n_rows":70,"n_cols":36,"rows_kept":70,"cut":false,"hidden":true,"merged":[[2,0,16,0],[17,0,21,0],[22,0,31,0],[32,0,69,0]]}
[1,2,3,4,5,6,7,8,9,10,11,12,13,14,15,16,17,18,19,20,21,22,23,24,25,26,27,28,29,30,31,32,33,34,35,36]
[null,"設問","単複","選択肢数","最大選択数",1,2,3,4,5,6,7,8,9,10,11,12,13,14,15,16,17,18,19,20,21,22,23,24,25,26,27,28,29,30,"設問No"]
["Ａ票","A票の聞き取りを行った相手","MA",5,0,"調査対象者本人","主な介護者となっている家族・親族","主な介護者以外の家族・親族","調査対象者のケアマネジャー","その他",null,null,null,null,null,null,null,null,null,null,null,null,null,null,null,null,null,null,null,null,null,null,null,null,null,1]
[null,"問1_世帯類型","SA",3,0,"単身世帯","夫婦のみ世帯","その他","無回答",null,null,null,null,null,null,null,null,null,null,null,null,null,null,null,null,null,null,null,null,null,null,null,null,null,null,2]
[null,"問2_ご家族等の介護の頻度","SA",5,0,"ない","週1日以下","週1～2日","週3～4日","ほぼ毎日","無回答",null,null,null,null,null,null,null,null,null,null,null,null,null,null,null,null,null,null,null,null,null,null,null,null,3]
[null,"問3_主な介護者","SA",6,0,"配偶者","子","子の配偶者","孫","兄弟・姉妹","その他","無回答",null,null,null,null,null,null,null,null,null,null,null,null,null,null,null,null,null,null,null,null,null,null,null,4]
[null,"問4_介護者の性別","SA",2,0,"男性","女性","無回答",null,null,null,null,null,null,null,null,null,null,null,null,null,null,null,null,null,null,null,null,null,null,null,null,null,null,null,5]
[null,"問5_介護者の年齢","SA",9,0,"20歳未満","20代","30代","40代","50代","60代","70代","80歳以上","わからない","無回答",null,null,null,null,null,null,null,null,null,null,null,null,null,null,null,null,null,null,null,null,6]
[null,"問6_介護者が行っている介護","MA",16,0,"日中の排泄","夜間の排泄","食事の介助（食べる時）","入浴・洗身","身だしなみ（洗顔・歯磨き等）","衣服の着脱","屋内の移乗・移動","外出の付き添い、送迎等","服薬","認知症状への対応","医療面での対応（経管栄養、ストーマ 等）","食事の準備（調理等）","その他の家事（掃除、洗濯、買い物 等）","金銭管理や生活面に必要な諸手続き","その他","わからない","無回答",null,null,null,null,null,null,null,null,null,null,null,null,null,7]
[null,"問7_介護のための離職の有無","MA",6,0,"主な介護者が仕事を辞めた（転職除く）","主な介護者以外の家族・親族が仕事を辞めた（転職除く）","主な介護者が転職した","主な介護者以外の家族・親族が転職した","介護のために仕事を辞めた家族・親族はいない","わからない","無回答",null,null,null,null,null,null,null,null,null,null,null,null,null,null,null,null,null,null,null,null,null,null,null,8]
[null,"問8_保険外の支援・サービスの利用状況","MA",11,0,"配食","調理","掃除・洗濯","買い物（宅配は含まない）","ゴミ出し","外出同行（通院、買い物など）","移送サービス（介護・福祉ﾀｸｼｰ等）","見守り、声かけ","サロンなどの定期的な通いの場","その他","利用していない","無回答",null,null,null,null,null,null,null,null,null,null,null,null,null,null,null,null,null,null,9]
[null,"問9_保険外の支援・サービスの必要性","MA",11,0,"配食","調理","掃除・洗濯","買い物（宅配は含まない）","ゴミ出し","外出同行（通院、買い物など）","移送サービス（介護・福祉ﾀｸｼｰ等）","見守り、声かけ","サロンなどの定期的な通いの場","その他","特になし","無回答",null,null,null,null,null,null,null,null,null,null,null,null,null,null,null,null,null,null,10]
[null,"問10_施設等の検討状況","SA",3,0,"検討していない","検討中","申請済み","無回答",null,null,null,null,null,null,null,null,null,null,null,null,null,null,null,null,null,null,null,null,null,null,null,null,null,null,11]
[null,"問11_抱えている傷病","MA",16,0,"脳血管疾患（脳卒中）","心疾患（心臓病）","悪性新生物（がん）","呼吸器疾患","腎疾患（透析）","筋骨格系疾患（骨粗しょう症、脊柱管狭窄症等）","膠原病（関節リウマチ含む）","変形性関節疾患","認知症","パーキンソン病","難病（パーキンソン病を除く）","糖尿病","眼科・耳鼻科疾患（視覚・聴覚障害を伴うもの）","その他","なし","わからない","無回答",null,null,null,null,null,null,null,null,null,null,null,null,null,12]
[null,"問12_訪問診療の利用の有無","SA",2,0,"利用している","利用していない","無回答",null,null,null,null,null,null,null,null,null,null,null,null,null,null,null,null,null,null,null,null,null,null,null,null,null,null,null,13]
[null,"問13_介護保険サービスの利用の有無","SA",2,0,"利用している","利用していない","無回答",null,null,null,null,null,null,null,null,null,null,null,null,null,null,null,null,null,null,null,null,null,null,null,null,null,null,null,14]
[null,"問14_未利用の理由","MA",9,0,"現状では、サービスを利用するほどの状態ではない","本人にサービス利用の希望がない","家族が介護をするため必要ない","以前、利用していたサービスに不満があった","利用料を支払うのが難しい","利用したいサービスが利用できない、身近にない","住宅改修、福祉用具貸与・購入のみを利用するため","サービスを受けたいが手続きや利用方法が分からない","その他","無回答",null,null,null,null,null,null,null,null,null,null,null,null,null,null,null,null,null,null,null,null,15]
["Ｂ票","問1_介護者の勤務形態","SA",4,0,"フルタイム勤務","パートタイム勤務","働いていない","わからない","無回答",null,null,null,null,null,null,null,null,null,null,null,null,null,null,null,null,null,null,null,null,null,null,null,null,null,16]
[null,"問2_介護者の働き方の調整の状況","MA",6,0,"特に行っていない","介護のために、「労働時間を調整（残業免除、短時間勤務、遅出・早帰・中抜け等）」しながら、働いている","介護のために、「休暇（年休や介護休暇等）」を取りながら、働いている","介護のために、「在宅勤務」を利用しながら、働いている","介護のために、2～4以外の調整をしながら、働いている","わからない","無回答",null,null,null,null,null,null,null,null,null,null,null,null,null,null,null,null,null,null,null,null,null,null,null,17]
[null,"問3_効果的な勤め先からの支援","MA",11,3,"自営業・フリーランス等のため、勤め先はない","介護休業・介護休暇等の制度の充実","制度を利用しやすい職場づくり","労働時間の柔軟な選択（フレックスタイム制など）","働く場所の多様化（在宅勤務・テレワークなど）","仕事と介護の両立に関する情報の提供","介護に関する相談窓口・相談担当者の設置","介護をしている従業員への経済的な支援","その他","特にない","主な介護者に確認しないと、わからない",null,null,null,null,null,null,null,null,null,null,null,null,null,null,null,null,null,null,null,18]
[null,"問4_介護者の就労継続の可否に係る意識","SA",5,0,"問題なく、続けていける","問題はあるが、何とか続けていける","続けていくのは、やや難しい","続けていくのは、かなり難しい","わからない","無回答",null,null,null,null,null,null,null,null,null,null,null,null,null,null,null,null,null,null,null,null,null,null,null,null,19]
[null,"問5_介護者が不安に感じる介護","MA",17,3,"日中の排泄","夜間の排泄","食事の介助（食べる時）","入浴・洗身","身だしなみ（洗顔・歯磨き等）","衣服の着脱","屋内の移乗・移動","外出の付き添い、送迎等","服薬","認知症状への対応","医療面での対応（経管栄養、ストーマ 等）","食事の準備（調理等）","その他の家事（掃除、洗濯、買い物 等）","金銭管理や生活面に必要な諸手続き","その他","不安に感じていることは、特にない","主な介護者に確認しないと、わからない","無回答",null,null,null,null,null,null,null,null,null,null,null,null,20]
["要介護認定データ（コード変換）","認1_年齢","SA",9,0,"65歳未満","65～69歳","70～74歳","75～79歳","80～84歳","85～89歳","90～94歳","95～99歳","100歳以上","無回答",null,null,null,null,null,null,null,null,null,null,null,null,null,null,null,null,null,null,null,null,21]
[null,"認2_性別","SA",2,0,"男性","女性","無回答",null,null,null,null,null,null,null,null,null,null,null,null,null,null,null,null,null,null,null,null,null,null,null,null,null,null,null,22]
[null,"認3_二次判定結果","SA",11,0,"非該当_認定","要支援１","要支援２","要介護１","要介護２","要介護３","要介護４","要介護５","再調査","取消","なし","無回答",null,null,null,null,null,null,null,null,null,null,null,null,null,null,null,null,null,null,23]
[null,"認4_現在の状況","SA",10,0,"居宅","特別養護老人ホーム","介護老人保健施設","介護療養型医療施設","グループホーム","特定施設","医療機関（療養病床）","医療機関（療養病床以外）","その他の施設","介護医療院","無回答",null,null,null,null,null,null,null,null,null,null,null,null,null,null,null,null,null,null,null,24]
[null,"認5_サービス利用の組み合わせ","SA",14,0,"未利用","訪問系のみ","通所系のみ","短期系のみ","訪問＋通所","訪問＋短期","通所＋短期","訪問＋通所＋短期","小規模多機能","看護多機能","定期巡回のみ","定期巡回＋通所","定期巡回＋短期","定期巡回＋通所＋短期","無回答",null,null,null,null,null,null,null,null,null,null,null,null,null,null,null,25]
[null,"認6_訪問系の合計回数","SA",7,0,"0回","1～4回","5～14回","15～24回","25～31回","32～49回","50回以上","無回答",null,null,null,null,null,null,null,null,null,null,null,null,null,null,null,null,null,null,null,null,null,null,26]
[null,"認7_通所系の合計回数","SA",6,0,"0回","1～4回","5～9回","10～14回","15～24回","25回以上","無回答",null,null,null,null,null,null,null,null,null,null,null,null,null,null,null,null,null,null,null,null,null,null,null,27]
[null,"認8_短期系の合計回数","SA",6,0,"0回","1～4回","5～9回","10～14回","15～24回","25回以上","無回答",null,null,null,null,null,null,null,null,null,null,null,null,null,null,null,null,null,null,null,null,null,null,null,28]
[null,"認9_障害高齢者自立度","SA",9,0,"自立","Ｊ１","Ｊ２","Ａ１","Ａ２","Ｂ１","Ｂ２","Ｃ１","Ｃ２","無回答",null,null,null,null,null,null,null,null,null,null,null,null,null,null,null,null,null,null,null,null,29]
[null,"認10_認知症高齢者自立度","SA",9,0,"自立","Ⅰ","Ⅱａ","Ⅱｂ","Ⅲａ","Ⅲｂ","Ⅳ","М","記載なし","無回答",null,null,null,null,null,null,null,null,null,null,null,null,null,null,null,null,null,null,null,null,30]
["要介護認定データ（コード変換２）","認11_本人年齢","SA",5,0,"65歳未満","65～69歳","70歳代","80歳代","90歳以上",null,null,null,null,null,null,null,null,null,null,null,null,null,null,null,null,null,null,null,null,null,null,null,null,null,31]
[null,"認12_二次判定結果","SA",3,0,"要支援１・２","要介護１・２","要介護３以上",null,null,null,null,null,null,null,null,null,null,null,null,null,null,null,null,null,null,null,null,null,null,null,null,null,null,null,32]
[null,"認13_二次判定結果2","SA",6,0,"要支援１・２","要介護１","要介護２","要介護３","要介護４","要介護５",null,null,null,null,null,null,null,null,null,null,null,null,null,null,null,null,null,null,null,null,null,null,null,null,33]
[null,"認14_二次判定結果3","SA",2,0,"要支援１～要介護１","要介護２以上",null,null,null,null,null,null,null,null,null,null,null,null,null,null,null,null,null,null,null,null,null,null,null,null,null,null,null,null,34]
[null,"認15_二次判定結果4","SA",1,0,"全要介護度",null,null,null,null,null,null,null,null,null,null,null,null,null,null,null,null,null,null,null,null,null,null,null,null,null,null,null,null,null,35]
[null,"認16_二次判定結果5","SA",1,0,"要介護２以上",null,null,null,null,null,null,null,null,null,null,null,null,null,null,null,null,null,null,null,null,null,null,null,null,null,null,null,null,null,36]
[null,"認17_二次判定結果6","SA",1,0,"要介護３以上",null,null,null,null,null,null,null,null,null,null,null,null,null,null,null,null,null,null,null,null,null,null,null,null,null,null,null,null,null,37]
[null,"認18_二次判定結果7","SA",1,0,"要介護４以上",null,null,null,null,null,null,null,null,null,null,null,null,null,null,null,null,null,null,null,null,null,null,null,null,null,null,null,null,null,38]
[null,"認19_サービス利用の組み合わせ","SA",4,0,"未利用","訪問系のみ","訪問系を含む組み合わせ","通所系・短期系のみ",null,null,null,null,null,null,null,null,null,null,null,null,null,null,null,null,null,null,null,null,null,null,null,null,null,null,39]
[null,"認20_訪問系の利用の有無","SA",2,0,"訪問系利用あり","訪問系利用なし",null,null,null,null,null,null,null,null,null,null,null,null,null,null,null,null,null,null,null,null,null,null,null,null,null,null,null,null,40]
[null,"認21_通所系の利用の有無（定期巡回を除く）","SA",2,0,"通所系利用あり","通所系利用なし",null,null,null,null,null,null,null,null,null,null,null,null,null,null,null,null,null,null,null,null,null,null,null,null,null,null,null,null,41]
[null,"認22_短期系の利用の有無（定期巡回を除く）","SA",2,0,"短期系利用あり","短期系利用なし",null,null,null,null,null,null,null,null,null,null,null,null,null,null,null,null,null,null,null,null,null,null,null,null,null,null,null,null,42]
[null,"認23_訪問系の利用回数","SA",3,0,"訪問系_0回","訪問系_1～14回","訪問系_15回以上",null,null,null,null,null,null,null,null,null,null,null,null,null,null,null,null,null,null,null,null,null,null,null,null,null,null,null,43]
[null,"認24_通所系の利用回数","SA",3,0,"通所系_0回","通所系_1～14回","通所系_15回以上",null,null,null,null,null,null,null,null,null,null,null,null,null,null,null,null,null,null,null,null,null,null,null,null,null,null,null,44]
[null,"認25_短期系の利用回数","SA",3,0,"短期系_0回","短期系_1～9回","短期系_10回以上",null,null,null,null,null,null,null,null,null,null,null,null,null,null,null,null,null,null,null,null,null,null,null,null,null,null,null,45]
[null,"認26_認知症高齢者自立度","SA",3,0,"自立＋Ⅰ","Ⅱ","Ⅲ以上",null,null,null,null,null,null,null,null,null,null,null,null,null,null,null,null,null,null,null,null,null,null,null,null,null,null,null,46]
[null,"認27_認知症高齢者自立度2","SA",2,0,"自立＋Ⅰ","Ⅱ以上",null,null,null,null,null,null,null,null,null,null,null,null,null,null,null,null,null,null,null,null,null,null,null,null,null,null,null,null,47]
[null,"認28_認知症高齢者自立度3","SA",1,0,"認知症自立度Ⅱ以上",null,null,null,null,null,null,null,null,null,null,null,null,null,null,null,null,null,null,null,null,null,null,null,null,null,null,null,null,null,48]
[null,"認29_認知症高齢者自立度4","SA",1,0,"認知症Ⅲ以上",null,null,null,null,null,null,null,null,null,null,null,null,null,null,null,null,null,null,null,null,null,null,null,null,null,null,null,null,null,49]
[null,"認30_介護者の就労継続の可否に係る意識","SA",3,0,"問題なく、続けていける","問題はあるが、何とか続けていける","続けていくのは「やや＋かなり難しい」",null,null,null,null,null,null,null,null,null,null,null,null,null,null,null,null,null,null,null,null,null,null,null,null,null,null,null,50]
[null,"認31_介護者の年齢","SA",6,0,"40歳未満","40歳代","50歳代","60歳代","70歳代","80歳以上",null,null,null,null,null,null,null,null,null,null,null,null,null,null,null,null,null,null,null,null,null,null,null,null,51]
[null,"認32_介護者の勤務形態","SA",1,0,"フルタイム勤務＋パートタイム勤務",null,null,null,null,null,null,null,null,null,null,null,null,null,null,null,null,null,null,null,null,null,null,null,null,null,null,null,null,null,52]
[null,"認19_サービス利用の組み合わせ2","SA",4,0,"訪問系のみ","訪問系を含む組み合わせ","通所系・短期系のみ",null,null,null,null,null,null,null,null,null,null,null,null,null,null,null,null,null,null,null,null,null,null,null,null,null,null,null,53]
[null,"問1_介護者の勤務形態2","SA",3,0,"フルタイム勤務","パートタイム勤務","働いていない",null,null,null,null,null,null,null,null,null,null,null,null,null,null,null,null,null,null,null,null,null,null,null,null,null,null,null,54]
[null,"問1_介護者の勤務形態3","SA",2,0,"フルタイム勤務","パートタイム勤務",null,null,null,null,null,null,null,null,null,null,null,null,null,null,null,null,null,null,null,null,null,null,null,null,null,null,null,null,55]
[null,"認30_介護者の就労継続の可否に係る意識2","SA",4,0,"問題なく、続けていける","問題はあるが、何とか続けていける","続けていくのは、やや難しい","続けていくのは、かなり難しい",null,null,null,null,null,null,null,null,null,null,null,null,null,null,null,null,null,null,null,null,null,null,null,null,null,null,56]
[null,"認3_二次判定結果8","SA",7,0,"要支援１","要支援２","要介護１","要介護２","要介護３","要介護４","要介護５",null,null,null,null,null,null,null,null,null,null,null,null,null,null,null,null,null,null,null,null,null,null,null,57]
[null,null,"SA",1,0,null,null,null,null,null,null,null,null,null,null,null,null,null,null,null,null,null,null,null,null,null,null,null,null,null,null,null,null,null,null,58]
[null,null,"SA",1,0,null,null,null,null,null,null,null,null,null,null,null,null,null,null,null,null,null,null,null,null,null,null,null,null,null,null,null,null,null,null,59]
[null,null,"SA",1,0,null,null,null,null,null,null,null,null,null,null,null,null,null,null,null,null,null,null,null,null,null,null,null,null,null,null,null,null,null,null,60]
[null,null,"SA",1,0,null,null,null,null,null,null,null,null,null,null,null,null,null,null,null,null,null,null,null,null,null,null,null,null,null,null,null,null,null,null,61]
[null,null,"SA",1,0,null,null,null,null,null,null,null,null,null,null,null,null,null,null,null,null,null,null,null,null,null,null,null,null,null,null,null,null,null,null,62]
[null,null,"SA",1,0,null,null,null,null,null,null,null,null,null,null,null,null,null,null,null,null,null,null,null,null,null,null,null,null,null,null,null,null,null,null,63]
[null,null,"SA",1,0,null,null,null,null,null,null,null,null,null,null,null,null,null,null,null,null,null,null,null,null,null,null,null,null,null,null,null,null,null,null,64]
[null,null,"SA",1,0,null,null,null,null,null,null,null,null,null,null,null,null,null,null,null,null,null,null,null,null,null,null,null,null,null,null,null,null,null,null,65]
[null,null,"SA",1,0,null,null,null,null,null,null,null,null,null,null,null,null,null,null,null,null,null,null,null,null,null,null,null,null,null,null,null,null,null,null,66]
[null,null,"SA",1,0,null,null,null,null,null,null,null,null,null,null,null,null,null,null,null,null,null,null,null,null,null,null,null,null,null,null,null,null,null,null,67]
[null,null,"SA",1,0,null,null,null,null,null,null,null,null,null,null,null,null,null,null,null,null,null,null,null,null,null,null,null,null,null,null,null,null,null,null,68]

{"sheet":"シナリオ","index":10,"n_rows":141,"n_cols":22,"rows_kept":141,"cut":false,"hidden":true,"merged":[]}
["章\n(必須)","グラフ名\n(必須)","タイプ\n(必須)","縦軸設問No\n(必須)","横軸設問No\n(タイプがクロスのとき必須)","n軸\n(タイプがクロスのとき必須)","フィルタ1\n設問No","フィルタ1\n値","フィルタ2\n設問No","フィルタ2\n値"]
["Ⅰ","chart1","単純",11,null,null,null,null,null,null,null,null,"【　クロス集計の覚書　】"]
["Ⅰ","chart2","クロス",32,11,"縦",null,null,null,null,null,null,"◆データ上、縦横ともに非該当、無回答、その他が存在する可能性がありますが(表1)、"]
["Ⅰ","chart3","クロス",2,11,"縦",null,null,null,null,null,null,"　縦横ともに非該当、無回答、その他を除いた集計結果となるようにしています(表2)。"]
["Ⅰ","chart4","クロス",20,32,"横"]
["Ⅰ","chart5","クロス",20,46,"横",null,null,null,null,null,null,"表1","問6_介護者が行っている介護(MA) × 認12_二次判定結果(SA)【7】×【32】"]
["Ⅰ","chart6","クロス",25,32,"横",null,null,null,null,null,null,null,null,null,1,2,3,"-","*",99]
["Ⅰ","chart7","クロス",25,46,"横",null,null,null,null,null,null,null,null,null,"要支援１・２","要介護１・２","要介護３以上","非該当","無回答","その他","合計"]
["Ⅰ","chart8","クロス",32,39,"縦",null,null,null,null,null,null,null,1,"屋内の移乗・移動",36,58,19,3,4,9,{"$f":"SUM(P9:U9)","v":129}]
["Ⅰ","chart9","クロス",46,39,"縦",null,null,null,null,null,null,null,2,"外出の付き添い、送迎等",144,151,59,4,5,4,{"$f":"SUM(P10:U10)","v":367}]
["Ⅰ","chart10","クロス",53,11,"縦",37,1,null,null,null,null,null,3,"入浴・洗身",43,39,17,5,8,5,117]
["Ⅰ","chart11","クロス",53,11,"縦",38,1,null,null,null,null,null,4,"日中の排泄",37,53,15,6,3,2,116]
["Ⅰ","chart12","クロス",53,11,"縦",49,1,null,null,null,null,null,5,"夜間の排泄",30,43,9,8,2,3,95]
["Ⅰ","chart13","クロス",11,39,"縦",37,1,null,null,null,null,null,6,"食事の準備（調理等）",127,149,52,4,6,2,340]
["Ⅰ","chart14","クロス",11,39,"縦",38,1,null,null,null,null,null,7,"食事の介助（食べる時）",24,28,8,1,9,8,78]
["Ⅰ","chart15","クロス",11,39,"縦",49,1,null,null,null,null,null,8,"服薬",93,108,36,2,8,1,248]
["Ⅰ","chart16","クロス",20,53,"横",37,1,null,null,null,null,null,9,"認知症状への対応",47,56,20,5,6,4,138]
["Ⅰ","chart17","クロス",20,53,"横",49,1,null,null,null,null,null,10,"衣服の着脱",65,71,22,3,1,3,165]
["Ⅰ","chart18","クロス",43,11,"縦",37,1,null,null,null,null,null,11,"身だしなみ（洗顔・歯磨き等）",45,55,20,9,4,3,136]
["Ⅰ","chart19","クロス",43,11,"縦",49,1,null,null,null,null,null,12,"その他の家事（掃除、洗濯、買い物 等）",165,170,63,4,4,8,414]
["Ⅰ","chart20","クロス",44,11,"縦",37,1,null,null,null,null,null,13,"医療面での対応（経管栄養、ストーマ 等）",20,17,5,7,6,2,57]
["Ⅰ","chart21","クロス",44,11,"縦",49,1,null,null,null,null,null,14,"金銭管理や生活面に必要な諸手続き",134,157,56,8,6,5,366]
["Ⅰ","chart22","クロス",45,11,"縦",37,1,null,null,null,null,null,15,"その他",13,10,4,6,3,7,43]
["Ⅰ","chart23","クロス",45,11,"縦",49,1,null,null,null,null,null,16,"わからない",1,1,0,5,9,4,20]
["Ⅰ","chart24","クロス",20,43,"横",37,1,null,null,null,null,null,"-","非該当",3,3,3]
["Ⅰ","chart25","クロス",20,43,"横",49,1,null,null,null,null,null,"*","無回答",5,5,5]
["Ⅰ","chart26","クロス",20,44,"横",37,1,null,null,null,null,null,99,"その他",9,9,9]
["Ⅰ","chart27","クロス",20,44,"横",49,1,null,null,null,null,null,null,"合計",{"$f":"P49+SUM(P25:P27)","v":221},{"$f":"Q49+SUM(Q25:Q27)","v":223},{"$f":"R49+SUM(R25:R27)","v":95}]
["Ⅰ","chart28","クロス",20,45,"横",37,1]
["Ⅰ","chart29","クロス",20,45,"横",49,1,null,null,null,null,"表2","問6_介護者が行っている介護(MA) × 認12_二次判定結果(SA)【7】×【32】"]
["Ⅰ","chart30","クロス",54,2,"縦",null,null,null,null,null,null,null,null,null,1,2,3]
["Ⅰ","chart31","クロス",54,4,"縦",null,null,null,null,null,null,null,null,null,"要支援１・２","要介護１・２","要介護３以上","合計"]
["Ⅰ","chart32","クロス",54,51,"縦",null,null,null,null,null,null,null,1,"屋内の移乗・移動",36,58,19,113]
["Ⅰ","chart33","クロス",54,5,"縦",null,null,null,null,null,null,null,2,"外出の付き添い、送迎等",144,151,59,354]
["Ⅰ","chart34","クロス",54,33,"縦",null,null,null,null,null,null,null,3,"入浴・洗身",43,39,17,99]
["Ⅰ","chart35","クロス",54,46,"縦",null,null,null,null,null,null,null,4,"日中の排泄",37,53,15,105]
["Ⅰ","chart36","クロス",54,3,"縦",null,null,null,null,null,null,null,5,"夜間の排泄",30,43,9,82]
["Ⅰ","chart37","クロス",7,54,"横",null,null,null,null,null,null,null,6,"食事の準備（調理等）",127,149,52,328]
["Ⅰ","chart38","クロス",55,19,"縦",null,null,null,null,null,null,null,7,"食事の介助（食べる時）",24,28,8,60]
["Ⅰ","chart39","クロス",34,19,"縦",52,1,null,null,null,null,null,8,"服薬",93,108,36,237]
["Ⅰ","chart40","クロス",47,19,"縦",52,1,null,null,null,null,null,9,"認知症状への対応",47,56,20,123]
["Ⅰ","chart41","クロス",54,14,"縦",null,null,null,null,null,null,null,10,"衣服の着脱",65,71,22,158]
["Ⅰ","chart42","クロス",50,14,"縦",52,1,null,null,null,null,null,11,"身だしなみ（洗顔・歯磨き等）",45,55,20,120]
["Ⅰ","chart43","クロス",15,50,"横",52,1,null,null,null,null,null,12,"その他の家事（掃除、洗濯、買い物 等）",165,170,63,398]
["Ⅰ","chart44","クロス",20,50,"横",52,1,null,null,null,null,null,13,"医療面での対応（経管栄養、ストーマ 等）",20,17,5,42]
["Ⅰ","chart45","クロス",54,39,"縦",null,null,null,null,null,null,null,14,"金銭管理や生活面に必要な諸手続き",134,157,56,347]
["Ⅰ","chart46","クロス",40,19,"縦",36,1,52,1,null,null,null,15,"その他",13,10,4,27]
["Ⅰ","chart47","クロス",40,19,"縦",48,1,52,1,null,null,null,16,"わからない",1,1,0,2]
["Ⅰ","chart48_1","単純",9,null,null,16,1,null,null,null,null,null,null,"合計",204,206,78]
["Ⅰ","chart48_2","単純",10,null,null,16,1]
["Ⅰ","chart49","クロス",54,13,"縦"]
["Ⅰ","chart50","クロス",54,11,"縦"]
["Ⅰ","chart51","クロス",50,11,"縦",36,1,52,1]
["Ⅰ","chart52","クロス",17,55,"横"]
["Ⅰ","chart53","クロス",17,50,"横",52,1]
["Ⅰ","chart54","クロス",18,55,"横"]
["Ⅰ","chart55","クロス",18,50,"横",52,1]
["Ⅰ","chart56","単純",9]
["Ⅰ","chart57","単純",10]
["Ⅰ","chart58","クロス",9,2,"横"]
["Ⅰ","chart59","クロス",10,2,"横"]
["Ⅰ","chart60","クロス",9,32,"横"]
["Ⅰ","chart61","クロス",9,32,"横",2,1]
["Ⅰ","chart62","クロス",9,32,"横",2,2]
["Ⅰ","chart63","クロス",9,32,"横",2,3]
["Ⅰ","chart64","クロス",10,32,"横"]
["Ⅰ","chart65","クロス",10,32,"横",2,1]
["Ⅰ","chart66","クロス",10,32,"横",2,2]
["Ⅰ","chart67","クロス",10,32,"横",2,3]
["Ⅰ","chart68","クロス",32,2,"縦"]
["Ⅰ","chart69","クロス",2,32,"縦"]
["Ⅰ","chart70","クロス",2,3,"縦"]
["Ⅰ","chart71","クロス",32,3,"縦",2,1]
["Ⅰ","chart72","クロス",32,3,"縦",2,2]
["Ⅰ","chart73","クロス",32,3,"縦",2,3]
["Ⅰ","chart74","クロス",32,39,"縦",2,1]
["Ⅰ","chart75","クロス",32,39,"縦",2,2]
["Ⅰ","chart76","クロス",32,39,"縦",2,3]
["Ⅰ","chart77","クロス",46,39,"縦",2,1]
["Ⅰ","chart78","クロス",46,39,"縦",2,2]
["Ⅰ","chart79","クロス",46,39,"縦",2,3]
["Ⅰ","chart80","クロス",2,11,"縦"]
["Ⅰ","chart81","クロス",32,11,"縦",2,1]
["Ⅰ","chart82","クロス",32,11,"縦",2,2]
["Ⅰ","chart83","クロス",32,11,"縦",2,3]
["Ⅰ","chart84","クロス",46,11,"縦",2,1]
["Ⅰ","chart85","クロス",46,11,"縦",2,2]
["Ⅰ","chart86","クロス",46,11,"縦",2,3]
["Ⅰ","chart87","単純",7]
["Ⅰ","chart88","クロス",7,32,"横"]
["Ⅰ","chart89","クロス",7,2,"横",37,1]
["Ⅰ","chart90","単純",13]
["Ⅰ","chart91","クロス",2,13,"縦"]
["Ⅰ","chart92","クロス",57,13,"縦"]
["Ⅰ","chart93","クロス",13,39,"縦",37,1]
["Ⅰ","chart94","クロス",13,40,"縦",37,1]
["Ⅰ","chart95","クロス",13,41,"縦",37,1]
["Ⅰ","chart96","クロス",13,42,"縦",37,1]
["Ⅰ","chart97","クロス",15,32,"横"]
["Ⅰ","chart98","クロス",15,32,"横",2,1]
["Ⅰ","chart99","クロス",15,32,"横",2,2]
["Ⅰ","chart100","クロス",15,32,"横",2,3]
["Ⅰ","chart101","クロス",15,46,"横"]
["Ⅰ","chart102","クロス",15,46,"横",2,1]
["Ⅰ","chart103","クロス",15,46,"横",2,2]
["Ⅰ","chart104","クロス",15,46,"横",2,3]
["Ⅰ","chart105","クロス",10,46,"横"]
["Ⅰ","chart106","クロス",10,46,"横",2,1]
["Ⅰ","chart107","クロス",10,46,"横",2,2]
["Ⅰ","chart108","クロス",10,46,"横",2,3]
["Ⅰ","chart109","クロス",31,51,"縦"]
["Ⅰ","chart110","クロス",12,32,"横"]
["Ⅰ","chart111","クロス",12,13,"横"]
["Ⅱ","chart112","単純",2]
["Ⅱ","chart113","単純",3]
["Ⅱ","chart114","単純",4]
["Ⅱ","chart115","単純",5]
["Ⅱ","chart116","単純",6]
["Ⅱ","chart117","単純",7]
["Ⅱ","chart118","単純",8]
["Ⅱ","chart119","単純",9]
["Ⅱ","chart120","単純",10]
["Ⅱ","chart121","単純",11]
["Ⅱ","chart122","単純",12]
["Ⅱ","chart123","単純",13]
["Ⅱ","chart124","単純",14]
["Ⅱ","chart125","単純",15]
["Ⅱ","chart126","単純",16]
["Ⅱ","chart127","単純",17]
["Ⅱ","chart128","単純",18]
["Ⅱ","chart129","単純",19]
["Ⅱ","chart130","単純",20]
["Ⅱ","chart132","単純",21]
["Ⅱ","chart133","単純",22]
["Ⅱ","chart134","単純",23]
["Ⅱ","chart135","単純",25]
["Ⅱ","chart136","単純",26]
["Ⅱ","chart137","単純",27]
["Ⅱ","chart138","単純",28]
["Ⅱ","chart139","単純",29]
["Ⅱ","chart140","単純",30]

{"sheet":"グラフテンプレート","index":11,"n_rows":24,"n_cols":34,"rows_kept":24,"cut":false,"hidden":true,"merged":[]}
[]
[null,null,null,null,{"$f":"\"合計(n=\"&C24&\")\"","v":"合計(n=820)"}]
[null,null,"回答数","割合",null,null,null,null,null,null,null,null,null,null,"Item1","Item2","Item3","Item4","Item5","Item6","Item7","Item8","Item9","Item10","Item11","Item12","Item13","Item14","Item15","Item16","Item17","Item18","Item19","Item20"]
[1,"分類1",79,{"$f":"C4/C$24","v":9.6341463414634149E-2},null,null,null,null,null,null,null,null,1,"分類1",0.505,0.5,0.5,0.5,0.5,0.5,0.5,0.5,0.5,0.5,0.5,0.5,0.5,0.5,0.5,0.5,0.5,0.5,0.5,0.5]
[2,"分類2",75,{"$f":"C5/C$24","v":9.1463414634146339E-2},null,null,null,null,null,null,null,null,2,"分類2",0.45,0.45,0.45,0.45,0.45,0.45,0.45,0.45,0.45,0.45,0.45,0.45,0.45,0.45,0.45,0.45,0.45,0.45,0.45,0.45]
[3,"分類3",71,8.658536585365853E-2,null,null,null,null,null,null,null,null,3,"分類3",0.95,0.2,0.15,0.05,0.1,0.95,0.2,0.15,0.05,0.1,0.95,0.2,0.15,0.05,0.1,0.95,0.2,0.15,0.05,0.1]
[4,"分類4",67,8.1707317073170735E-2,null,null,null,null,null,null,null,null,4,"分類4",0.3,0.6,0.8,0.2,0.1,0.3,0.6,0.8,0.2,0.1,0.3,0.6,0.8,0.2,0.1,0.3,0.6,0.8,0.2,0.1]
[5,"分類5",63,7.6829268292682926E-2,null,null,null,null,null,null,null,null,5,"分類5",0.2,0.1,0.95,0.2,0.15,0.2,0.1,0.95,0.2,0.15,0.2,0.1,0.95,0.2,0.15,0.2,0.1,0.95,0.2,0.15]
[6,"分類6",59,7.1951219512195116E-2,null,null,null,null,null,null,null,null,6,"分類6",0.1,0.3,0.6,0.8,0.2,0.1,0.3,0.6,0.8,0.2,0.1,0.3,0.6,0.8,0.2,0.1,0.3,0.6,0.8,0.2]
[7,"分類7",55,6.7073170731707321E-2,null,null,null,null,null,null,null,null,7,"分類7",0.1,0.3,0.6,0.8,0.2,0.1,0.3,0.6,0.8,0.2,0.1,0.3,0.6,0.8,0.2,0.1,0.3,0.6,0.8,0.2]
[8,"分類8",51,6.2195121951219512E-2,null,null,null,null,null,null,null,null,8,"分類8",0.05,0.05,0.05,0.05,0.05,0.05,0.05,0.05,0.05,0.05,0.05,0.05,0.05,0.05,0.05,0.05,0.05,0.05,0.05,0.05]
[9,"分類9",47,5.731707317073171E-2,null,null,null,null,null,null,null,null,9,"分類9",0.95,0.2,0.15,0.05,0.1,0.95,0.2,0.15,0.05,0.1,0.95,0.2,0.15,0.05,0.1,0.95,0.2,0.15,0.05,0.1]
[10,"分類10",43,5.24390243902439E-2,null,null,null,null,null,null,null,null,10,"分類10",0.3,0.6,0.8,0.2,0.1,0.3,0.6,0.8,0.2,0.1,0.3,0.6,0.8,0.2,0.1,0.3,0.6,0.8,0.2,0.1]
[11,"分類11",39,4.7560975609756098E-2,null,null,null,null,null,null,null,null,11,"分類11",0.2,0.1,0.95,0.2,0.15,0.2,0.1,0.95,0.2,0.15,0.2,0.1,0.95,0.2,0.15,0.2,0.1,0.95,0.2,0.15]
[12,"分類12",35,4.2682926829268296E-2,null,null,null,null,null,null,null,null,12,"分類12",0.1,0.3,0.6,0.8,0.2,0.1,0.3,0.6,0.8,0.2,0.1,0.3,0.6,0.8,0.2,0.1,0.3,0.6,0.8,0.2]
[13,"分類13",31,3.7804878048780487E-2,null,null,null,null,null,null,null,null,13,"分類13",0.1,0.3,0.6,0.8,0.2,0.1,0.3,0.6,0.8,0.2,0.1,0.3,0.6,0.8,0.2,0.1,0.3,0.6,0.8,0.2]
[14,"分類14",27,3.2926829268292684E-2,null,null,null,null,null,null,null,null,14,"分類14",0.05,0.05,0.05,0.05,0.05,0.05,0.05,0.05,0.05,0.05,0.05,0.05,0.05,0.05,0.05,0.05,0.05,0.05,0.05,0.05]
[15,"分類15",23,2.8048780487804879E-2,null,null,null,null,null,null,null,null,15,"分類15",0.95,0.2,0.15,0.05,0.1,0.95,0.2,0.15,0.05,0.1,0.95,0.2,0.15,0.05,0.1,0.95,0.2,0.15,0.05,0.1]
[16,"分類16",19,2.3170731707317073E-2,null,null,null,null,null,null,null,null,16,"分類16",0.3,0.6,0.8,0.2,0.1,0.3,0.6,0.8,0.2,0.1,0.3,0.6,0.8,0.2,0.1,0.3,0.6,0.8,0.2,0.1]
[17,"分類17",15,1.8292682926829267E-2,null,null,null,null,null,null,null,null,17,"分類17",0.2,0.1,0.95,0.2,0.15,0.2,0.1,0.95,0.2,0.15,0.2,0.1,0.95,0.2,0.15,0.2,0.1,0.95,0.2,0.15]
[18,"分類18",11,1.3414634146341463E-2,null,null,null,null,null,null,null,null,18,"分類18",0.1,0.3,0.6,0.8,0.2,0.1,0.3,0.6,0.8,0.2,0.1,0.3,0.6,0.8,0.2,0.1,0.3,0.6,0.8,0.2]
[19,"分類19",7,8.5365853658536592E-3,null,null,null,null,null,null,null,null,19,"分類19",0.2,0.1,0.95,0.2,0.15,0.2,0.1,0.95,0.2,0.15,0.2,0.1,0.95,0.2,0.15,0.2,0.1,0.95,0.2,0.15]
[20,"分類20",3,3.6585365853658539E-3,null,null,null,null,null,null,null,null,20,"分類20",0.1,0.3,0.6,0.8,0.2,0.1,0.3,0.6,0.8,0.2,0.1,0.3,0.6,0.8,0.2,0.1,0.3,0.6,0.8,0.2]
[null,"合計",{"$f":"SUM(C4:C23)","v":820},1,null,null,null,null,null,null,null,null,null,"合計"]

{"sheet":"検定","index":12,"n_rows":1476,"n_cols":13,"rows_kept":1476,"cut":false,"hidden":true,"merged":[]}
[null,null,null,null,null,null,null,null,null,null,null,"p値","有意差"]
[]
[]
[]
[]
[]
[]
[]
[]
["chart2","認12_二次判定結果(SA) × 問10_施設等の検討状況(SA)【32】×【11】"]
[null,null,null,1,2,3]
[null,null,null,"検討していない","検討中","申請済み","合計",null,null,null,null,2.010013305845676E-5,"(***)"]
[null,1,"要支援１・２",224,32,7,263]
[null,2,"要介護１・２",288,68,15,371]
[null,3,"要介護３以上",100,38,16,154]
[null,null,"合計",612,138,38]
[]
[]
["chart3","問1_世帯類型(SA) × 問10_施設等の検討状況(SA)【2】×【11】"]
[null,null,null,1,2,3]
[null,null,null,"検討していない","検討中","申請済み","合計",null,null,null,null,2.4413867283653321E-4,"(***)"]
[null,1,"単身世帯",148,56,14,218]
[null,2,"夫婦のみ世帯",157,20,4,181]
[null,3,"その他",305,62,20,387]
[null,null,"合計",610,138,38]
[]
[]
["chart4","問5_介護者が不安に感じる介護(MA) × 認12_二次判定結果(SA)【20】×【32】"]
[null,null,null,1,2,3]
[null,null,null,"要支援１・２","要介護１・２","要介護３以上","合計"]
[null,1,"日中の排泄",17,30,20,67,null,null,null,null,0.18085763863735319]
[null,2,"夜間の排泄",20,49,41,110,null,null,null,null,9.7964952167933393E-6,"(***)"]
[null,3,"食事の介助（食べる時）",2,13,7,22,null,null,null,null,7.1906508987576306E-2,"(+)"]
[null,4,"入浴・洗身",43,59,23,125,null,null,null,null,0.52377099395089621]
[null,5,"身だしなみ（洗顔・歯磨き等）",1,11,4,16,null,null,null,null,9.0161862916823682E-2,"(+)"]
[null,6,"衣服の着脱",3,7,10,20,null,null,null,null,5.6546263341706827E-3,"(**)"]
[null,7,"屋内の移乗・移動",31,52,29,112,null,null,null,null,0.40233568965616112]
[null,8,"外出の付き添い、送迎等",62,106,24,192,null,null,null,null,1.2503026856415466E-3,"(**)"]
[null,9,"服薬",15,35,5,55,null,null,null,null,2.2351988919258752E-2,"(*)"]
[null,10,"認知症状への対応",23,122,56,201,null,null,null,null,5.4605181411229368E-12,"(***)"]
[null,11,"医療面での対応（経管栄養、ストーマ 等）",12,14,14,40,null,null,null,null,7.321338407285731E-2,"(+)"]
[null,12,"食事の準備（調理等）",30,49,18,97,null,null,null,null,0.74803513452409176]
[null,13,"その他の家事（掃除、洗濯、買い物 等）",35,39,7,81,null,null,null,null,2.9542657114008915E-3,"(**)"]
[null,14,"金銭管理や生活面に必要な諸手続き",15,36,18,69,null,null,null,null,0.20298643938054911]
[null,15,"その他",8,14,7,29,null,null,null,null,0.89766450368159612]
[null,16,"不安に感じていることは、特にない",37,29,13,79,null,null,null,null,4.3364183655513772E-3,"(**)"]
[null,17,"主な介護者に確認しないと、わからない",19,13,4,36,null,null,null,null,1.1378932770876296E-2,"(*)"]
[null,null,"合計",195,303,135]
[]
[]
["chart5","問5_介護者が不安に感じる介護(MA) × 認26_認知症高齢者自立度(SA)【20】×【46】"]
[null,null,null,1,2,3]
[null,null,null,"自立＋Ⅰ","Ⅱ","Ⅲ以上","合計"]
[null,1,"日中の排泄",26,26,15,67,null,null,null,null,0.25833840176604722]
[null,2,"夜間の排泄",31,50,29,110,null,null,null,null,2.2313447272799511E-5,"(***)"]
[null,3,"食事の介助（食べる時）",8,8,6,22,null,null,null,null,0.39528953286898155]
[null,4,"入浴・洗身",69,37,19,125,null,null,null,null,0.20063696326353403]
[null,5,"身だしなみ（洗顔・歯磨き等）",5,7,4,16,null,null,null,null,0.38937382434698259]
[null,6,"衣服の着脱",8,5,7,20,null,null,null,null,0.116953776588404]
[null,7,"屋内の移乗・移動",52,36,24,112,null,null,null,null,0.51513628927943977]
[null,8,"外出の付き添い、送迎等",109,58,25,192,null,null,null,null,1.0444020702276005E-2,"(*)"]
[null,9,"服薬",17,31,7,55,null,null,null,null,1.4430974841263561E-3,"(**)"]
[null,10,"認知症状への対応",40,97,64,201,null,null,null,null,3.8651975471172381E-22,"(***)"]
[null,11,"医療面での対応（経管栄養、ストーマ 等）",24,6,10,40,null,null,null,null,2.7411410852182426E-2,"(*)"]
[null,12,"食事の準備（調理等）",48,35,14,97,null,null,null,null,0.65458496283759071]
[null,13,"その他の家事（掃除、洗濯、買い物 等）",54,22,5,81,null,null,null,null,5.3603341005282296E-4,"(***)"]
[null,14,"金銭管理や生活面に必要な諸手続き",28,28,13,69,null,null,null,null,0.39699070233401273]
[null,15,"その他",14,11,4,29,null,null,null,null,0.82703397167645998]
[null,16,"不安に感じていることは、特にない",50,21,8,79,null,null,null,null,1.1902430867861373E-2,"(*)"]
[null,17,"主な介護者に確認しないと、わからない",24,9,3,36,null,null,null,null,6.0469826038888584E-2,"(+)"]
[null,null,"合計",304,217,112]
[]
[]
["chart6","認5_サービス利用の組み合わせ(SA) × 認12_二次判定結果(SA)【25】×【32】"]
[null,null,null,1,2,3]
[null,null,null,"要支援１・２","要介護１・２","要介護３以上","合計",null,null,null,null,1.8411127431216267E-23,"(***)"]
[null,1,"未利用",99,64,7,170]
[null,2,"訪問系のみ",44,56,34,134]
[null,3,"通所系のみ",100,162,40,302]
[null,4,"短期系のみ",1,1,3,5]
[null,5,"訪問＋通所",20,67,40,127]
[null,6,"訪問＋短期",0,1,5,6]
[null,7,"通所＋短期",1,11,16,28]
[null,8,"訪問＋通所＋短期",0,6,7,13]
[null,9,"小規模多機能",1,4,2,7]
[null,10,"看護多機能",0,1,0,1]
[null,null,"合計",266,373,154]
[]
[]
[]
[]
[]
[]
["chart7","認5_サービス利用の組み合わせ(SA) × 認26_認知症高齢者自立度(SA)【25】×【46】"]
[null,null,null,1,2,3]
[null,null,null,"自立＋Ⅰ","Ⅱ","Ⅲ以上","合計",null,null,null,null,1.1365782519218333E-16,"(***)"]
[null,1,"未利用",122,40,8,170]
[null,2,"訪問系のみ",82,31,21,134]
[null,3,"通所系のみ",138,117,47,302]
[null,4,"短期系のみ",1,1,3,5]
[null,5,"訪問＋通所",50,49,28,127]
[null,6,"訪問＋短期",1,2,3,6]
[null,7,"通所＋短期",1,12,15,28]
[null,8,"訪問＋通所＋短期",1,7,5,13]
[null,9,"小規模多機能",1,3,3,7]
[null,10,"看護多機能",0,1,0,1]
[null,null,"合計",397,263,133]
[]
[]
[]
[]
[]
[]
["chart8","認12_二次判定結果(SA) × 認19_サービス利用の組み合わせ(SA)【32】×【39】"]
[null,null,null,1,2,3,4]
[null,null,null,"未利用","訪問系のみ","訪問系を含む組み合わせ","通所系・短期系のみ","合計",null,null,null,3.5711370739771366E-19,"(***)"]
[null,1,"要支援１・２",99,44,21,102,266]
[null,2,"要介護１・２",64,56,79,174,373]
[null,3,"要介護３以上",7,34,54,59,154]
[null,null,"合計",170,134,154,335]
[]
[]
["chart9","認26_認知症高齢者自立度(SA) × 認19_サービス利用の組み合わせ(SA)【46】×【39】"]
[null,null,null,1,2,3,4]
[null,null,null,"未利用","訪問系のみ","訪問系を含む組み合わせ","通所系・短期系のみ","合計",null,null,null,7.3825784592154469E-13,"(***)"]
[null,1,"自立＋Ⅰ",122,82,53,140,397]
[null,2,"Ⅱ",40,31,62,130,263]
[null,3,"Ⅲ以上",8,21,39,65,133]
[null,null,"合計",170,134,154,335]
[]
[]
["chart10","認19_サービス利用の組み合わせ2(SA) × 問10_施設等の検討状況(SA)【53】×【11】【37=1】"]
[null,null,null,1,2,3]
[null,null,null,"検討していない","検討中","申請済み","合計",null,null,null,null,0.10979495399918955]
[null,1,"訪問系のみ",27,6,1,34]
[null,2,"訪問系を含む組み合わせ",37,12,5,54]
[null,3,"通所系・短期系のみ",32,17,10,59]
[null,null,"合計",96,35,16]
[]
[]
["chart11","認19_サービス利用の組み合わせ2(SA) × 問10_施設等の検討状況(SA)【53】×【11】【38=1】"]
[null,null,null,1,2,3]
[null,null,null,"検討していない","検討中","申請済み","合計",null,null,null,null,1.2610651686484859E-2,"(*)"]
[null,1,"訪問系のみ",17,3,0,20]
[null,2,"訪問系を含む組み合わせ",22,6,5,33]
[null,3,"通所系・短期系のみ",11,11,7,29]
[null,null,"合計",50,20,12]
[]
[]
["chart12","認19_サービス利用の組み合わせ2(SA) × 問10_施設等の検討状況(SA)【53】×【11】【49=1】"]
[null,null,null,1,2,3]
[null,null,null,"検討していない","検討中","申請済み","合計",null,null,null,null,0.45091999259119753]
[null,1,"訪問系のみ",15,5,1,21]
[null,2,"訪問系を含む組み合わせ",23,10,6,39]
[null,3,"通所系・短期系のみ",33,23,9,65]
[null,null,"合計",71,38,16]
[]
[]
["chart13","問10_施設等の検討状況(SA) × 認19_サービス利用の組み合わせ(SA)【11】×【39】【37=1】"]
[null,null,null,1,2,3,4]
[null,null,null,"未利用","訪問系のみ","訪問系を含む組み合わせ","通所系・短期系のみ","合計",null,null,null,0.14629562432066961]
[null,1,"検討していない",4,27,37,32,100]
[null,2,"検討中",3,6,12,17,38]
[null,3,"申請済み",0,1,5,10,16]
[null,null,"合計",7,34,54,59]
[]
[]
["chart14","問10_施設等の検討状況(SA) × 認19_サービス利用の組み合わせ(SA)【11】×【39】【38=1】"]
[null,null,null,1,2,3,4]
[null,null,null,"未利用","訪問系のみ","訪問系を含む組み合わせ","通所系・短期系のみ","合計",null,null,null,3.6546680444546842E-2,"(*)"]
[null,1,"検討していない",1,17,22,11,51]
[null,2,"検討中",0,3,6,11,20]
[null,3,"申請済み",0,0,5,7,12]
[null,null,"合計",1,20,33,29]
[]
[]
["chart15","問10_施設等の検討状況(SA) × 認19_サービス利用の組み合わせ(SA)【11】×【39】【49=1】"]
[null,null,null,1,2,3,4]
[null,null,null,"未利用","訪問系のみ","訪問系を含む組み合わせ","通所系・短期系のみ","合計",null,null,null,0.5083092196910195]
[null,1,"検討していない",6,15,23,33,77]
[null,2,"検討中",2,5,10,23,40]
[null,3,"申請済み",0,1,6,9,16]
[null,null,"合計",8,21,39,65]
[]
[]
["chart16","問5_介護者が不安に感じる介護(MA) × 認19_サービス利用の組み合わせ2(SA)【20】×【53】【37=1】"]
[null,null,null,1,2,3]
[null,null,null,"訪問系のみ","訪問系を含む組み合わせ","通所系・短期系のみ","合計"]
[null,1,"日中の排泄",2,11,5,18,null,null,null,null,7.7637945911566517E-2,"(+)"]
[null,2,"夜間の排泄",6,13,22,41,null,null,null,null,7.6438146364428888E-2,"(+)"]
[null,3,"食事の介助（食べる時）",4,2,1,7,null,null,null,null,7.212883641887706E-2,"(+)"]
[null,4,"入浴・洗身",5,6,9,20,null,null,null,null,0.75156440067841956]
[null,5,"身だしなみ（洗顔・歯磨き等）",1,2,1,4,null,null,null,null,0.81448821906279412]
[null,6,"衣服の着脱",1,2,6,9,null,null,null,null,0.2322194353737832]
[null,7,"屋内の移乗・移動",5,9,14,28,null,null,null,null,0.45692687425837597]
[null,8,"外出の付き添い、送迎等",7,4,11,22,null,null,null,null,0.11556653700495874]
[null,9,"服薬",1,2,2,5,null,null,null,null,0.98762319927012998]
[null,10,"認知症状への対応",10,19,25,54,null,null,null,null,0.40345814343279007]
[null,11,"医療面での対応（経管栄養、ストーマ 等）",2,10,2,14,null,null,null,null,1.9364709875277636E-2,"(*)"]
[null,12,"食事の準備（調理等）",5,7,5,17,null,null,null,null,0.60623440740446266]
[null,13,"その他の家事（掃除、洗濯、買い物 等）",1,5,1,7,null,null,null,null,0.15597491804349908]
[null,14,"金銭管理や生活面に必要な諸手続き",2,8,7,17,null,null,null,null,0.46934908080793403]
[null,15,"その他",0,4,3,7,null,null,null,null,0.29280938578351112]
[null,16,"不安に感じていることは、特にない",5,4,3,12,null,null,null,null,0.2339001115223085]
[null,17,"主な介護者に確認しないと、わからない",1,2,1,4,null,null,null,null,0.81448821906279412]
[null,null,"合計",29,48,51]
[]
[]
["chart17","問5_介護者が不安に感じる介護(MA) × 認19_サービス利用の組み合わせ2(SA)【20】×【53】【49=1】"]
[null,null,null,1,2,3]
[null,null,null,"訪問系のみ","訪問系を含む組み合わせ","通所系・短期系のみ","合計"]
[null,1,"日中の排泄",0,7,6,13,null,null,null,null,0.10999912000620997]
[null,2,"夜間の排泄",1,7,20,28,null,null,null,null,3.0552204768531006E-2,"(*)"]
[null,3,"食事の介助（食べる時）",2,2,2,6,null,null,null,null,0.41521492925218223]
[null,4,"入浴・洗身",2,4,11,17,null,null,null,null,0.51311620304943351]
[null,5,"身だしなみ（洗顔・歯磨き等）",0,2,2,4,null,null,null,null,0.59925400833196307]
[null,6,"衣服の着脱",0,2,5,7,null,null,null,null,0.41820624609352025]
[null,7,"屋内の移乗・移動",5,5,13,23,null,null,null,null,0.37174873209769943]
[null,8,"外出の付き添い、送迎等",6,4,13,23,null,null,null,null,0.10895254686703598]
[null,9,"服薬",2,1,2,5,null,null,null,null,0.29064304143565844]
[null,10,"認知症状への対応",9,17,31,57,null,null,null,null,0.78738861496473644]
[null,11,"医療面での対応（経管栄養、ストーマ 等）",1,7,2,10,null,null,null,null,2.8863250204760417E-2,"(*)"]
[null,12,"食事の準備（調理等）",1,5,6,12,null,null,null,null,0.67629443667760336]
[null,13,"その他の家事（掃除、洗濯、買い物 等）",1,4,0,5,null,null,null,null,4.0849489178408013E-2,"(*)"]
[null,14,"金銭管理や生活面に必要な諸手続き",1,5,7,13,null,null,null,null,0.69306219031380367]
[null,15,"その他",0,2,2,4,null,null,null,null,0.59925400833196307]
[null,16,"不安に感じていることは、特にない",3,2,3,8,null,null,null,null,0.19599881801082927]
[null,17,"主な介護者に確認しないと、わからない",0,2,1,3,null,null,null,null,0.41240313093978553]
[null,null,"合計",16,34,54]
[]
[]
["chart18","認23_訪問系の利用回数(SA) × 問10_施設等の検討状況(SA)【43】×【11】【37=1】"]
[null,null,null,1,2,3]
[null,null,null,"検討していない","検討中","申請済み","合計",null,null,null,null,0.29861097946756088]
[null,1,"訪問系_0回",38,20,10,68]
[null,2,"訪問系_1～14回",33,9,3,45]
[null,3,"訪問系_15回以上",29,9,3,41]
[null,null,"合計",100,38,16]
[]
[]
["chart19","認23_訪問系の利用回数(SA) × 問10_施設等の検討状況(SA)【43】×【11】【49=1】"]
[null,null,null,1,2,3]
[null,null,null,"検討していない","検討中","申請済み","合計",null,null,null,null,0.80621643582800706]
[null,1,"訪問系_0回",42,25,9,76]
[null,2,"訪問系_1～14回",18,10,4,32]
[null,3,"訪問系_15回以上",17,5,3,25]
[null,null,"合計",77,40,16]
[]
[]
["chart20","認24_通所系の利用回数(SA) × 問10_施設等の検討状況(SA)【44】×【11】【37=1】"]
[null,null,null,1,2,3]
[null,null,null,"検討していない","検討中","申請済み","合計",null,null,null,null,3.9669579659411154E-2,"(*)"]
[null,1,"通所系_0回",34,10,7,51]
[null,2,"通所系_1～14回",50,13,5,68]
[null,3,"通所系_15回以上",16,15,4,35]
[null,null,"合計",100,38,16]
[]
[]
["chart21","認24_通所系の利用回数(SA) × 問10_施設等の検討状況(SA)【44】×【11】【49=1】"]
[null,null,null,1,2,3]
[null,null,null,"検討していない","検討中","申請済み","合計",null,null,null,null,4.9078347632413248E-2,"(*)"]
[null,1,"通所系_0回",25,7,6,38]
[null,2,"通所系_1～14回",39,17,5,61]
[null,3,"通所系_15回以上",13,16,5,34]
[null,null,"合計",77,40,16]
[]
[]
["chart22","認25_短期系の利用回数(SA) × 問10_施設等の検討状況(SA)【45】×【11】【37=1】"]
[null,null,null,1,2,3]
[null,null,null,"検討していない","検討中","申請済み","合計",null,null,null,null,2.9029346353328051E-13,"(***)"]
[null,1,"短期系_0回",92,26,5,123]
[null,2,"短期系_1～9回",6,11,3,20]
[null,3,"短期系_10回以上",2,1,8,11]
[null,null,"合計",100,38,16]
[]
[]
["chart23","認25_短期系の利用回数(SA) × 問10_施設等の検討状況(SA)【45】×【11】【49=1】"]
[null,null,null,1,2,3]
[null,null,null,"検討していない","検討中","申請済み","合計",null,null,null,null,2.304404297396194E-9,"(***)"]
[null,1,"短期系_0回",71,29,7,107]
[null,2,"短期系_1～9回",4,9,1,14]
[null,3,"短期系_10回以上",2,2,8,12]
[null,null,"合計",77,40,16]
[]
[]
["chart24","問5_介護者が不安に感じる介護(MA) × 認23_訪問系の利用回数(SA)【20】×【43】【37=1】"]
[null,null,null,1,2,3]
[null,null,null,"訪問系_0回","訪問系_1～14回","訪問系_15回以上","合計"]
[null,1,"日中の排泄",8,8,4,20,null,null,null,null,0.47260358537938474]
[null,2,"夜間の排泄",22,11,8,41,null,null,null,null,0.31013064145098834]
[null,3,"食事の介助（食べる時）",1,1,5,7,null,null,null,null,2.2336995390084345E-2,"(*)"]
[null,4,"入浴・洗身",12,4,7,23,null,null,null,null,0.4088350389651243]
[null,5,"身だしなみ（洗顔・歯磨き等）",1,1,2,4,null,null,null,null,0.54502409247514483]
[null,6,"衣服の着脱",7,1,2,10,null,null,null,null,0.21215819559993435]
[null,7,"屋内の移乗・移動",15,9,5,29,null,null,null,null,0.42112668313636803]
[null,8,"外出の付き添い、送迎等",13,7,4,24,null,null,null,null,0.42397718943462054]
[null,9,"服薬",2,0,3,5,null,null,null,null,0.15829906307666894]
[null,10,"認知症状への対応",28,17,11,56,null,null,null,null,0.28559398259123425]
[null,11,"医療面での対応（経管栄養、ストーマ 等）",2,6,6,14,null,null,null,null,5.5383688156224554E-2,"(+)"]
[null,12,"食事の準備（調理等）",6,5,7,18,null,null,null,null,0.41701621313696097]
[null,13,"その他の家事（掃除、洗濯、買い物 等）",1,2,4,7,null,null,null,null,0.12986187265972293]
[null,14,"金銭管理や生活面に必要な諸手続き",8,5,5,18,null,null,null,null,0.99079704666417845]
[null,15,"その他",4,2,1,7,null,null,null,null,0.70733532746306371]
[null,16,"不安に感じていることは、特にない",4,6,3,13,null,null,null,null,0.33974898606833059]
[null,17,"主な介護者に確認しないと、わからない",2,0,2,4,null,null,null,null,0.35681624445020682]
[null,null,"合計",60,39,36]
[]
[]
["chart25","問5_介護者が不安に感じる介護(MA) × 認23_訪問系の利用回数(SA)【20】×【43】【49=1】"]
[null,null,null,1,2,3]
[null,null,null,"訪問系_0回","訪問系_1～14回","訪問系_15回以上","合計"]
[null,1,"日中の排泄",9,4,2,15,null,null,null,null,0.83049851406872488]
[null,2,"夜間の排泄",21,4,4,29,null,null,null,null,0.18241302603506801]
[null,3,"食事の介助（食べる時）",2,1,3,6,null,null,null,null,0.12966938041538015]
[null,4,"入浴・洗身",13,3,3,19,null,null,null,null,0.58403689139979831]
[null,5,"身だしなみ（洗顔・歯磨き等）",2,1,1,4,null,null,null,null,0.93319994061649769]
[null,6,"衣服の着脱",6,1,0,7,null,null,null,null,0.26686145749782342]
[null,7,"屋内の移乗・移動",14,7,3,24,null,null,null,null,0.5760763059140378]
[null,8,"外出の付き添い、送迎等",15,7,3,25,null,null,null,null,0.57092630708725112]
[null,9,"服薬",4,0,3,7,null,null,null,null,0.1320833198788518]
[null,10,"認知症状への対応",39,16,9,64,null,null,null,null,0.33759867673310823]
[null,11,"医療面での対応（経管栄養、ストーマ 等）",2,3,5,10,null,null,null,null,1.3076044938055625E-2,"(*)"]
[null,12,"食事の準備（調理等）",8,3,3,14,null,null,null,null,0.95819865617071154]
[null,13,"その他の家事（掃除、洗濯、買い物 等）",0,3,2,5,null,null,null,null,2.5367483972264491E-2,"(*)"]
[null,14,"金銭管理や生活面に必要な諸手続き",7,3,3,13,null,null,null,null,0.90871251884116189]
[null,15,"その他",3,0,1,4,null,null,null,null,0.53390339700417611]
[null,16,"不安に感じていることは、特にない",3,3,2,8,null,null,null,null,0.45773742548385293]
[null,17,"主な介護者に確認しないと、わからない",2,0,1,3,null,null,null,null,0.57556485948155967]
[null,null,"合計",65,26,21]
[]
[]
["chart26","問5_介護者が不安に感じる介護(MA) × 認24_通所系の利用回数(SA)【20】×【44】【37=1】"]
[null,null,null,1,2,3]
[null,null,null,"通所系_0回","通所系_1～14回","通所系_15回以上","合計"]
[null,1,"日中の排泄",8,10,2,20,null,null,null,null,0.29546574224068545]
[null,2,"夜間の排泄",8,18,15,41,null,null,null,null,1.9982061745768373E-2,"(*)"]
[null,3,"食事の介助（食べる時）",4,1,2,7,null,null,null,null,0.2736912538198979]
[null,4,"入浴・洗身",10,7,6,23,null,null,null,null,0.42778049140592622]
[null,5,"身だしなみ（洗顔・歯磨き等）",1,2,1,4,null,null,null,null,0.92238178305593421]
[null,6,"衣服の着脱",4,2,4,10,null,null,null,null,0.2746573052136938]
[null,7,"屋内の移乗・移動",7,18,4,29,null,null,null,null,4.8651711936302661E-2,"(*)"]
[null,8,"外出の付き添い、送迎等",10,10,4,24,null,null,null,null,0.57529006838250019]
[null,9,"服薬",1,2,2,5,null,null,null,null,0.64093863856983235]
[null,10,"認知症状への対応",16,21,19,56,null,null,null,null,6.1526155646382211E-2,"(+)"]
[null,11,"医療面での対応（経管栄養、ストーマ 等）",3,7,4,14,null,null,null,null,0.57322125051098161]
[null,12,"食事の準備（調理等）",9,5,4,18,null,null,null,null,0.27368797732003858]
[null,13,"その他の家事（掃除、洗濯、買い物 等）",3,3,1,7,null,null,null,null,0.80087080638302421]
[null,14,"金銭管理や生活面に必要な諸手続き",3,4,11,18,null,null,null,null,3.2304810784359353E-4,"(***)"]
[null,15,"その他",1,6,0,7,null,null,null,null,5.2184495556984532E-2,"(+)"]
[null,16,"不安に感じていることは、特にない",6,6,1,13,null,null,null,null,0.32881372128730235]
[null,17,"主な介護者に確認しないと、わからない",2,2,0,4,null,null,null,null,0.51094257654112174]
[null,null,"合計",46,57,32]
[]
[]
["chart27","問5_介護者が不安に感じる介護(MA) × 認24_通所系の利用回数(SA)【20】×【44】【49=1】"]
[null,null,null,1,2,3]
[null,null,null,"通所系_0回","通所系_1～14回","通所系_15回以上","合計"]
[null,1,"日中の排泄",6,7,2,15,null,null,null,null,0.44926071025083958]
[null,2,"夜間の排泄",4,12,13,29,null,null,null,null,8.3796687711706827E-3,"(**)"]
[null,3,"食事の介助（食べる時）",2,2,2,6,null,null,null,null,0.81236541608844326]
[null,4,"入浴・洗身",6,6,7,19,null,null,null,null,0.31709836377966683]
[null,5,"身だしなみ（洗顔・歯磨き等）",0,3,1,4,null,null,null,null,0.36548284093799249]
[null,6,"衣服の着脱",2,1,4,7,null,null,null,null,9.5893139411174888E-2,"(+)"]
[null,7,"屋内の移乗・移動",7,14,3,24,null,null,null,null,0.22216803083811351]
[null,8,"外出の付き添い、送迎等",8,13,4,25,null,null,null,null,0.49451992041544229]
[null,9,"服薬",4,1,2,7,null,null,null,null,0.16689201632724252]
[null,10,"認知症状への対応",20,25,19,64,null,null,null,null,0.24071308242868805]
[null,11,"医療面での対応（経管栄養、ストーマ 等）",2,5,3,10,null,null,null,null,0.7820508477849295]
[null,12,"食事の準備（調理等）",5,5,4,14,null,null,null,null,0.72880817232095974]
[null,13,"その他の家事（掃除、洗濯、買い物 等）",2,3,0,5,null,null,null,null,0.41768802611569239]
[null,14,"金銭管理や生活面に必要な諸手続き",1,4,8,13,null,null,null,null,4.2445529015036985E-3,"(**)"]
[null,15,"その他",1,3,0,4,null,null,null,null,0.39535446536490815]
[null,16,"不安に感じていることは、特にない",3,5,0,8,null,null,null,null,0.23608201059241057]
[null,17,"主な介護者に確認しないと、わからない",1,2,0,3,null,null,null,null,0.58025478002614461]
[null,null,"合計",33,51,28]
[]
[]
["chart28","問5_介護者が不安に感じる介護(MA) × 認25_短期系の利用回数(SA)【20】×【45】【37=1】"]
[null,null,null,1,2,3]
[null,null,null,"短期系_0回","短期系_1～9回","短期系_10回以上","合計"]
[null,1,"日中の排泄",12,5,3,20,null,null,null,null,8.8742915504364514E-2,"(+)"]
[null,2,"夜間の排泄",34,4,3,41,null,null,null,null,0.62925181076926318]
[null,3,"食事の介助（食べる時）",6,1,0,7,null,null,null,null,0.74237707830351674]
[null,4,"入浴・洗身",16,3,4,23,null,null,null,null,0.133017746880666]
[null,5,"身だしなみ（洗顔・歯磨き等）",2,1,1,4,null,null,null,null,0.28665618809562693]
[null,6,"衣服の着脱",6,2,2,10,null,null,null,null,0.21727620543408802]
[null,7,"屋内の移乗・移動",19,6,4,29,null,null,null,null,0.13691306331280642]
[null,8,"外出の付き添い、送迎等",19,5,0,24,null,null,null,null,0.21105530984118812]
[null,9,"服薬",5,0,0,5,null,null,null,null,0.49151220621743263]
[null,10,"認知症状への対応",44,6,6,56,null,null,null,null,0.33616292332199083]
[null,11,"医療面での対応（経管栄養、ストーマ 等）",10,3,1,14,null,null,null,null,0.70406625792730615]
[null,12,"食事の準備（調理等）",15,2,1,18,null,null,null,null,0.86630812741818086]
[null,13,"その他の家事（掃除、洗濯、買い物 等）",5,1,1,7,null,null,null,null,0.77142189007233519]
[null,14,"金銭管理や生活面に必要な諸手続き",14,2,2,18,null,null,null,null,0.77274149077272369]
[null,15,"その他",6,0,1,7,null,null,null,null,0.45856908101911015]
[null,16,"不安に感じていることは、特にない",12,1,0,13,null,null,null,null,0.40047608500718956]
[null,17,"主な介護者に確認しないと、わからない",4,0,0,4,null,null,null,null,0.56899861072004077]
[null,null,"合計",106,19,10]
[]
[]
["chart29","問5_介護者が不安に感じる介護(MA) × 認25_短期系の利用回数(SA)【20】×【45】【49=1】"]
[null,null,null,1,2,3]
[null,null,null,"短期系_0回","短期系_1～9回","短期系_10回以上","合計"]
[null,1,"日中の排泄",9,3,3,15,null,null,null,null,0.14104336114516508]
[null,2,"夜間の排泄",22,4,3,29,null,null,null,null,0.91538658318874744]
[null,3,"食事の介助（食べる時）",5,1,0,6,null,null,null,null,0.71448583291670409]
[null,4,"入浴・洗身",13,2,4,19,null,null,null,null,0.12628573376605901]
[null,5,"身だしなみ（洗顔・歯磨き等）",2,1,1,4,null,null,null,null,0.3413839524858624]
[null,6,"衣服の着脱",4,1,2,7,null,null,null,null,0.15865250667615416]
[null,7,"屋内の移乗・移動",15,5,4,24,null,null,null,null,9.3033709065788936E-2,"(+)"]
[null,8,"外出の付き添い、送迎等",21,4,0,25,null,null,null,null,0.19112300833597504]
[null,9,"服薬",7,0,0,7,null,null,null,null,0.36125116372311517]
[null,10,"認知症状への対応",52,6,6,64,null,null,null,null,0.51263980333102244]
[null,11,"医療面での対応（経管栄養、ストーマ 等）",7,2,1,10,null,null,null,null,0.73678839444993127]
[null,12,"食事の準備（調理等）",12,1,1,14,null,null,null,null,0.76782537352825009]
[null,13,"その他の家事（掃除、洗濯、買い物 等）",4,0,1,5,null,null,null,null,0.50306553237110307]
[null,14,"金銭管理や生活面に必要な諸手続き",9,2,2,13,null,null,null,null,0.62257840283215837]
[null,15,"その他",3,0,1,4,null,null,null,null,0.42205220560789297]
[null,16,"不安に感じていることは、特にない",7,1,0,8,null,null,null,null,0.6516017749168791]
[null,17,"主な介護者に確認しないと、わからない",3,0,0,3,null,null,null,null,0.65681670193620245]
[null,null,"合計",88,14,10]
[]
[]
["chart30","問1_介護者の勤務形態2(SA) × 問1_世帯類型(SA)【54】×【2】"]
[null,null,null,1,2,3]
[null,null,null,"単身世帯","夫婦のみ世帯","その他","合計",null,null,null,null,1.9383315148538044E-8,"(***)"]
[null,1,"フルタイム勤務",55,23,108,186]
[null,2,"パートタイム勤務",34,18,70,122]
[null,3,"働いていない",57,116,169,342]
[null,null,"合計",146,157,347]
[]
[]
["chart31","問1_介護者の勤務形態2(SA) × 問3_主な介護者(SA)【54】×【4】"]
[null,null,null,1,2,3,4,5,6]
[null,null,null,"配偶者","子","子の配偶者","孫","兄弟・姉妹","その他","合計",null,1.217458512542929E-26,"(***)"]
[null,1,"フルタイム勤務",12,142,25,3,3,1,186]
[null,2,"パートタイム勤務",18,76,23,0,3,2,122]
[null,3,"働いていない",167,104,48,2,9,9,339]
[null,null,"合計",197,322,96,5,15,12]
[]
[]
["chart32","問1_介護者の勤務形態2(SA) × 認31_介護者の年齢(SA)【54】×【51】"]
[null,null,null,1,2,3,4,5,6]
[null,null,null,"40歳未満","40歳代","50歳代","60歳代","70歳代","80歳以上","合計",null,7.5229813087467301E-34,"(***)"]
[null,1,"フルタイム勤務",9,25,91,54,6,2,187]
[null,2,"パートタイム勤務",3,11,43,49,10,6,122]
[null,3,"働いていない",3,9,52,101,95,77,337]
[null,null,"合計",15,45,186,204,111,85]
[]
[]
["chart33","問1_介護者の勤務形態2(SA) × 問4_介護者の性別(SA)【54】×【5】"]
[null,null,null,1,2]
[null,null,null,"男性","女性","合計",null,null,null,null,null,8.6646464042123874E-9,"(***)"]
[null,1,"フルタイム勤務",96,91,187]
[null,2,"パートタイム勤務",30,92,122]
[null,3,"働いていない",92,247,339]
[null,null,"合計",218,430]
[]
[]
["chart34","問1_介護者の勤務形態2(SA) × 認13_二次判定結果2(SA)【54】×【33】"]
[null,null,null,1,2,3,4,5,6]
[null,null,null,"要支援１・２","要介護１","要介護２","要介護３","要介護４","要介護５","合計",null,0.21861760365627397]
[null,1,"フルタイム勤務",63,43,47,16,16,2,187]
[null,2,"パートタイム勤務",44,29,26,12,8,3,122]
[null,3,"働いていない",93,92,80,34,24,20,343]
[null,null,"合計",200,164,153,62,48,25]
[]
[]
["chart35","問1_介護者の勤務形態2(SA) × 認26_認知症高齢者自立度(SA)【54】×【46】"]
[null,null,null,1,2,3]
[null,null,null,"自立＋Ⅰ","Ⅱ","Ⅲ以上","合計",null,null,null,null,0.3020501961836628]
[null,1,"フルタイム勤務",92,64,31,187]
[null,2,"パートタイム勤務",63,44,15,122]
[null,3,"働いていない",155,117,71,343]
[null,null,"合計",310,225,117]
[]
[]
["chart36","問1_介護者の勤務形態2(SA) × 問2_ご家族等の介護の頻度(SA)【54】×【3】"]
[null,null,null,2,3,4,5]
[null,null,null,"週1日以下","週1～2日","週3～4日","ほぼ毎日","合計",null,null,null,8.4780531674188571E-8,"(***)"]
[null,1,"フルタイム勤務",26,39,12,110,187]
[null,2,"パートタイム勤務",11,27,7,77,122]
[null,3,"働いていない",16,27,18,278,339]
[null,null,"合計",53,93,37,465]
[]
[]
["chart37","問6_介護者が行っている介護(MA) × 問1_介護者の勤務形態2(SA)【7】×【54】"]
[null,null,null,1,2,3]
[null,null,null,"フルタイム勤務","パートタイム勤務","働いていない","合計"]
[null,1,"日中の排泄",31,17,78,126,null,null,null,null,4.7462721242170824E-2,"(*)"]
[null,2,"夜間の排泄",18,16,62,96,null,null,null,null,2.3379346706914429E-2,"(*)"]
[null,3,"食事の介助（食べる時）",22,10,50,82,null,null,null,null,0.15936078067952272]
[null,4,"入浴・洗身",28,18,92,138,null,null,null,null,7.1747273304185381E-4,"(***)"]
[null,5,"身だしなみ（洗顔・歯磨き等）",39,27,91,157,null,null,null,null,0.25742819532084382]
[null,6,"衣服の着脱",41,28,123,192,null,null,null,null,5.1792157009709515E-4,"(***)"]
[null,7,"屋内の移乗・移動",26,22,86,134,null,null,null,null,5.800626329714292E-3,"(**)"]
[null,8,"外出の付き添い、送迎等",143,85,263,491,null,null,null,null,0.20942571887364969]
[null,9,"服薬",74,46,185,305,null,null,null,null,3.0770032355348186E-4,"(***)"]
[null,10,"認知症状への対応",39,27,90,156,null,null,null,null,0.294137974646695]
[null,11,"医療面での対応（経管栄養、ストーマ 等）",15,5,30,50,null,null,null,null,0.23710465785403698]
[null,12,"食事の準備（調理等）",110,83,263,456,null,null,null,null,3.1497580346462801E-5,"(***)"]
[null,13,"その他の家事（掃除、洗濯、買い物 等）",142,102,292,536,null,null,null,null,1.1952629037911422E-2,"(*)"]
[null,14,"金銭管理や生活面に必要な諸手続き",129,87,247,463,null,null,null,null,0.64092874471539352]
[null,15,"その他",10,3,15,28,null,null,null,null,0.47033747091249861]
[null,16,"わからない",2,0,1,3,null,null,null,null,0.32174548249757107]
[null,null,"合計",187,122,339]
[]
[]
["chart38","問1_介護者の勤務形態3(SA) × 問4_介護者の就労継続の可否に係る意識(SA)【55】×【19】"]
[null,null,null,1,2,3,4,5]
[null,null,null,"問題なく、続けていける","問題はあるが、何とか続けていける","続けていくのは、やや難しい","続けていくのは、かなり難しい","わからない","合計",null,null,0.13404659556347906]
[null,1,"フルタイム勤務",45,86,13,15,20,179]
[null,2,"パートタイム勤務",41,54,7,3,10,115]
[null,null,"合計",86,140,20,18,30]
[]
[]
["chart39","認14_二次判定結果3(SA) × 問4_介護者の就労継続の可否に係る意識(SA)【34】×【19】【52=1】"]
[null,null,null,1,2,3,4,5]
[null,null,null,"問題なく、続けていける","問題はあるが、何とか続けていける","続けていくのは、やや難しい","続けていくのは、かなり難しい","わからない","合計",null,null,5.3136476500830954E-5,"(***)"]
[null,1,"要支援１～要介護１",62,66,10,7,25,170]
[null,2,"要介護２以上",24,74,10,11,5,124]
[null,null,"合計",86,140,20,18,30]
[]
[]
["chart40","認27_認知症高齢者自立度2(SA) × 問4_介護者の就労継続の可否に係る意識(SA)【47】×【19】【52=1】"]
[null,null,null,1,2,3,4,5]
[null,null,null,"問題なく、続けていける","問題はあるが、何とか続けていける","続けていくのは、やや難しい","続けていくのは、かなり難しい","わからない","合計",null,null,2.8564495931741226E-5,"(***)"]
[null,1,"自立＋Ⅰ",62,59,5,7,16,149]
[null,2,"Ⅱ以上",24,81,15,11,14,145]
[null,null,"合計",86,140,20,18,30]
[]
[]
["chart41","問1_介護者の勤務形態2(SA) × 問13_介護保険サービスの利用の有無(SA)【54】×【14】"]
[null,null,null,1,2]
[null,null,null,"利用している","利用していない","合計",null,null,null,null,null,0.40019258838980781]
[null,1,"フルタイム勤務",150,33,183]
[null,2,"パートタイム勤務",91,28,119]
[null,3,"働いていない",264,77,341]
[null,null,"合計",505,138]
[]
[]
["chart42","認30_介護者の就労継続の可否に係る意識(SA) × 問13_介護保険サービスの利用の有無(SA)【50】×【14】【52=1】"]
[null,null,null,1,2]
[null,null,null,"利用している","利用していない","合計",null,null,null,null,null,0.5437740633894973]
[null,1,"問題なく、続けていける",69,16,85]
[null,2,"問題はあるが、何とか続けていける",113,24,137]
[null,3,"続けていくのは「やや＋かなり難しい」",26,9,35]
[null,null,"合計",208,49]
[]
[]
["chart43","問14_未利用の理由(MA) × 認30_介護者の就労継続の可否に係る意識(SA)【15】×【50】【52=1】"]
[null,null,null,1,2,3]
[null,null,null,"問題なく、続けていける","問題はあるが、何とか続けていける","続けていくのは「やや＋かなり難しい」","合計"]
[null,1,"現状では、サービスを利用するほどの状態ではない",9,8,3,20,null,null,null,null,0.45161926986754169]
[null,2,"本人にサービス利用の希望がない",6,4,0,10,null,null,null,null,9.2748769601557091E-2,"(+)"]
[null,3,"家族が介護をするため必要ない",3,2,0,5,null,null,null,null,0.34860190125707258]
[null,4,"以前、利用していたサービスに不満があった",2,0,0,2,null,null,null,null,0.14051330933484246]
[null,5,"利用料を支払うのが難しい",0,0,1,1,null,null,null,null,0.10346534859484728]
[null,6,"利用したいサービスが利用できない、身近にない",0,3,1,4,null,null,null,null,0.30942046043502947]
[null,7,"住宅改修、福祉用具貸与・購入のみを利用するため",0,3,0,3,null,null,null,null,0.16427093275626323]
[null,8,"サービスを受けたいが手続きや利用方法が分からない",0,0,1,1,null,null,null,null,0.10346534859484728]
[null,9,"その他",0,5,3,8,null,null,null,null,5.7389132770666734E-2,"(+)"]
[null,null,"合計",17,23,9]
[]
[]
["chart44","問5_介護者が不安に感じる介護(MA) × 認30_介護者の就労継続の可否に係る意識(SA)【20】×【50】【52=1】"]
[null,null,null,1,2,3]
[null,null,null,"問題なく、続けていける","問題はあるが、何とか続けていける","続けていくのは「やや＋かなり難しい」","合計"]
[null,1,"日中の排泄",4,13,7,24,null,null,null,null,1.8386737184710657E-2,"(*)"]
[null,2,"夜間の排泄",9,38,8,55,null,null,null,null,5.5712534676955368E-3,"(**)"]
[null,3,"食事の介助（食べる時）",1,4,2,7,null,null,null,null,0.32106973651162052]
[null,4,"入浴・洗身",10,28,9,47,null,null,null,null,7.3397310833798732E-2,"(+)"]
[null,5,"身だしなみ（洗顔・歯磨き等）",1,3,1,5,null,null,null,null,0.75417122651878288]
[null,6,"衣服の着脱",0,5,1,6,null,null,null,null,0.19475497468809433]
[null,7,"屋内の移乗・移動",17,31,6,54,null,null,null,null,0.74046451400343971]
[null,8,"外出の付き添い、送迎等",22,46,10,78,null,null,null,null,0.35285785642348078]
[null,9,"服薬",3,20,5,28,null,null,null,null,1.9794352757470449E-2,"(*)"]
[null,10,"認知症状への対応",12,54,12,78,null,null,null,null,1.0594234044302547E-4,"(***)"]
[null,11,"医療面での対応（経管栄養、ストーマ 等）",3,11,4,18,null,null,null,null,0.18523928789519373]
[null,12,"食事の準備（調理等）",8,21,9,38,null,null,null,null,3.8396854572982822E-2,"(*)"]
[null,13,"その他の家事（掃除、洗濯、買い物 等）",14,14,4,32,null,null,null,null,0.47132185492366935]
[null,14,"金銭管理や生活面に必要な諸手続き",6,14,5,25,null,null,null,null,0.35839178000582789]
[null,15,"その他",3,4,2,9,null,null,null,null,0.67906773099809481]
[null,16,"不安に感じていることは、特にない",21,4,1,26,null,null,null,null,9.9145144259966459E-7,"(***)"]
[null,17,"主な介護者に確認しないと、わからない",9,6,0,15,null,null,null,null,6.1488913719808011E-2,"(+)"]
[null,null,"合計",86,132,32]
[]
[]
["chart45","問1_介護者の勤務形態2(SA) × 認19_サービス利用の組み合わせ(SA)【54】×【39】"]
[null,null,null,1,2,3,4]
[null,null,null,"未利用","訪問系のみ","訪問系を含む組み合わせ","通所系・短期系のみ","合計",null,null,null,0.25194298622177025]
[null,1,"フルタイム勤務",33,27,47,80,187]
[null,2,"パートタイム勤務",27,16,27,52,122]
[null,3,"働いていない",83,48,56,156,343]
[null,null,"合計",143,91,130,288]
[]
[]
["chart46","認20_訪問系の利用の有無(SA) × 問4_介護者の就労継続の可否に係る意識(SA)【40】×【19】【36=1】【52=1】"]
[null,null,null,1,2,3,4,5]
[null,null,null,"問題なく、続けていける","問題はあるが、何とか続けていける","続けていくのは、やや難しい","続けていくのは、かなり難しい","わからない","合計",null,null,0.68488752256615848]
[null,1,"訪問系利用あり",15,34,5,5,3,62]
[null,2,"訪問系利用なし",9,40,5,6,2,62]
[null,null,"合計",24,74,10,11,5]
[]
[]
["chart47","認20_訪問系の利用の有無(SA) × 問4_介護者の就労継続の可否に係る意識(SA)【40】×【19】【48=1】【52=1】"]
[null,null,null,1,2,3,4,5]
[null,null,null,"問題なく、続けていける","問題はあるが、何とか続けていける","続けていくのは、やや難しい","続けていくのは、かなり難しい","わからない","合計",null,null,0.96244034026424008]
[null,1,"訪問系利用あり",10,36,6,4,7,63]
[null,2,"訪問系利用なし",14,45,9,7,7,82]
[null,null,"合計",24,81,15,11,14]
[]
[]
[]
[]
[]
[]
[]
[]
[]
[]
[]
[]
[]
[]
[]
[]
[]
[]
[]
[]
[]
[]
[]
[]
[]
[]
[]
[]
[]
[]
[]
[]
[]
[]
[]
[]
["chart49","問1_介護者の勤務形態2(SA) × 問12_訪問診療の利用の有無(SA)【54】×【13】"]
[null,null,null,1,2]
[null,null,null,"利用している","利用していない","合計",null,null,null,null,null,0.45973533757335122]
[null,1,"フルタイム勤務",14,172,186]
[null,2,"パートタイム勤務",14,108,122]
[null,3,"働いていない",35,307,342]
[null,null,"合計",63,587]
[]
[]
["chart50","問1_介護者の勤務形態2(SA) × 問10_施設等の検討状況(SA)【54】×【11】"]
[null,null,null,1,2,3]
[null,null,null,"検討していない","検討中","申請済み","合計",null,null,null,null,0.15748549335054512]
[null,1,"フルタイム勤務",142,37,7,186]
[null,2,"パートタイム勤務",89,29,4,122]
[null,3,"働いていない",277,49,16,342]
[null,null,"合計",508,115,27]
[]
[]
["chart51","認30_介護者の就労継続の可否に係る意識(SA) × 問10_施設等の検討状況(SA)【50】×【11】【36=1】【52=1】"]
[null,null,null,1,2,3]
[null,null,null,"検討していない","検討中","申請済み","合計",null,null,null,null,4.469044481729246E-3,"(**)"]
[null,1,"問題なく、続けていける",23,1,0,24]
[null,2,"問題はあるが、何とか続けていける",46,22,6,74]
[null,3,"続けていくのは「やや＋かなり難しい」",9,10,2,21]
[null,null,"合計",78,33,8]
[]
[]
["chart52","問2_介護者の働き方の調整の状況(MA) × 問1_介護者の勤務形態3(SA)【17】×【55】"]
[null,null,null,1,2]
[null,null,null,"フルタイム勤務","パートタイム勤務","合計"]
[null,1,"特に行っていない",80,54,134,null,null,null,null,null,0.73202247375825613]
[null,2,"介護のために、「労働時間を調整（残業免除、短時間勤務、遅出・早帰・中抜け等）」しながら、働いている",67,40,107,null,null,null,null,null,0.6302004491323423]
[null,3,"介護のために、「休暇（年休や介護休暇等）」を取りながら、働いている",37,8,45,null,null,null,null,null,1.4258848486325987E-3,"(**)"]
[null,4,"介護のために、「在宅勤務」を利用しながら、働いている",5,7,12,null,null,null,null,null,0.16640690334889691]
[null,5,"介護のために、2～4以外の調整をしながら、働いている",14,16,30,null,null,null,null,null,9.5386337367256213E-2,"(+)"]
[null,6,"わからない",3,2,5,null,null,null,null,null,0.9711083905274347]
[null,null,"合計",186,120]
[]
[]
["chart53","問2_介護者の働き方の調整の状況(MA) × 認30_介護者の就労継続の可否に係る意識(SA)【17】×【50】【52=1】"]
[null,null,null,1,2,3]
[null,null,null,"問題なく、続けていける","問題はあるが、何とか続けていける","続けていくのは「やや＋かなり難しい」","合計"]
[null,1,"特に行っていない",59,40,8,107,null,null,null,null,6.1782113258080507E-10,"(***)"]
[null,2,"介護のために、「労働時間を調整（残業免除、短時間勤務、遅出・早帰・中抜け等）」しながら、働いている",16,62,24,102,null,null,null,null,2.1741397705374222E-6,"(***)"]
[null,3,"介護のために、「休暇（年休や介護休暇等）」を取りながら、働いている",7,27,8,42,null,null,null,null,5.4333949905532683E-2,"(+)"]
[null,4,"介護のために、「在宅勤務」を利用しながら、働いている",0,11,1,12,null,null,null,null,1.8734138987459171E-2,"(*)"]
[null,5,"介護のために、2～4以外の調整をしながら、働いている",3,20,3,26,null,null,null,null,2.7513046388926207E-2,"(*)"]
[null,6,"わからない",1,1,0,2,null,null,null,null,0.78608223267216448]
[null,null,"合計",86,140,38]
[]
[]
["chart54","問3_効果的な勤め先からの支援(MA) × 問1_介護者の勤務形態3(SA)【18】×【55】"]
[null,null,null,1,2]
[null,null,null,"フルタイム勤務","パートタイム勤務","合計"]
[null,1,"自営業・フリーランス等のため、勤め先はない",36,10,46,null,null,null,null,null,9.0944331135791971E-3,"(**)"]
[null,2,"介護休業・介護休暇等の制度の充実",56,21,77,null,null,null,null,null,1.440071719356462E-2,"(*)"]
[null,3,"制度を利用しやすい職場づくり",47,18,65,null,null,null,null,null,3.470054042733569E-2,"(*)"]
[null,4,"労働時間の柔軟な選択（フレックスタイム制など）",0,0,0,null,null,null,null,null,"検定不能"]
[null,5,"働く場所の多様化（在宅勤務・テレワークなど）",0,0,0,null,null,null,null,null,"検定不能"]
[null,6,"仕事と介護の両立に関する情報の提供",18,14,32,null,null,null,null,null,0.55998722810422263]
[null,7,"介護に関する相談窓口・相談担当者の設置",15,9,24,null,null,null,null,null,0.87518611725086115]
[null,8,"介護をしている従業員への経済的な支援",30,26,56,null,null,null,null,null,0.20631283361737482]
[null,9,"その他",4,1,5,null,null,null,null,null,0.37972813891408136]
[null,10,"特にない",36,36,72,null,null,null,null,null,2.8156205390210617E-2,"(*)"]
[null,11,"主な介護者に確認しないと、わからない",23,21,44,null,null,null,null,null,0.19884896533369004]
[null,null,"合計",183,117]
[]
[]
["chart55","問3_効果的な勤め先からの支援(MA) × 認30_介護者の就労継続の可否に係る意識(SA)【18】×【50】【52=1】"]
[null,null,null,1,2,3]
[null,null,null,"問題なく、続けていける","問題はあるが、何とか続けていける","続けていくのは「やや＋かなり難しい」","合計"]
[null,1,"自営業・フリーランス等のため、勤め先はない",12,26,6,44,null,null,null,null,0.64107067146959984]
[null,2,"介護休業・介護休暇等の制度の充実",21,38,12,71,null,null,null,null,0.70359528059875565]
[null,3,"制度を利用しやすい職場づくり",10,43,7,60,null,null,null,null,2.8316405344365574E-3,"(**)"]
[null,4,"労働時間の柔軟な選択（フレックスタイム制など）",0,0,0,0,null,null,null,null,"検定不能"]
[null,5,"働く場所の多様化（在宅勤務・テレワークなど）",0,0,0,0,null,null,null,null,"検定不能"]
[null,6,"仕事と介護の両立に関する情報の提供",4,18,9,31,null,null,null,null,8.3739780061654751E-3,"(**)"]
[null,7,"介護に関する相談窓口・相談担当者の設置",2,19,3,24,null,null,null,null,1.5569338402015387E-2,"(*)"]
[null,8,"介護をしている従業員への経済的な支援",11,29,13,53,null,null,null,null,2.228898433555361E-2,"(*)"]
[null,9,"その他",0,5,0,5,null,null,null,null,0.1029576990130549]
[null,10,"特にない",35,22,6,63,null,null,null,null,5.3665434760694915E-5,"(***)"]
[null,11,"主な介護者に確認しないと、わからない",12,12,3,27,null,null,null,null,0.38603502356646457]
[null,null,"合計",86,139,38]
[]
[]
[]
[]
[]
[]
[]
[]
[]
[]
[]
[]
[]
[]
[]
[]
[]
[]
[]
[]
[]
[]
[]
[]
[]
[]
[]
[]
[]
[]
[]
[]
[]
[]
[]
[]
["chart58","問8_保険外の支援・サービスの利用状況(MA) × 問1_世帯類型(SA)【9】×【2】"]
[null,null,null,1,2,3]
[null,null,null,"単身世帯","夫婦のみ世帯","その他","合計"]
[null,1,"配食",50,14,31,95,null,null,null,null,4.7481191125531188E-8,"(***)"]
[null,2,"調理",10,2,5,17,null,null,null,null,1.4572338179416479E-2,"(*)"]
[null,3,"掃除・洗濯",30,12,11,53,null,null,null,null,1.6526855302738082E-6,"(***)"]
[null,4,"買い物（宅配は含まない）",16,6,3,25,null,null,null,null,5.4574365701849143E-5,"(***)"]
[null,5,"ゴミ出し",24,2,2,28,null,null,null,null,2.2342386678087277E-11,"(***)"]
[null,6,"外出同行（通院、買い物など）",21,8,6,35,null,null,null,null,2.097533144312732E-5,"(***)"]
[null,7,"移送サービス（介護・福祉ﾀｸｼｰ等）",17,11,29,57,null,null,null,null,0.77466116360390813]
[null,8,"見守り、声かけ",25,9,9,43,null,null,null,null,1.1170613155445055E-5,"(***)"]
[null,9,"サロンなどの定期的な通いの場",12,8,19,39,null,null,null,null,0.8776666830227734]
[null,10,"その他",15,11,24,50,null,null,null,null,0.92789694948054569]
[null,11,"利用していない",99,124,270,493,null,null,null,null,4.5188593020250321E-9,"(***)"]
[null,null,"合計",216,180,385]
[]
[]
["chart59","問9_保険外の支援・サービスの必要性(MA) × 問1_世帯類型(SA)【10】×【2】"]
[null,null,null,1,2,3]
[null,null,null,"単身世帯","夫婦のみ世帯","その他","合計"]
[null,1,"配食",39,28,35,102,null,null,null,null,4.1019517844403768E-3,"(**)"]
[null,2,"調理",47,26,38,111,null,null,null,null,4.0800822134089447E-4,"(***)"]
[null,3,"掃除・洗濯",70,32,38,140,null,null,null,null,7.0839566015395711E-11,"(***)"]
[null,4,"買い物（宅配は含まない）",51,19,18,88,null,null,null,null,2.5630756271424622E-11,"(***)"]
[null,5,"ゴミ出し",48,14,16,78,null,null,null,null,1.1209472968603414E-11,"(***)"]
[null,6,"外出同行（通院、買い物など）",58,46,47,151,null,null,null,null,3.8249265248142499E-6,"(***)"]
[null,7,"移送サービス（介護・福祉ﾀｸｼｰ等）",58,38,64,160,null,null,null,null,1.3400190010518022E-2,"(*)"]
[null,8,"見守り、声かけ",53,26,58,137,null,null,null,null,8.6233264864155942E-3,"(**)"]
[null,9,"サロンなどの定期的な通いの場",18,12,28,58,null,null,null,null,0.84548311838327506]
[null,10,"その他",11,10,19,40,null,null,null,null,0.93579405731649501]
[null,11,"特になし",61,64,196,321,null,null,null,null,7.8160034553400318E-8,"(***)"]
[null,null,"合計",217,176,383]
[]
[]
["chart60","問8_保険外の支援・サービスの利用状況(MA) × 認12_二次判定結果(SA)【9】×【32】"]
[null,null,null,1,2,3]
[null,null,null,"要支援１・２","要介護１・２","要介護３以上","合計"]
[null,1,"配食",31,51,13,95,null,null,null,null,0.22902044137980743]
[null,2,"調理",3,12,2,17,null,null,null,null,0.1427097370554869]
[null,3,"掃除・洗濯",21,24,8,53,null,null,null,null,0.53375044876402333]
[null,4,"買い物（宅配は含まない）",7,16,2,25,null,null,null,null,0.16708863545965336]
[null,5,"ゴミ出し",6,17,5,28,null,null,null,null,0.29217118433958317]
[null,6,"外出同行（通院、買い物など）",10,19,6,35,null,null,null,null,0.67587794833604109]
[null,7,"移送サービス（介護・福祉ﾀｸｼｰ等）",11,27,19,57,null,null,null,null,7.9372202338948324E-3,"(**)"]
[null,8,"見守り、声かけ",9,21,13,43,null,null,null,null,8.9373990934177264E-2,"(+)"]
[null,9,"サロンなどの定期的な通いの場",23,14,2,39,null,null,null,null,1.2164515958043437E-3,"(**)"]
[null,10,"その他",14,18,18,50,null,null,null,null,9.7735773119841541E-3,"(**)"]
[null,11,"利用していない",163,237,95,495,null,null,null,null,0.81096565190618253]
[null,null,"合計",262,368,153]
[]
[]
["chart61","問8_保険外の支援・サービスの利用状況(MA) × 認12_二次判定結果(SA)【9】×【32】【2=1】"]
[null,null,null,1,2,3]
[null,null,null,"要支援１・２","要介護１・２","要介護３以上","合計"]
[null,1,"配食",15,31,4,50,null,null,null,null,4.590133134217441E-2,"(*)"]
[null,2,"調理",2,6,2,10,null,null,null,null,0.23870095485419654]
[null,3,"掃除・洗濯",8,18,4,30,null,null,null,null,0.13219543802660486]
[null,4,"買い物（宅配は含まない）",5,11,0,16,null,null,null,null,0.13102146114432994]
[null,5,"ゴミ出し",6,15,3,24,null,null,null,null,0.15162890176895225]
[null,6,"外出同行（通院、買い物など）",5,12,4,21,null,null,null,null,9.5685431294716405E-2,"(+)"]
[null,7,"移送サービス（介護・福祉ﾀｸｼｰ等）",5,9,3,17,null,null,null,null,0.33511576535597321]
[null,8,"見守り、声かけ",6,14,5,25,null,null,null,null,4.8239966363492141E-2,"(*)"]
[null,9,"サロンなどの定期的な通いの場",8,4,0,12,null,null,null,null,0.19305527237609141]
[null,10,"その他",6,7,2,15,null,null,null,null,0.87717826834278712]
[null,11,"利用していない",53,36,10,99,null,null,null,null,1.4515679806257046E-2,"(*)"]
[null,null,"合計",94,101,21]
[]
[]
["chart62","問8_保険外の支援・サービスの利用状況(MA) × 認12_二次判定結果(SA)【9】×【32】【2=2】"]
[null,null,null,1,2,3]
[null,null,null,"要支援１・２","要介護１・２","要介護３以上","合計"]
[null,1,"配食",5,8,1,14,null,null,null,null,0.62770359889509098]
[null,2,"調理",1,1,0,2,null,null,null,null,0.74814701874610712]
[null,3,"掃除・洗濯",7,3,2,12,null,null,null,null,7.4852027644715963E-2,"(+)"]
[null,4,"買い物（宅配は含まない）",2,3,1,6,null,null,null,null,0.98521337376473839]
[null,5,"ゴミ出し",0,0,2,2,null,null,null,null,5.1673204792430467E-3,"(**)"]
[null,6,"外出同行（通院、買い物など）",3,4,1,8,null,null,null,null,0.89702647826772863]
[null,7,"移送サービス（介護・福祉ﾀｸｼｰ等）",1,6,4,11,null,null,null,null,9.289690756691632E-2,"(+)"]
[null,8,"見守り、声かけ",2,4,3,9,null,null,null,null,0.34997912900683259]
[null,9,"サロンなどの定期的な通いの場",3,4,1,8,null,null,null,null,0.89702647826772863]
[null,10,"その他",1,6,4,11,null,null,null,null,9.289690756691632E-2,"(+)"]
[null,11,"利用していない",36,69,19,124,null,null,null,null,0.65183994564934045]
[null,null,"合計",55,96,29]
[]
[]
["chart63","問8_保険外の支援・サービスの利用状況(MA) × 認12_二次判定結果(SA)【9】×【32】【2=3】"]
[null,null,null,1,2,3]
[null,null,null,"要支援１・２","要介護１・２","要介護３以上","合計"]
[null,1,"配食",11,12,8,31,null,null,null,null,0.71728189368690598]
[null,2,"調理",0,5,0,5,null,null,null,null,4.0625193589442068E-2,"(*)"]
[null,3,"掃除・洗濯",6,3,2,11,null,null,null,null,0.17593997280772117]
[null,4,"買い物（宅配は含まない）",0,2,1,3,null,null,null,null,0.5252366579586536]
[null,5,"ゴミ出し",0,2,0,2,null,null,null,null,0.28046394780174622]
[null,6,"外出同行（通院、買い物など）",2,3,1,6,null,null,null,null,0.85974432430917869]
[null,7,"移送サービス（介護・福祉ﾀｸｼｰ等）",5,12,12,29,null,null,null,null,0.11975002200079879]
[null,8,"見守り、声かけ",1,3,5,9,null,null,null,null,0.12082472189094506]
[null,9,"サロンなどの定期的な通いの場",12,6,1,19,null,null,null,null,2.6071701248665292E-3,"(**)"]
[null,10,"その他",7,5,12,24,null,null,null,null,1.4324308721902209E-2,"(*)"]
[null,11,"利用していない",74,131,65,270,null,null,null,null,2.9358507187053469E-2,"(*)"]
[null,null,"合計",113,170,102]
[]
[]
["chart64","問9_保険外の支援・サービスの必要性(MA) × 認12_二次判定結果(SA)【10】×【32】"]
[null,null,null,1,2,3]
[null,null,null,"要支援１・２","要介護１・２","要介護３以上","合計"]
[null,1,"配食",24,66,12,102,null,null,null,null,7.5600400165559407E-4,"(***)"]
[null,2,"調理",24,78,9,111,null,null,null,null,7.616605087048601E-7,"(***)"]
[null,3,"掃除・洗濯",46,82,12,140,null,null,null,null,6.7971709000557551E-4,"(***)"]
[null,4,"買い物（宅配は含まない）",27,54,7,88,null,null,null,null,4.3242825397250143E-3,"(**)"]
[null,5,"ゴミ出し",30,40,8,78,null,null,null,null,0.10560063033207642]
[null,6,"外出同行（通院、買い物など）",37,92,22,151,null,null,null,null,9.2217038296119459E-4,"(***)"]
[null,7,"移送サービス（介護・福祉ﾀｸｼｰ等）",54,74,33,161,null,null,null,null,0.87429832802732454]
[null,8,"見守り、声かけ",37,76,24,137,null,null,null,null,9.5348972264075127E-2,"(+)"]
[null,9,"サロンなどの定期的な通いの場",19,35,5,59,null,null,null,null,5.5437561570622906E-2,"(+)"]
[null,10,"その他",9,19,12,40,null,null,null,null,0.1270934030735773]
[null,11,"特になし",117,129,76,322,null,null,null,null,1.4728443724544825E-3,"(**)"]
[null,null,"合計",261,368,149]
[]
[]
["chart65","問9_保険外の支援・サービスの必要性(MA) × 認12_二次判定結果(SA)【10】×【32】【2=1】"]
[null,null,null,1,2,3]
[null,null,null,"要支援１・２","要介護１・２","要介護３以上","合計"]
[null,1,"配食",11,26,2,39,null,null,null,null,2.0371805691685979E-2,"(*)"]
[null,2,"調理",11,33,3,47,null,null,null,null,1.1233995674991102E-3,"(**)"]
[null,3,"掃除・洗濯",24,41,5,70,null,null,null,null,4.9173555418081834E-2,"(*)"]
[null,4,"買い物（宅配は含まない）",17,31,3,51,null,null,null,null,6.2084044191323011E-2,"(+)"]
[null,5,"ゴミ出し",20,24,4,48,null,null,null,null,0.84533594538732604]
[null,6,"外出同行（通院、買い物など）",18,34,6,58,null,null,null,null,6.5426828654996924E-2,"(+)"]
[null,7,"移送サービス（介護・福祉ﾀｸｼｰ等）",24,25,9,58,null,null,null,null,0.21278757744011895]
[null,8,"見守り、声かけ",18,30,5,53,null,null,null,null,0.21515698819425597]
[null,9,"サロンなどの定期的な通いの場",6,12,0,18,null,null,null,null,0.1289715173194112]
[null,10,"その他",4,6,1,11,null,null,null,null,0.85682150404608193]
[null,11,"特になし",35,21,5,61,null,null,null,null,3.9693534949275591E-2,"(*)"]
[null,null,"合計",95,101,21]
[]
[]
["chart66","問9_保険外の支援・サービスの必要性(MA) × 認12_二次判定結果(SA)【10】×【32】【2=2】"]
[null,null,null,1,2,3]
[null,null,null,"要支援１・２","要介護１・２","要介護３以上","合計"]
[null,1,"配食",7,17,4,28,null,null,null,null,0.72090309176080791]
[null,2,"調理",6,16,4,26,null,null,null,null,0.63820201051390058]
[null,3,"掃除・洗濯",11,19,2,32,null,null,null,null,0.28765666244001392]
[null,4,"買い物（宅配は含まない）",6,12,1,19,null,null,null,null,0.41722756908028819]
[null,5,"ゴミ出し",5,6,3,14,null,null,null,null,0.65657944020033931]
[null,6,"外出同行（通院、買い物など）",13,29,4,46,null,null,null,null,0.23931149652870343]
[null,7,"移送サービス（介護・福祉ﾀｸｼｰ等）",10,25,3,38,null,null,null,null,0.19152746433721099]
[null,8,"見守り、声かけ",6,17,3,26,null,null,null,null,0.44977548288820157]
[null,9,"サロンなどの定期的な通いの場",2,9,1,12,null,null,null,null,0.31804823432018298]
[null,10,"その他",2,5,3,10,null,null,null,null,0.38471586092894305]
[null,11,"特になし",18,30,16,64,null,null,null,null,2.6376845254585345E-2,"(*)"]
[null,null,"合計",54,95,27]
[]
[]
["chart67","問9_保険外の支援・サービスの必要性(MA) × 認12_二次判定結果(SA)【10】×【32】【2=3】"]
[null,null,null,1,2,3]
[null,null,null,"要支援１・２","要介護１・２","要介護３以上","合計"]
[null,1,"配食",6,23,6,35,null,null,null,null,3.1058119642111359E-2,"(*)"]
[null,2,"調理",7,29,2,38,null,null,null,null,1.1241199777829067E-4,"(***)"]
[null,3,"掃除・洗濯",11,22,5,38,null,null,null,null,0.11249499247200595]
[null,4,"買い物（宅配は含まない）",4,11,3,18,null,null,null,null,0.34818286246081981]
[null,5,"ゴミ出し",5,10,1,16,null,null,null,null,0.15433731391362918]
[null,6,"外出同行（通院、買い物など）",6,29,12,47,null,null,null,null,1.4474158571198584E-2,"(*)"]
[null,7,"移送サービス（介護・福祉ﾀｸｼｰ等）",20,24,20,64,null,null,null,null,0.41422010350757632]
[null,8,"見守り、声かけ",13,29,16,58,null,null,null,null,0.45255326927425593]
[null,9,"サロンなどの定期的な通いの場",11,14,3,28,null,null,null,null,0.13683247032254167]
[null,10,"その他",3,8,8,19,null,null,null,null,0.19935226685959911]
[null,11,"特になし",64,77,55,196,null,null,null,null,9.2231055651161631E-2,"(+)"]
[null,null,"合計",112,171,100]
[]
[]
["chart68","認12_二次判定結果(SA) × 問1_世帯類型(SA)【32】×【2】"]
[null,null,null,1,2,3]
[null,null,null,"単身世帯","夫婦のみ世帯","その他","合計",null,null,null,null,9.3152612266243376E-7,"(***)"]
[null,1,"要支援１・２",96,56,114,266]
[null,2,"要介護１・２",102,97,173,372]
[null,3,"要介護３以上",21,29,103,153]
[null,null,"合計",219,182,390]
[]
[]
["chart69","問1_世帯類型(SA) × 認12_二次判定結果(SA)【2】×【32】"]
[null,null,null,1,2,3]
[null,null,null,"要支援１・２","要介護１・２","要介護３以上","合計",null,null,null,null,9.3152612266243683E-7,"(***)"]
[null,1,"単身世帯",96,102,21,219]
[null,2,"夫婦のみ世帯",56,97,29,182]
[null,3,"その他",114,173,103,390]
[null,null,"合計",266,372,153]
[]
[]
["chart70","問1_世帯類型(SA) × 問2_ご家族等の介護の頻度(SA)【2】×【3】"]
[null,null,null,1,2,3,4,5]
[null,null,null,"ない","週1日以下","週1～2日","週3～4日","ほぼ毎日","合計",null,null,2.749266292894106E-41,"(***)"]
[null,1,"単身世帯",52,34,61,16,46,209]
[null,2,"夫婦のみ世帯",14,14,21,7,125,181]
[null,3,"その他",23,13,22,19,313,390]
[null,null,"合計",89,61,104,42,484]
[]
[]
["chart71","認12_二次判定結果(SA) × 問2_ご家族等の介護の頻度(SA)【32】×【3】【2=1】"]
[null,null,null,1,2,3,4,5]
[null,null,null,"ない","週1日以下","週1～2日","週3～4日","ほぼ毎日","合計",null,null,2.3831236044823088E-2,"(*)"]
[null,1,"要支援１・２",23,19,30,7,12,91]
[null,2,"要介護１・２",24,11,30,8,24,97]
[null,3,"要介護３以上",5,4,1,1,10,21]
[null,null,"合計",52,34,61,16,46]
[]
[]
["chart72","認12_二次判定結果(SA) × 問2_ご家族等の介護の頻度(SA)【32】×【3】【2=2】"]
[null,null,null,1,2,3,4,5]
[null,null,null,"ない","週1日以下","週1～2日","週3～4日","ほぼ毎日","合計",null,null,0.37022736738094714]
[null,1,"要支援１・２",7,4,7,4,33,55]
[null,2,"要介護１・２",5,9,12,3,68,97]
[null,3,"要介護３以上",2,1,2,0,24,29]
[null,null,"合計",14,14,21,7,125]
[]
[]
["chart73","認12_二次判定結果(SA) × 問2_ご家族等の介護の頻度(SA)【32】×【3】【2=3】"]
[null,null,null,1,2,3,4,5]
[null,null,null,"ない","週1日以下","週1～2日","週3～4日","ほぼ毎日","合計",null,null,7.8703423562233537E-7,"(***)"]
[null,1,"要支援１・２",14,7,14,10,69,114]
[null,2,"要介護１・２",8,3,6,7,149,173]
[null,3,"要介護３以上",1,3,2,2,95,103]
[null,null,"合計",23,13,22,19,313]
[]
[]
["chart74","認12_二次判定結果(SA) × 認19_サービス利用の組み合わせ(SA)【32】×【39】【2=1】"]
[null,null,null,1,2,3,4]
[null,null,null,"未利用","訪問系のみ","訪問系を含む組み合わせ","通所系・短期系のみ","合計",null,null,null,8.6842629840095914E-6,"(***)"]
[null,1,"要支援１・２",33,24,9,30,96]
[null,2,"要介護１・２",15,24,34,29,102]
[null,3,"要介護３以上",0,11,6,4,21]
[null,null,"合計",48,59,49,63]
[]
[]
["chart75","認12_二次判定結果(SA) × 認19_サービス利用の組み合わせ(SA)【32】×【39】【2=2】"]
[null,null,null,1,2,3,4]
[null,null,null,"未利用","訪問系のみ","訪問系を含む組み合わせ","通所系・短期系のみ","合計",null,null,null,2.0198315508987547E-5,"(***)"]
[null,1,"要支援１・２",28,9,5,14,56]
[null,2,"要介護１・２",21,15,19,42,97]
[null,3,"要介護３以上",1,8,11,9,29]
[null,null,"合計",50,32,35,65]
[]
[]
["chart76","認12_二次判定結果(SA) × 認19_サービス利用の組み合わせ(SA)【32】×【39】【2=3】"]
[null,null,null,1,2,3,4]
[null,null,null,"未利用","訪問系のみ","訪問系を含む組み合わせ","通所系・短期系のみ","合計",null,null,null,3.1805245055708185E-10,"(***)"]
[null,1,"要支援１・２",38,11,7,58,114]
[null,2,"要介護１・２",28,17,26,102,173]
[null,3,"要介護３以上",6,15,37,45,103]
[null,null,"合計",72,43,70,205]
[]
[]
["chart77","認26_認知症高齢者自立度(SA) × 認19_サービス利用の組み合わせ(SA)【46】×【39】【2=1】"]
[null,null,null,1,2,3,4]
[null,null,null,"未利用","訪問系のみ","訪問系を含む組み合わせ","通所系・短期系のみ","合計",null,null,null,5.2501361695251759E-3,"(**)"]
[null,1,"自立＋Ⅰ",35,38,20,30,123]
[null,2,"Ⅱ",12,14,19,27,72]
[null,3,"Ⅲ以上",1,7,10,6,24]
[null,null,"合計",48,59,49,63]
[]
[]
["chart78","認26_認知症高齢者自立度(SA) × 認19_サービス利用の組み合わせ(SA)【46】×【39】【2=2】"]
[null,null,null,1,2,3,4]
[null,null,null,"未利用","訪問系のみ","訪問系を含む組み合わせ","通所系・短期系のみ","合計",null,null,null,8.9243423521297351E-3,"(**)"]
[null,1,"自立＋Ⅰ",33,17,10,28,88]
[null,2,"Ⅱ",15,8,19,25,67]
[null,3,"Ⅲ以上",2,7,6,12,27]
[null,null,"合計",50,32,35,65]
[]
[]
["chart79","認26_認知症高齢者自立度(SA) × 認19_サービス利用の組み合わせ(SA)【46】×【39】【2=3】"]
[null,null,null,1,2,3,4]
[null,null,null,"未利用","訪問系のみ","訪問系を含む組み合わせ","通所系・短期系のみ","合計",null,null,null,3.99188705532754E-7,"(***)"]
[null,1,"自立＋Ⅰ",54,27,23,81,185]
[null,2,"Ⅱ",13,9,24,78,124]
[null,3,"Ⅲ以上",5,7,23,46,81]
[null,null,"合計",72,43,70,205]
[]
[]
["chart80","問1_世帯類型(SA) × 問10_施設等の検討状況(SA)【2】×【11】"]
[null,null,null,1,2,3]
[null,null,null,"検討していない","検討中","申請済み","合計",null,null,null,null,2.4413867283653321E-4,"(***)"]
[null,1,"単身世帯",148,56,14,218]
[null,2,"夫婦のみ世帯",157,20,4,181]
[null,3,"その他",305,62,20,387]
[null,null,"合計",610,138,38]
[]
[]
["chart81","認12_二次判定結果(SA) × 問10_施設等の検討状況(SA)【32】×【11】【2=1】"]
[null,null,null,1,2,3]
[null,null,null,"検討していない","検討中","申請済み","合計",null,null,null,null,1.1290096803670436E-3,"(**)"]
[null,1,"要支援１・２",76,16,3,95]
[null,2,"要介護１・２",64,31,7,102]
[null,3,"要介護３以上",8,9,4,21]
[null,null,"合計",148,56,14]
[]
[]
["chart82","認12_二次判定結果(SA) × 問10_施設等の検討状況(SA)【32】×【11】【2=2】"]
[null,null,null,1,2,3]
[null,null,null,"検討していない","検討中","申請済み","合計",null,null,null,null,0.30517865177578057]
[null,1,"要支援１・２",50,6,0,56]
[null,2,"要介護１・２",82,12,2,96]
[null,3,"要介護３以上",25,2,2,29]
[null,null,"合計",157,20,4]
[]
[]
["chart83","認12_二次判定結果(SA) × 問10_施設等の検討状況(SA)【32】×【11】【2=3】"]
[null,null,null,1,2,3]
[null,null,null,"検討していない","検討中","申請済み","合計",null,null,null,null,4.6388222677653135E-4,"(***)"]
[null,1,"要支援１・２",98,10,4,112]
[null,2,"要介護１・２",141,25,6,172]
[null,3,"要介護３以上",66,27,10,103]
[null,null,"合計",305,62,20]
[]
[]
["chart84","認26_認知症高齢者自立度(SA) × 問10_施設等の検討状況(SA)【46】×【11】【2=1】"]
[null,null,null,1,2,3]
[null,null,null,"検討していない","検討中","申請済み","合計",null,null,null,null,1.5512424901324023E-6,"(***)"]
[null,1,"自立＋Ⅰ",100,18,4,122]
[null,2,"Ⅱ",40,27,5,72]
[null,3,"Ⅲ以上",8,11,5,24]
[null,null,"合計",148,56,14]
[]
[]
["chart85","認26_認知症高齢者自立度(SA) × 問10_施設等の検討状況(SA)【46】×【11】【2=2】"]
[null,null,null,1,2,3]
[null,null,null,"検討していない","検討中","申請済み","合計",null,null,null,null,0.17609486403183156]
[null,1,"自立＋Ⅰ",78,10,0,88]
[null,2,"Ⅱ",58,6,2,66]
[null,3,"Ⅲ以上",21,4,2,27]
[null,null,"合計",157,20,4]
[]
[]
["chart86","認26_認知症高齢者自立度(SA) × 問10_施設等の検討状況(SA)【46】×【11】【2=3】"]
[null,null,null,1,2,3]
[null,null,null,"検討していない","検討中","申請済み","合計",null,null,null,null,7.0482434456841431E-6,"(***)"]
[null,1,"自立＋Ⅰ",159,20,4,183]
[null,2,"Ⅱ",99,17,7,123]
[null,3,"Ⅲ以上",47,25,9,81]
[null,null,"合計",305,62,20]
[]
[]
[]
[]
[]
[]
[]
[]
[]
[]
[]
[]
[]
[]
[]
[]
[]
[]
[]
[]
[]
[]
[]
[]
["chart88","問6_介護者が行っている介護(MA) × 認12_二次判定結果(SA)【7】×【32】"]
[null,null,null,1,2,3]
[null,null,null,"要支援１・２","要介護１・２","要介護３以上","合計"]
[null,1,"日中の排泄",4,36,98,138,null,null,null,null,4.3116748693449232E-58,"(***)"]
[null,2,"夜間の排泄",5,23,79,107,null,null,null,null,5.1458294796911134E-47,"(***)"]
[null,3,"食事の介助（食べる時）",7,25,56,88,null,null,null,null,6.0565371130747362E-25,"(***)"]
[null,4,"入浴・洗身",30,74,40,144,null,null,null,null,5.2783556378865051E-3,"(**)"]
[null,5,"身だしなみ（洗顔・歯磨き等）",9,65,92,166,null,null,null,null,6.2075075643080428E-38,"(***)"]
[null,6,"衣服の着脱",14,81,108,203,null,null,null,null,1.0933000972706408E-43,"(***)"]
[null,7,"屋内の移乗・移動",14,41,87,142,null,null,null,null,7.4623890708987998E-39,"(***)"]
[null,8,"外出の付き添い、送迎等",148,254,111,513,null,null,null,null,9.0205710686946078E-2,"(+)"]
[null,9,"服薬",31,178,117,326,null,null,null,null,5.7594448460860712E-36,"(***)"]
[null,10,"認知症状への対応",4,92,71,167,null,null,null,null,2.7128627930483876E-24,"(***)"]
[null,11,"医療面での対応（経管栄養、ストーマ 等）",7,23,24,54,null,null,null,null,2.0385980335171713E-5,"(***)"]
[null,12,"食事の準備（調理等）",116,236,132,484,null,null,null,null,7.9038298735311205E-13,"(***)"]
[null,13,"その他の家事（掃除、洗濯、買い物 等）",153,283,132,568,null,null,null,null,1.0773148531466848E-6,"(***)"]
[null,14,"金銭管理や生活面に必要な諸手続き",102,263,125,490,null,null,null,null,3.3718144257862217E-19,"(***)"]
[null,15,"その他",7,14,7,28,null,null,null,null,0.74513865126335488]
[null,16,"わからない",3,0,0,3,null,null,null,null,3.5599950449581585E-2,"(*)"]
[null,null,"合計",215,330,146]
[]
[]
["chart89","問6_介護者が行っている介護(MA) × 問1_世帯類型(SA)【7】×【2】【37=1】"]
[null,null,null,1,2,3]
[null,null,null,"単身世帯","夫婦のみ世帯","その他","合計"]
[null,1,"日中の排泄",9,19,69,97,null,null,null,null,0.60895237758355147]
[null,2,"夜間の排泄",6,16,56,78,null,null,null,null,0.35277884051378949]
[null,3,"食事の介助（食べる時）",10,8,38,56,null,null,null,null,8.8487650367969517E-2,"(+)"]
[null,4,"入浴・洗身",2,9,28,39,null,null,null,null,0.32118928085613119]
[null,5,"身だしなみ（洗顔・歯磨き等）",6,18,67,91,null,null,null,null,8.551759671609177E-2,"(+)"]
[null,6,"衣服の着脱",8,20,79,107,null,null,null,null,6.7524418403890313E-2,"(+)"]
[null,7,"屋内の移乗・移動",9,14,63,86,null,null,null,null,0.62529295038972921]
[null,8,"外出の付き添い、送迎等",11,20,79,110,null,null,null,null,0.72988692371502761]
[null,9,"服薬",9,24,84,117,null,null,null,null,2.3760593793401938E-2,"(*)"]
[null,10,"認知症状への対応",8,11,52,71,null,null,null,null,0.63652620486513445]
[null,11,"医療面での対応（経管栄養、ストーマ 等）",3,7,14,24,null,null,null,null,0.30671927040709096]
[null,12,"食事の準備（調理等）",13,24,94,131,null,null,null,null,0.37404317382886898]
[null,13,"その他の家事（掃除、洗濯、買い物 等）",14,25,92,131,null,null,null,null,0.85752028421383786]
[null,14,"金銭管理や生活面に必要な諸手続き",15,25,84,124,null,null,null,null,0.24764221787446231]
[null,15,"その他",0,4,3,7,null,null,null,null,2.3955034482122901E-2,"(*)"]
[null,16,"わからない",0,0,0,0,null,null,null,null,"検定不能"]
[null,null,"合計",16,27,102]
[]
[]
[]
[]
[]
[]
[]
[]
[]
[]
["chart91","問1_世帯類型(SA) × 問12_訪問診療の利用の有無(SA)【2】×【13】"]
[null,null,null,1,2]
[null,null,null,"利用している","利用していない","合計",null,null,null,null,null,0.78216364330933574]
[null,1,"単身世帯",23,194,217]
[null,2,"夫婦のみ世帯",19,163,182]
[null,3,"その他",35,352,387]
[null,null,"合計",77,709]
[]
[]
["chart92","認3_二次判定結果8(SA) × 問12_訪問診療の利用の有無(SA)【57】×【13】"]
[null,null,null,1,2]
[null,null,null,"利用している","利用していない","合計",null,null,null,null,null,1.217916256271072E-20,"(***)"]
[null,1,"要支援１",3,112,115]
[null,2,"要支援２",6,142,148]
[null,3,"要介護１",12,184,196]
[null,4,"要介護２",15,160,175]
[null,5,"要介護３",10,61,71]
[null,6,"要介護４",16,41,57]
[null,7,"要介護５",15,11,26]
[null,null,"合計",77,711]
[]
[]
["chart93","問12_訪問診療の利用の有無(SA) × 認19_サービス利用の組み合わせ(SA)【13】×【39】【37=1】"]
[null,null,null,1,2,3,4]
[null,null,null,"未利用","訪問系のみ","訪問系を含む組み合わせ","通所系・短期系のみ","合計",null,null,null,2.6816828147366935E-4,"(***)"]
[null,1,"利用している",0,15,20,6,41]
[null,2,"利用していない",7,19,34,53,113]
[null,null,"合計",7,34,54,59]
[]
[]
["chart94","問12_訪問診療の利用の有無(SA) × 認20_訪問系の利用の有無(SA)【13】×【40】【37=1】"]
[null,null,null,1,2]
[null,null,null,"訪問系利用あり","訪問系利用なし","合計",null,null,null,null,null,2.0162719604026104E-5,"(***)"]
[null,1,"利用している",35,6,41]
[null,2,"利用していない",53,60,113]
[null,null,"合計",88,66]
[]
[]
["chart95","問12_訪問診療の利用の有無(SA) × 認21_通所系の利用の有無（定期巡回を除く）(SA)【13】×【41】【37=1】"]
[null,null,null,1,2]
[null,null,null,"通所系利用あり","通所系利用なし","合計",null,null,null,null,null,5.2456091344374157E-2,"(+)"]
[null,1,"利用している",23,18,41]
[null,2,"利用していない",82,31,113]
[null,null,"合計",105,49]
[]
[]
["chart96","問12_訪問診療の利用の有無(SA) × 認22_短期系の利用の有無（定期巡回を除く）(SA)【13】×【42】【37=1】"]
[null,null,null,1,2]
[null,null,null,"短期系利用あり","短期系利用なし","合計",null,null,null,null,null,3.3469120732174791E-2,"(*)"]
[null,1,"利用している",4,37,41]
[null,2,"利用していない",29,84,113]
[null,null,"合計",33,121]
[]
[]
["chart97","問14_未利用の理由(MA) × 認12_二次判定結果(SA)【15】×【32】"]
[null,null,null,1,2,3]
[null,null,null,"要支援１・２","要介護１・２","要介護３以上","合計"]
[null,1,"現状では、サービスを利用するほどの状態ではない",49,25,1,75,null,null,null,null,3.9720001311356487E-2,"(*)"]
[null,2,"本人にサービス利用の希望がない",21,21,1,43,null,null,null,null,0.36844834156034323]
[null,3,"家族が介護をするため必要ない",13,14,4,31,null,null,null,null,1.3963688524816128E-2,"(*)"]
[null,4,"以前、利用していたサービスに不満があった",3,2,0,5,null,null,null,null,0.89081048878938651]
[null,5,"利用料を支払うのが難しい",5,1,0,6,null,null,null,null,0.37241627985243786]
[null,6,"利用したいサービスが利用できない、身近にない",8,4,0,12,null,null,null,null,0.61528188375233217]
[null,7,"住宅改修、福祉用具貸与・購入のみを利用するため",5,3,1,9,null,null,null,null,0.54137616930104404]
[null,8,"サービスを受けたいが手続きや利用方法が分からない",3,3,0,6,null,null,null,null,0.80236447041523462]
[null,9,"その他",8,9,1,18,null,null,null,null,0.59842666060906713]
[null,null,"合計",94,68,7]
[]
[]
["chart98","問14_未利用の理由(MA) × 認12_二次判定結果(SA)【15】×【32】【2=1】"]
[null,null,null,1,2]
[null,null,null,"要支援１・２","要介護１・２","合計"]
[null,1,"現状では、サービスを利用するほどの状態ではない",20,5,25,null,null,null,null,null,6.0452378939865707E-2,"(+)"]
[null,2,"本人にサービス利用の希望がない",8,4,12,null,null,null,null,null,0.95695608133466847]
[null,3,"家族が介護をするため必要ない",0,2,2,null,null,null,null,null,3.8510003258076214E-2,"(*)"]
[null,4,"以前、利用していたサービスに不満があった",2,0,2,null,null,null,null,null,0.3148344004474446]
[null,5,"利用料を支払うのが難しい",3,0,3,null,null,null,null,null,0.21367424783872274]
[null,6,"利用したいサービスが利用できない、身近にない",3,1,4,null,null,null,null,null,0.73283262686777406]
[null,7,"住宅改修、福祉用具貸与・購入のみを利用するため",2,0,2,null,null,null,null,null,0.3148344004474446]
[null,8,"サービスを受けたいが手続きや利用方法が分からない",1,0,1,null,null,null,null,null,0.48159996810177208]
[null,9,"その他",3,6,9,null,null,null,null,null,1.6876935637253503E-2,"(*)"]
[null,null,"合計",35,17]
[]
[]
["chart99","問14_未利用の理由(MA) × 認12_二次判定結果(SA)【15】×【32】【2=2】"]
[null,null,null,1,2]
[null,null,null,"要支援１・２","要介護１・２","合計"]
[null,1,"現状では、サービスを利用するほどの状態ではない",11,7,18,null,null,null,null,null,0.46029172613140873]
[null,2,"本人にサービス利用の希望がない",3,7,10,null,null,null,null,null,8.0586317880038338E-2,"(+)"]
[null,3,"家族が介護をするため必要ない",4,3,7,null,null,null,null,null,0.87190798586735518]
[null,4,"以前、利用していたサービスに不満があった",1,1,2,null,null,null,null,null,0.89956013974551963]
[null,5,"利用料を支払うのが難しい",2,1,3,null,null,null,null,null,0.65772913459221205]
[null,6,"利用したいサービスが利用できない、身近にない",4,2,6,null,null,null,null,null,0.51592497965287798]
[null,7,"住宅改修、福祉用具貸与・購入のみを利用するため",2,1,3,null,null,null,null,null,0.65772913459221205]
[null,8,"サービスを受けたいが手続きや利用方法が分からない",1,1,2,null,null,null,null,null,0.89956013974551963]
[null,9,"その他",3,1,4,null,null,null,null,null,0.38549444931993593]
[null,null,"合計",25,21]
[]
[]
["chart100","問14_未利用の理由(MA) × 認12_二次判定結果(SA)【15】×【32】【2=3】"]
[null,null,null,1,2,3]
[null,null,null,"要支援１・２","要介護１・２","要介護３以上","合計"]
[null,1,"現状では、サービスを利用するほどの状態ではない",18,13,1,32,null,null,null,null,0.16805400205941584]
[null,2,"本人にサービス利用の希望がない",10,10,1,21,null,null,null,null,0.60973151302301354]
[null,3,"家族が介護をするため必要ない",9,9,4,22,null,null,null,null,0.27563018577714044]
[null,4,"以前、利用していたサービスに不満があった",0,1,0,1,null,null,null,null,0.50002597190687026]
[null,5,"利用料を支払うのが難しい",0,0,0,0,null,null,null,null,"検定不能"]
[null,6,"利用したいサービスが利用できない、身近にない",1,1,0,2,null,null,null,null,0.88956572817038249]
[null,7,"住宅改修、福祉用具貸与・購入のみを利用するため",1,2,1,4,null,null,null,null,0.47013260852261929]
[null,8,"サービスを受けたいが手続きや利用方法が分からない",1,2,0,3,null,null,null,null,0.6410787098684515]
[null,9,"その他",2,2,1,5,null,null,null,null,0.72710134089442413]
[null,null,"合計",34,30,7]
[]
[]
["chart101","問14_未利用の理由(MA) × 認26_認知症高齢者自立度(SA)【15】×【46】"]
[null,null,null,1,2,3]
[null,null,null,"自立＋Ⅰ","Ⅱ","Ⅲ以上","合計"]
[null,1,"現状では、サービスを利用するほどの状態ではない",52,17,6,75,null,null,null,null,0.98391353062041476]
[null,2,"本人にサービス利用の希望がない",27,13,3,43,null,null,null,null,0.43040381736371269]
[null,3,"家族が介護をするため必要ない",20,9,2,31,null,null,null,null,0.65989645135442632]
[null,4,"以前、利用していたサービスに不満があった",4,1,0,5,null,null,null,null,0.76152840155693269]
[null,5,"利用料を支払うのが難しい",5,1,0,6,null,null,null,null,0.66305294060190345]
[null,6,"利用したいサービスが利用できない、身近にない",9,3,0,12,null,null,null,null,0.55796748417865716]
[null,7,"住宅改修、福祉用具貸与・購入のみを利用するため",7,1,1,9,null,null,null,null,0.67125982567226372]
[null,8,"サービスを受けたいが手続きや利用方法が分からない",4,2,0,6,null,null,null,null,0.66950436665239277]
[null,9,"その他",12,4,2,18,null,null,null,null,0.89935225849361655]
[null,null,"合計",116,39,14]
[]
[]
["chart102","問14_未利用の理由(MA) × 認26_認知症高齢者自立度(SA)【15】×【46】【2=1】"]
[null,null,null,1,2,3]
[null,null,null,"自立＋Ⅰ","Ⅱ","Ⅲ以上","合計"]
[null,1,"現状では、サービスを利用するほどの状態ではない",20,4,1,25,null,null,null,null,0.68111919597305448]
[null,2,"本人にサービス利用の希望がない",9,3,0,12,null,null,null,null,0.70149223085628021]
[null,3,"家族が介護をするため必要ない",0,2,0,2,null,null,null,null,2.07260557914924E-2,"(*)"]
[null,4,"以前、利用していたサービスに不満があった",2,0,0,2,null,null,null,null,0.70704096930516136]
[null,5,"利用料を支払うのが難しい",3,0,0,3,null,null,null,null,0.588244709583712]
[null,6,"利用したいサービスが利用できない、身近にない",3,1,0,4,null,null,null,null,0.90620942295605511]
[null,7,"住宅改修、福祉用具貸与・購入のみを利用するため",2,0,0,2,null,null,null,null,0.70704096930516136]
[null,8,"サービスを受けたいが手続きや利用方法が分からない",1,0,0,1,null,null,null,null,0.84371995988971327]
[null,9,"その他",5,3,1,9,null,null,null,null,0.24592977207556699]
[null,null,"合計",39,11,2]
[]
[]
["chart103","問14_未利用の理由(MA) × 認26_認知症高齢者自立度(SA)【15】×【46】【2=2】"]
[null,null,null,1,2,3]
[null,null,null,"自立＋Ⅰ","Ⅱ","Ⅲ以上","合計"]
[null,1,"現状では、サービスを利用するほどの状態ではない",13,4,1,18,null,null,null,null,0.72383714612570271]
[null,2,"本人にサービス利用の希望がない",4,4,2,10,null,null,null,null,6.6262506529318796E-2,"(+)"]
[null,3,"家族が介護をするため必要ない",5,2,0,7,null,null,null,null,0.7454317648019998]
[null,4,"以前、利用していたサービスに不満があった",2,0,0,2,null,null,null,null,0.57259549293561629]
[null,5,"利用料を支払うのが難しい",2,1,0,3,null,null,null,null,0.88711790470902707]
[null,6,"利用したいサービスが利用できない、身近にない",5,1,0,6,null,null,null,null,0.56966108927048864]
[null,7,"住宅改修、福祉用具貸与・購入のみを利用するため",2,1,0,3,null,null,null,null,0.88711790470902707]
[null,8,"サービスを受けたいが手続きや利用方法が分からない",1,1,0,2,null,null,null,null,0.75568685231523181]
[null,9,"その他",3,1,0,4,null,null,null,null,0.83256685150642662]
[null,null,"合計",30,13,3]
[]
[]
["chart104","問14_未利用の理由(MA) × 認26_認知症高齢者自立度(SA)【15】×【46】【2=3】"]
[null,null,null,1,2,3]
[null,null,null,"自立＋Ⅰ","Ⅱ","Ⅲ以上","合計"]
[null,1,"現状では、サービスを利用するほどの状態ではない",19,9,4,32,null,null,null,null,0.41447260691499915]
[null,2,"本人にサービス利用の希望がない",14,6,1,21,null,null,null,null,0.32356382549489854]
[null,3,"家族が介護をするため必要ない",15,5,2,22,null,null,null,null,0.82660713002484854]
[null,4,"以前、利用していたサービスに不満があった",0,1,0,1,null,null,null,null,0.15056907449631105]
[null,5,"利用料を支払うのが難しい",0,0,0,0,null,null,null,null,"検定不能"]
[null,6,"利用したいサービスが利用できない、身近にない",1,1,0,2,null,null,null,null,0.56143820078506823]
[null,7,"住宅改修、福祉用具貸与・購入のみを利用するため",3,0,1,4,null,null,null,null,0.48359413046504512]
[null,8,"サービスを受けたいが手続きや利用方法が分からない",2,1,0,3,null,null,null,null,0.73415208128122345]
[null,9,"その他",4,0,1,5,null,null,null,null,0.46795262897598489]
[null,null,"合計",47,15,9]
[]
[]
["chart105","問9_保険外の支援・サービスの必要性(MA) × 認26_認知症高齢者自立度(SA)【10】×【46】"]
[null,null,null,1,2,3]
[null,null,null,"自立＋Ⅰ","Ⅱ","Ⅲ以上","合計"]
[null,1,"配食",44,39,19,102,null,null,null,null,0.32850785055492693]
[null,2,"調理",47,47,17,111,null,null,null,null,8.822693483689581E-2,"(+)"]
[null,3,"掃除・洗濯",75,48,17,140,null,null,null,null,0.27022607634592988]
[null,4,"買い物（宅配は含まない）",43,35,10,88,null,null,null,null,0.22593157039170653]
[null,5,"ゴミ出し",44,28,6,78,null,null,null,null,7.77732857450293E-2,"(+)"]
[null,6,"外出同行（通院、買い物など）",73,54,24,151,null,null,null,null,0.7706813588445679]
[null,7,"移送サービス（介護・福祉ﾀｸｼｰ等）",94,43,24,161,null,null,null,null,5.2555235126173258E-2,"(+)"]
[null,8,"見守り、声かけ",51,57,29,137,null,null,null,null,4.3873702941093131E-3,"(**)"]
[null,9,"サロンなどの定期的な通いの場",26,24,9,59,null,null,null,null,0.45456465171502208]
[null,10,"その他",13,16,11,40,null,null,null,null,4.7564147387679979E-2,"(*)"]
[null,11,"特になし",156,105,61,322,null,null,null,null,0.3709512680865123]
[null,null,"合計",389,259,130]
[]
[]
["chart106","問9_保険外の支援・サービスの必要性(MA) × 認26_認知症高齢者自立度(SA)【10】×【46】【2=1】"]
[null,null,null,1,2,3]
[null,null,null,"自立＋Ⅰ","Ⅱ","Ⅲ以上","合計"]
[null,1,"配食",20,14,5,39,null,null,null,null,0.76586314516786935]
[null,2,"調理",18,23,6,47,null,null,null,null,1.6715470100129394E-2,"(*)"]
[null,3,"掃除・洗濯",36,29,5,70,null,null,null,null,0.15677555150823494]
[null,4,"買い物（宅配は含まない）",24,22,5,51,null,null,null,null,0.2200774115823351]
[null,5,"ゴミ出し",29,17,2,48,null,null,null,null,0.26029179822353288]
[null,6,"外出同行（通院、買い物など）",29,24,5,58,null,null,null,null,0.29504877993956025]
[null,7,"移送サービス（介護・福祉ﾀｸｼｰ等）",29,19,10,58,null,null,null,null,0.14630017386102648]
[null,8,"見守り、声かけ",22,23,8,53,null,null,null,null,4.4094658955058291E-2,"(*)"]
[null,9,"サロンなどの定期的な通いの場",7,9,2,18,null,null,null,null,0.25572128978639619]
[null,10,"その他",6,4,1,11,null,null,null,null,0.96751106190038028]
[null,11,"特になし",37,18,6,61,null,null,null,null,0.70887865053431454]
[null,null,"合計",122,72,23]
[]
[]
["chart107","問9_保険外の支援・サービスの必要性(MA) × 認26_認知症高齢者自立度(SA)【10】×【46】【2=2】"]
[null,null,null,1,2,3]
[null,null,null,"自立＋Ⅰ","Ⅱ","Ⅲ以上","合計"]
[null,1,"配食",13,9,6,28,null,null,null,null,0.54082591362939925]
[null,2,"調理",10,11,5,26,null,null,null,null,0.53259291327774383]
[null,3,"掃除・洗濯",19,10,3,32,null,null,null,null,0.34865138419965019]
[null,4,"買い物（宅配は含まない）",11,6,2,19,null,null,null,null,0.65980545333026319]
[null,5,"ゴミ出し",8,4,2,14,null,null,null,null,0.76459454969309315]
[null,6,"外出同行（通院、買い物など）",25,14,7,46,null,null,null,null,0.55087557543686794]
[null,7,"移送サービス（介護・福祉ﾀｸｼｰ等）",22,12,4,38,null,null,null,null,0.38824488706120563]
[null,8,"見守り、声かけ",10,11,5,26,null,null,null,null,0.53259291327774383]
[null,9,"サロンなどの定期的な通いの場",3,7,2,12,null,null,null,null,0.21486920506730878]
[null,10,"その他",2,3,5,10,null,null,null,null,4.5121017949175772E-3,"(**)"]
[null,11,"特になし",26,28,10,64,null,null,null,null,0.28074812899122692]
[null,null,"合計",85,65,26]
[]
[]
["chart108","問9_保険外の支援・サービスの必要性(MA) × 認26_認知症高齢者自立度(SA)【10】×【46】【2=3】"]
[null,null,null,1,2,3]
[null,null,null,"自立＋Ⅰ","Ⅱ","Ⅲ以上","合計"]
[null,1,"配食",11,16,8,35,null,null,null,null,0.1087597394153834]
[null,2,"調理",19,13,6,38,null,null,null,null,0.71691537801738658]
[null,3,"掃除・洗濯",20,9,9,38,null,null,null,null,0.52216375442593055]
[null,4,"買い物（宅配は含まない）",8,7,3,18,null,null,null,null,0.7841819918319346]
[null,5,"ゴミ出し",7,7,2,16,null,null,null,null,0.50973290720706166]
[null,6,"外出同行（通院、買い物など）",19,16,12,47,null,null,null,null,0.55903978849974678]
[null,7,"移送サービス（介護・福祉ﾀｸｼｰ等）",43,12,9,64,null,null,null,null,2.119111961740556E-3,"(**)"]
[null,8,"見守り、声かけ",19,23,16,58,null,null,null,null,5.4611022710761091E-2,"(+)"]
[null,9,"サロンなどの定期的な通いの場",16,8,4,28,null,null,null,null,0.50736316114981339]
[null,10,"その他",5,9,5,19,null,null,null,null,0.16137272221372992]
[null,11,"特になし",92,59,45,196,null,null,null,null,0.54333545206043343]
[null,null,"合計",181,122,80]
[]
[]
["chart109","認11_本人年齢(SA) × 認31_介護者の年齢(SA)【31】×【51】"]
[null,null,null,1,2,3,4,5,6]
[null,null,null,"40歳未満","40歳代","50歳代","60歳代","70歳代","80歳以上","合計",null,1.325584842658299E-33,"(***)"]
[null,1,"65歳未満",3,0,6,5,0,1,15]
[null,2,"65～69歳",4,6,3,15,9,0,37]
[null,3,"70歳代",3,19,23,8,49,16,118]
[null,4,"80歳代",7,24,128,99,34,65,357]
[null,5,"90歳以上",0,2,23,83,19,14,141]
[null,null,"合計",17,51,183,210,111,96]
[]
[]
["chart110","問11_抱えている傷病(MA) × 認12_二次判定結果(SA)【12】×【32】"]
[null,null,null,1,2,3]
[null,null,null,"要支援１・２","要介護１・２","要介護３以上","合計"]
[null,1,"脳血管疾患（脳卒中）",36,76,42,154,null,null,null,null,2.5833404300303303E-3,"(**)"]
[null,2,"心疾患（心臓病）",70,83,35,188,null,null,null,null,0.44369070075898415]
[null,3,"悪性新生物（がん）",32,43,12,87,null,null,null,null,0.35447879736714727]
[null,4,"呼吸器疾患",26,34,16,76,null,null,null,null,0.89609315990677008]
[null,5,"腎疾患（透析）",0,0,0,0,null,null,null,null,"検定不能"]
[null,6,"筋骨格系疾患（骨粗しょう症、脊柱管狭窄症等）",69,68,30,167,null,null,null,null,4.8959484404894407E-2,"(*)"]
[null,7,"膠原病（関節リウマチ含む）",12,16,4,32,null,null,null,null,0.58767687904594978]
[null,8,"変形性関節疾患",59,39,13,111,null,null,null,null,1.0216994326196627E-5,"(***)"]
[null,9,"認知症",7,139,72,218,null,null,null,null,1.3990353948310331E-28,"(***)"]
[null,10,"パーキンソン病",5,7,7,19,null,null,null,null,0.15461307971611166]
[null,11,"難病（パーキンソン病を除く）",2,12,4,18,null,null,null,null,0.11576583378010745]
[null,12,"糖尿病",39,49,26,114,null,null,null,null,0.53462908376879548]
[null,13,"眼科・耳鼻科疾患（視覚・聴覚障害を伴うもの）",54,71,31,156,null,null,null,null,0.90474794423139726]
[null,14,"その他",49,87,21,157,null,null,null,null,3.1241981385069773E-2,"(*)"]
[null,15,"なし",10,6,3,19,null,null,null,null,0.19376203190122185]
[null,16,"わからない",5,5,1,11,null,null,null,null,0.57428700090663032]
[null,null,"合計",264,372,154]
[]
[]
["chart111","問11_抱えている傷病(MA) × 問12_訪問診療の利用の有無(SA)【12】×【13】"]
[null,null,null,1,2]
[null,null,null,"利用している","利用していない","合計"]
[null,1,"脳血管疾患（脳卒中）",18,136,154,null,null,null,null,null,0.3751198069168119]
[null,2,"心疾患（心臓病）",16,172,188,null,null,null,null,null,0.5005663304293323]
[null,3,"悪性新生物（がん）",10,76,86,null,null,null,null,null,0.54196475642471431]
[null,4,"呼吸器疾患",12,63,75,null,null,null,null,null,5.678296059565241E-2,"(+)"]
[null,5,"腎疾患（透析）",0,0,0,null,null,null,null,null,"検定不能"]
[null,6,"筋骨格系疾患（骨粗しょう症、脊柱管狭窄症等）",13,154,167,null,null,null,null,null,0.32713286302010891]
[null,7,"膠原病（関節リウマチ含む）",5,27,32,null,null,null,null,null,0.25617694182777029]
[null,8,"変形性関節疾患",4,106,110,null,null,null,null,null,1.9288980300428939E-2,"(*)"]
[null,9,"認知症",24,194,218,null,null,null,null,null,0.47394234257216322]
[null,10,"パーキンソン病",4,15,19,null,null,null,null,null,9.4206467217978471E-2,"(+)"]
[null,11,"難病（パーキンソン病を除く）",2,16,18,null,null,null,null,null,0.84796021241237696]
[null,12,"糖尿病",11,103,114,null,null,null,null,null,0.95819969053806309]
[null,13,"眼科・耳鼻科疾患（視覚・聴覚障害を伴うもの）",12,143,155,null,null,null,null,null,0.33962351567021593]
[null,14,"その他",14,143,157,null,null,null,null,null,0.6828443921031947]
[null,15,"なし",3,15,18,null,null,null,null,null,0.32007618601070542]
[null,16,"わからない",1,10,11,null,null,null,null,null,0.9378934123291679]
[null,null,"合計",77,710]